Inv Transaction,Supplier Name,Headserv Name,Stratdir Name,Account description,Redact Name,Paid Date, Sum of Inv Amount ,Proclass,merchant
460423,Woodrow House ( Cygnet Healthcare),Adult Social Care,Adults,Nursing Home Long Stay Fees,,09/06/2021," 45,394.25 ",-999999,Unclassifiable
460423,Woodrow House ( Cygnet Healthcare),Adult Social Care,Adults,Residents Long Stay Fee Income,,09/06/2021," 45,394.25 ",-999999,Unclassifiable
5415243,Extrahand Care Services Ltd,Contingency,Contingency,COVID-19 Infection Control Fund,,01/04/2021," 3,056.09 ",321000,Social Community Care Supplies & Services - Adult
5415241,CALL PLUS - t/a BEING THERE,Contingency,Contingency,COVID-19 Infection Control Fund,,01/04/2021, 939.03 ,UNCLASS,Unclassifiable
5415238,AGE UK TAMESIDE,Contingency,Contingency,COVID-19 Infection Control Fund,,01/04/2021," 7,512.24 ",180000,Environmental Services
5415242,CARETECH COMMUNITY SERVICES LIMITED,Contingency,Contingency,COVID-19 Infection Control Fund,,01/04/2021," 5,093.48 ",321000,Social Community Care Supplies & Services - Adult
5415240,AD HOC CHAPS PAYMENT,Operations and Neighbourhoods,Operations and Neighbourhoods,Other Accommodation Related Costs,,01/04/2021, 800.00 ,400002,Chaps Payments
5415252,AD HOC CHAPS PAYMENT,Operations and Neighbourhoods,Operations and Neighbourhoods,Other Accommodation Related Costs,,01/04/2021, 760.00 ,400002,Chaps Payments
5412174,COOLSPIRIT LTD,Digital Tameside,Finance & IT,Computer Hardware Purchase,,01/04/2021, 699.19 ,270000,Information Communication Technology
5412028,Pickering Psychology Services Limited,Childrens Services,Children's Services,Professional Child Services,,01/04/2021, 593.13 ,280000,Legal Services
5412029,Restorative Social Care Services,Childrens Services,Children's Services,Living With Formal Support,,01/04/2021," 2,719.92 ",321100,Social Community Care Supplies & Services - Children
5412035,Restorative Social Care Services,Childrens Services,Children's Services,Living With Formal Support,,01/04/2021," 2,084.04 ",321100,Social Community Care Supplies & Services - Children
5412354,Skybound Therapies,Education,Children's Services,Independent School Fees,,01/04/2021," 1,020.00 ",170000,Education
5412033,Moving Forward Care Ltd,Childrens Services,Children's Services,Living With Formal Support,,01/04/2021," 3,400.00 ",321100,Social Community Care Supplies & Services - Children
5411703,Fairfield Care Services,Adult Social Care,Adults,Homecare Fees,,01/04/2021," 1,148.80 ",321000,Social Community Care Supplies & Services - Adult
5412020,The Compost Bag Company Ltd,Operations and Neighbourhoods,Operations and Neighbourhoods,Purchase Plastic Sacks,,01/04/2021," 6,030.00 ",182014,Environmental Services
5412040,Randstad HR Solution Ltd T/A Student Worker Support,Education,Children's Services,Independent School Fees,,01/04/2021," 1,600.00 ",321000,Social Community Care Supplies & Services - Adult
5414191,CBS Building and Maintenance,Operations and Neighbourhoods,Operations and Neighbourhoods,Building Works,,01/04/2021, 514.09 ,100000,Building Construction Materials
5412017,iCare Solutions,Adult Social Care,Adults,Homecare Fees,,01/04/2021," 14,571.20 ",310000,Healthcare
5411914,UTC MediaCity UK,Education,Children's Services,Other Local Authorities Fees,,01/04/2021," 7,342.42 ",200000,Financial Services
5413870,Bloom Procurement Services Limited,Tameside Investment Partnership,Director of Place,Professional Services,,01/04/2021," 16,578.95 ",150000,Consultancy
5411925,YOUNG PEOPLE FIRST LIMITED,Childrens Services,Children's Services,Living With Formal Support,,01/04/2021," 2,730.00 ",321100,Social Community Care Supplies & Services - Children
5412015,YOUNG PEOPLE FIRST LIMITED,Childrens Services,Children's Services,Living With Formal Support,,01/04/2021, 850.00 ,321100,Social Community Care Supplies & Services - Children
5411712,CFS CARE LIMITED,Childrens Services,Children's Services,Living With Formal Support,,01/04/2021," 4,800.00 ",321100,Social Community Care Supplies & Services - Children
5411718,CFS CARE LIMITED,Childrens Services,Children's Services,Living With Formal Support,,01/04/2021," 4,800.00 ",321100,Social Community Care Supplies & Services - Children
5411717,CFS CARE LIMITED,Childrens Services,Children's Services,Living With Formal Support,,01/04/2021," 4,400.00 ",321100,Social Community Care Supplies & Services - Children
5411715,CFS CARE LIMITED,Childrens Services,Children's Services,Living With Formal Support,,01/04/2021," 4,800.00 ",321100,Social Community Care Supplies & Services - Children
5412038,Sandcastle Care LTD,Childrens Services,Children's Services,Childrens Homes Outside Local Authority Fees,,01/04/2021," 24,164.29 ",321000,Social Community Care Supplies & Services - Adult
5411629,ROC Northwest Limited,Education,Children's Services,Independent School Fees,,01/04/2021," 5,278.01 ",321100,Social Community Care Supplies & Services - Children
5412182,AFFINITY WORKFORCE SOLUTIONS LIMITED T/A Monarch Education,Education,Children's Services,Independent School Fees,,01/04/2021, 600.00 ,170000,Education
5412396,Furniture Resource Centre Ltd,Operations and Neighbourhoods,Operations and Neighbourhoods,"Fixtures, Fittings & Furniture Purchase",,01/04/2021," 1,166.49 ",UNCLASS,Unclassifiable
5412414,Furniture Resource Centre Ltd,Operations and Neighbourhoods,Operations and Neighbourhoods,"Fixtures, Fittings & Furniture Purchase",,01/04/2021, 662.90 ,UNCLASS,Unclassifiable
5412387,Furniture Resource Centre Ltd,Operations and Neighbourhoods,Operations and Neighbourhoods,"Fixtures, Fittings & Furniture Purchase",,01/04/2021," 1,027.48 ",UNCLASS,Unclassifiable
5412420,Furniture Resource Centre Ltd,Operations and Neighbourhoods,Operations and Neighbourhoods,"Fixtures, Fittings & Furniture Purchase",,01/04/2021," 1,068.75 ",UNCLASS,Unclassifiable
5412390,Furniture Resource Centre Ltd,Operations and Neighbourhoods,Operations and Neighbourhoods,"Fixtures, Fittings & Furniture Purchase",,01/04/2021, 724.45 ,UNCLASS,Unclassifiable
5412393,Furniture Resource Centre Ltd,Operations and Neighbourhoods,Operations and Neighbourhoods,"Fixtures, Fittings & Furniture Purchase",,01/04/2021," 1,233.56 ",UNCLASS,Unclassifiable
5412385,Furniture Resource Centre Ltd,Operations and Neighbourhoods,Operations and Neighbourhoods,"Fixtures, Fittings & Furniture Purchase",,01/04/2021," 1,125.49 ",UNCLASS,Unclassifiable
5412395,Furniture Resource Centre Ltd,Operations and Neighbourhoods,Operations and Neighbourhoods,"Fixtures, Fittings & Furniture Purchase",,01/04/2021," 1,260.88 ",UNCLASS,Unclassifiable
5412394,Furniture Resource Centre Ltd,Operations and Neighbourhoods,Operations and Neighbourhoods,"Fixtures, Fittings & Furniture Purchase",,01/04/2021," 1,443.73 ",UNCLASS,Unclassifiable
5412383,Furniture Resource Centre Ltd,Operations and Neighbourhoods,Operations and Neighbourhoods,"Fixtures, Fittings & Furniture Purchase",,01/04/2021," 1,218.48 ",UNCLASS,Unclassifiable
5412389,Furniture Resource Centre Ltd,Operations and Neighbourhoods,Operations and Neighbourhoods,"Fixtures, Fittings & Furniture Purchase",,01/04/2021, 768.98 ,UNCLASS,Unclassifiable
5412417,Furniture Resource Centre Ltd,Operations and Neighbourhoods,Operations and Neighbourhoods,"Fixtures, Fittings & Furniture Purchase",,01/04/2021," 1,091.45 ",UNCLASS,Unclassifiable
5412193,Furniture Resource Centre Ltd,Operations and Neighbourhoods,Operations and Neighbourhoods,"Fixtures, Fittings & Furniture Purchase",,01/04/2021, 503.09 ,UNCLASS,Unclassifiable
5412384,Furniture Resource Centre Ltd,Operations and Neighbourhoods,Operations and Neighbourhoods,"Fixtures, Fittings & Furniture Purchase",,01/04/2021, 503.46 ,UNCLASS,Unclassifiable
5412391,Furniture Resource Centre Ltd,Operations and Neighbourhoods,Operations and Neighbourhoods,"Fixtures, Fittings & Furniture Purchase",,01/04/2021, 504.73 ,UNCLASS,Unclassifiable
5412062,G2V Recruitment Group Limited t/a Vivid Resourcing,Place,Growth,Recruitment Campaign,,01/04/2021," 1,625.00 ",280000,Legal Services
5412041,G2V Recruitment Group Limited t/a Vivid Resourcing,Place,Growth,Agency Staff,,01/04/2021," 2,500.00 ",280000,Legal Services
5412196,Foster Careline Ltd,Childrens Services,Children's Services,Foster Carer Agency Fees,,01/04/2021," 3,265.76 ",321000,Social Community Care Supplies & Services - Adult
5412198,Foster Careline Ltd,Childrens Services,Children's Services,Foster Carer Agency Fees,,01/04/2021," 3,138.80 ",321000,Social Community Care Supplies & Services - Adult
5412199,Foster Careline Ltd,Childrens Services,Children's Services,Foster Carer Agency Fees,,01/04/2021," 3,265.76 ",321000,Social Community Care Supplies & Services - Adult
5412203,Zoho Corporation B.V,Digital Tameside,Finance & IT,Computer Software,,01/04/2021," 9,999.00 ",270000,Information Communication Technology
5412197,Redacted,Adult Social Care,Adults,Residential Home Long Stay Fees,,01/04/2021," 6,769.74 ",170000,Education
5412188,Redacted,Adult Social Care,Adults,Residential Home Long Stay Fees,,01/04/2021," 6,114.60 ",170000,Education
5412205,MYRIADLINKS CARE SOLUTIONS,Childrens Services,Children's Services,Living With Formal Support,,01/04/2021," 2,723.66 ",321100,Social Community Care Supplies & Services - Children
5412209,Falch Limited,Operations and Neighbourhoods,Operations and Neighbourhoods,General Materials,,01/04/2021," 4,383.50 ",190000,Facilities & Management Services
5412048,Redacted,Education,Children's Services,Independent School Fees,,01/04/2021," 1,225.00 ",170000,Education
5412178,Supporting Futures LTD,Childrens Services,Children's Services,Childrens Homes Outside Local Authority Fees,,01/04/2021," 22,014.88 ",310000,Healthcare
5411729,Enviro Technology Services Ltd,Operations and Neighbourhoods,Operations and Neighbourhoods,Computer Hardware Purchase,,01/04/2021," 14,120.00 ",100000,Building Construction Materials
5412210,Next Stage 4 Life Limited,Childrens Services,Children's Services,Childrens Homes Outside Local Authority Fees,,01/04/2021," 22,585.67 ",321000,Social Community Care Supplies & Services - Adult
5412043,Oyster Partnership,Place,Growth,Agency Staff,,01/04/2021," 2,200.00 ",261313,Human Resources
5412371,Stepping Stone Projects,Childrens Services,Children's Services,Living With Formal Support,,01/04/2021," 3,049.52 ",-999999,Unclassifiable
5412370,Stepping Stone Projects,Childrens Services,Children's Services,Living With Formal Support,,01/04/2021," 1,960.34 ",-999999,Unclassifiable
5412424,Stepping Stone Projects,Childrens Services,Children's Services,Living With Formal Support,,01/04/2021," 1,400.00 ",-999999,Unclassifiable
5412423,Stepping Stone Projects,Childrens Services,Children's Services,Living With Formal Support,,01/04/2021," 1,400.00 ",-999999,Unclassifiable
5411876,Redacted,Childrens Services,Children's Services,Living With Formal Support,,01/04/2021," 5,668.57 ",-999999,Unclassifiable
5411878,Redacted,Childrens Services,Children's Services,Living With Formal Support,,01/04/2021," 5,668.57 ",-999999,Unclassifiable
5411874,Redacted,Childrens Services,Children's Services,Living With Formal Support,,01/04/2021," 5,668.57 ",-999999,Unclassifiable
5411873,Redacted,Childrens Services,Children's Services,Living With Formal Support,,01/04/2021," 8,768.57 ",-999999,Unclassifiable
5411871,Redacted,Childrens Services,Children's Services,Living With Formal Support,,01/04/2021," 3,963.57 ",-999999,Unclassifiable
5411887,Nola House Tutoring,Education,Children's Services,Independent School Fees,,01/04/2021," 1,100.00 ",171011,Education
5411652,GREENLEAF HEALTH & SOCIAL CARE,Adult Social Care,Adults,Homecare Fees,,01/04/2021," 4,150.36 ",250000,Housing Management
5412211,QUAYS HOUSING LTD,Operations and Neighbourhoods,Operations and Neighbourhoods,Non-Authority Accommodation Rental,,01/04/2021," 1,068.63 ",321060,Social Community Care Supplies & Services - Adult
5413903,Redacted,Childrens Services,Children's Services,Other Accommodation Related Costs,,01/04/2021, 660.00 ,202000,Financial Services
5412425,Wraparound Partnership,Hosted Services,Hosted Services,Professional Services,,01/04/2021, 600.00 ,-999999,Unclassifiable
5412044,Lanemark t/a Carebase,Childrens Services,Children's Services,"Fixtures, Fittings & Furniture Purchase",,01/04/2021," 4,145.00 ",MEDICAL,Medical
5411747,Engage Support LTD,Childrens Services,Children's Services,Living With Formal Support,,01/04/2021," 9,180.00 ",-999999,Unclassifiable
5412326,Consulting Well Ltd,Childrens Services,Children's Services,Professional Medical Services,,01/04/2021," 5,146.00 ",MEDICAL,Medical
5415115,ZZ-P G Smith Ltd,Contingency,Contingency,COVID-19 Payments - Domestic/Taxi,,01/04/2021," 1,500.00 ",UNCLASS,Unclassifiable
5413126,L & R ROADLINES LIMITED,Engineers Client,Director of Place,Road Marking Works,,01/04/2021," 2,236.37 ",391411,"Works - Construction, Repair & Maintenance"
5412051,NEW HORIZONS (STOCKPORT) LTD,Childrens Services,Children's Services,Childrens Homes Outside Local Authority Fees,,01/04/2021," 7,604.57 ",321100,Social Community Care Supplies & Services - Children
5412054,NEW HORIZONS (STOCKPORT) LTD,Childrens Services,Children's Services,Childrens Homes Outside Local Authority Fees,,01/04/2021," 13,200.04 ",321100,Social Community Care Supplies & Services - Children
5412213,SAFEHOUSES NORTH LIMITED,Childrens Services,Children's Services,Foster Carer Agency Fees,,01/04/2021," 3,571.86 ",321100,Social Community Care Supplies & Services - Children
5412214,SAFEHOUSES NORTH LIMITED,Childrens Services,Children's Services,Foster Carer Agency Fees,,01/04/2021," 3,393.26 ",321100,Social Community Care Supplies & Services - Children
5412428,EUROPEAN ELECTRONIQUELTD,Digital Tameside,Finance & IT,Computer Hardware Maintenance Costs,,01/04/2021," 1,768.80 ",UNCLASS,Unclassifiable
5412428,EUROPEAN ELECTRONIQUELTD,Digital Tameside,Finance & IT,Computer Hardware Purchase,,01/04/2021," 25,633.72 ",UNCLASS,Unclassifiable
5412432,Redacted,Governance,Governance,Professional Consultancy Services,Business Payment,01/04/2021," 1,837.50 ",150000,Consultancy
5412223,LIQUIDLOGIC LTD,People and Workforce Development,Governance,Computer Software,,01/04/2021," 43,159.42 ",270000,Information Communication Technology
5412215,LIQUIDLOGIC LTD,People and Workforce Development,Governance,Computer Software,,01/04/2021," 33,182.22 ",270000,Information Communication Technology
5412339,ROYAL MENCAP SOCIETY,Adult Social Care,Adults,Voluntary Organisations Fees,,01/04/2021," 10,052.80 ",321000,Social Community Care Supplies & Services - Adult
5412173,TRANSPORT FOR GREATER MANCHESTER,Place,Growth,Professional Consultancy Services,,01/04/2021," 5,500.00 ",360000,Public Transport
5411754,AMARA CARE LTD,Adult Social Care,Adults,Homecare Fees,,01/04/2021," 6,452.60 ",321000,Social Community Care Supplies & Services - Adult
5411758,AMARA CARE LTD,Adult Social Care,Adults,Homecare Fees,,01/04/2021," 9,213.68 ",321000,Social Community Care Supplies & Services - Adult
5412233,SEASHELL TRUST,Childrens Services,Children's Services,Short Breaks (Respite),,01/04/2021," 1,800.00 ",321000,Social Community Care Supplies & Services - Adult
5407686,SEASHELL TRUST,Childrens Services,Children's Services,Homecare Fees,,01/04/2021," 2,100.00 ",321000,Social Community Care Supplies & Services - Adult
5408654,SEASHELL TRUST,Childrens Services,Children's Services,Homecare Fees,,01/04/2021," 1,350.00 ",321000,Social Community Care Supplies & Services - Adult
5414664,TAMESIDE AND GLOSSOP INTEGRATED CARE NHS FOUNDATION TRUST,Childrens Services,Children's Services,Homecare Fees,,01/04/2021," 12,632.49 ",310000,Healthcare
5414667,TAMESIDE AND GLOSSOP INTEGRATED CARE NHS FOUNDATION TRUST,Childrens Services,Children's Services,Homecare Fees,,01/04/2021," 2,429.00 ",310000,Healthcare
5414962,TAMESIDE AND GLOSSOP INTEGRATED CARE NHS FOUNDATION TRUST,Education,Children's Services,Professional Child Services,,01/04/2021," 3,813.33 ",310000,Healthcare
5414665,TAMESIDE AND GLOSSOP INTEGRATED CARE NHS FOUNDATION TRUST,Childrens Services,Children's Services,Homecare Fees,,01/04/2021," 4,373.00 ",310000,Healthcare
5412235,HAS TECHNOLOGY LTD,Adult Social Care,Adults,Computer Software Maintenance Costs,,01/04/2021," 2,529.36 ",-999999,Unclassifiable
5414965,OAKFIELDS CHILDRENS CARE,Childrens Services,Children's Services,Childrens Homes Outside Local Authority Fees,,01/04/2021," 9,980.00 ",321100,Social Community Care Supplies & Services - Children
5414963,OAKFIELDS CHILDRENS CARE,Childrens Services,Children's Services,Childrens Homes Outside Local Authority Fees,,01/04/2021," 9,400.00 ",321100,Social Community Care Supplies & Services - Children
5412236,LUBBE & SONS (BULBS) LTD,Operations and Neighbourhoods,Operations and Neighbourhoods,General Materials,,01/04/2021, 940.00 ,249999,Horticultural
5412372,SILVERLINE BUILDING SOLUTIONS,Operations and Neighbourhoods,Operations and Neighbourhoods,Building Works,,01/04/2021, 650.00 ,390000,"Works - Construction, Repair & Maintenance"
5411846,TURNING POINT SERVICES LIMITED,Adult Social Care,Adults,Homecare Fees,,01/04/2021," 14,357.08 ",321000,Social Community Care Supplies & Services - Adult
5414662,FUSION CARE,Adult Social Care,Adults,Homecare Fees,,01/04/2021," 2,465.00 ",321100,Social Community Care Supplies & Services - Children
5414661,FUSION CARE,Adult Social Care,Adults,Homecare Fees,,01/04/2021," 2,879.28 ",321100,Social Community Care Supplies & Services - Children
5414303,OLDHAM COUNCIL,Education,Children's Services,Other Local Authorities Fees,,01/04/2021," 7,420.00 ",-999999,Unclassifiable
5412234,POSITIVE STEPS OLDHAM,Place,Growth,Professional Services,,01/04/2021," 34,520.55 ",261400,Human Resources
5412023,Redacted,Childrens Services,Children's Services,Childrens Homes Outside Local Authority Fees,Redacted Supplier,01/04/2021," 14,779.80 ",321000,Social Community Care Supplies & Services - Adult
5412059,Redacted,Childrens Services,Children's Services,Childrens Homes Outside Local Authority Fees,Redacted Supplier,01/04/2021," 14,779.80 ",321000,Social Community Care Supplies & Services - Adult
5411564,REGENDA LIMITED,Adult Social Care,Adults,Non-Authority Accommodation Rental,,01/04/2021," 2,130.92 ",250000,Housing Management
5411736,PROFILE SECURITY SERVICES LIMITED,Operations and Neighbourhoods,Operations and Neighbourhoods,Security Services,,01/04/2021," 3,424.13 ",190000,Facilities & Management Services
5412239,PROFILE SECURITY SERVICES LIMITED,Operations and Neighbourhoods,Operations and Neighbourhoods,Security Services,,01/04/2021," 3,287.16 ",190000,Facilities & Management Services
5411836,The Pathways Group Ltd,Childrens Services,Children's Services,Living With Formal Support,,01/04/2021," 3,625.00 ",321000,Social Community Care Supplies & Services - Adult
5413375,INSPIREDSPACES TAMESIDE (PROJECTCO2) LTD,Asset & Investment Partnership Management,Growth,Food & Refreshments,,01/04/2021, 770.27 ,170000,Education
5413375,INSPIREDSPACES TAMESIDE (PROJECTCO2) LTD,Asset & Investment Partnership Management,Growth,Free School Meal Costs,,01/04/2021," 2,584.94 ",170000,Education
5415060,Park Lane Minibuses LTD,Education,Children's Services,Transport Of Pupils,,01/04/2021," 2,127.50 ",360000,Public Transport
5415058,Park Lane Minibuses LTD,Education,Children's Services,Transport Of Pupils,,01/04/2021," 2,959.64 ",360000,Public Transport
5415057,Park Lane Minibuses LTD,Education,Children's Services,Transport Of Pupils,,01/04/2021," 2,644.08 ",360000,Public Transport
5415056,Park Lane Minibuses LTD,Education,Children's Services,Transport Of Pupils,,01/04/2021," 1,955.00 ",360000,Public Transport
5415055,Park Lane Minibuses LTD,Education,Children's Services,Transport Of Pupils,,01/04/2021," 1,955.00 ",360000,Public Transport
5415059,Park Lane Minibuses LTD,Education,Children's Services,Transport Of Pupils,,01/04/2021," 1,840.00 ",360000,Public Transport
5415061,Park Lane Minibuses LTD,Operations and Neighbourhoods,Operations and Neighbourhoods,Hired Transport,,01/04/2021," 5,050.80 ",360000,Public Transport
5412341,PURE INNOVATIONS LTD,Education,Children's Services,Professional Services,,01/04/2021," 15,221.25 ",400000,Non 3rd Party spend  
5411769,DAISY CORPORATE SERVICES TRADING LIMITED,Digital Tameside,Finance & IT,Telephone Landline Costs,,01/04/2021," 3,064.47 ",908001,Public Bodies
5411684,THE FAMILY UNIT LTD,Childrens Services,Children's Services,Living With Formal Support,,01/04/2021," 8,849.99 ",321000,Social Community Care Supplies & Services - Adult
5412373,Libraries Connected,Operations and Neighbourhoods,Operations and Neighbourhoods,Subscriptions,,01/04/2021," 1,650.00 ",200000,Financial Services
5411837,Redacted,Childrens Services,Children's Services,Childrens Homes Outside Local Authority Fees,Redacted Supplier,01/04/2021," 1,260.00 ",321000,Social Community Care Supplies & Services - Adult
5411526,Redacted,Childrens Services,Children's Services,Childrens Homes Outside Local Authority Fees,Redacted Supplier,01/04/2021," 15,500.00 ",321000,Social Community Care Supplies & Services - Adult
5411739,HANDICARE LIMITED,Housing,Director of Place,Mandatory Adaptations Grant (DFG),,01/04/2021," 1,181.13 ",321100,Social Community Care Supplies & Services - Children
5411743,HANDICARE LIMITED,Housing,Director of Place,Mandatory Adaptations Grant (DFG),,01/04/2021," 1,195.30 ",321100,Social Community Care Supplies & Services - Children
5411636,HANDICARE LIMITED,Housing,Director of Place,Mandatory Adaptations Grant (DFG),,01/04/2021," 2,000.50 ",321100,Social Community Care Supplies & Services - Children
5411638,HANDICARE LIMITED,Housing,Director of Place,Mandatory Adaptations Grant (DFG),,01/04/2021," 1,181.13 ",321100,Social Community Care Supplies & Services - Children
5412070,HANDICARE LIMITED,Housing,Director of Place,Mandatory Adaptations Grant (DFG),,01/04/2021," 1,055.07 ",321100,Social Community Care Supplies & Services - Children
5411742,HANDICARE LIMITED,Housing,Director of Place,Mandatory Adaptations Grant (DFG),,01/04/2021," 1,149.00 ",321100,Social Community Care Supplies & Services - Children
5411670,Intraquest CIC,Childrens Services,Children's Services,Professional Child Services,,01/04/2021, 600.00 ,310000,Healthcare
5412451,CORE INTEGRATED SOLUTIONS LTD,(blank),(blank),Fibre Works,,01/04/2021," 31,685.00 ",390000,"Works - Construction, Repair & Maintenance"
5412241,Transunion Internal UK Limited,Hosted Services,Hosted Services,Professional Services,,01/04/2021," 16,800.00 ",150000,Consultancy
5412000,THREE CIRCLES FOSTERING LTD,Childrens Services,Children's Services,Foster Carer Agency Fees,,01/04/2021," 5,010.00 ",321100,Social Community Care Supplies & Services - Children
5412004,THREE CIRCLES FOSTERING LTD,Childrens Services,Children's Services,Foster Carer Agency Fees,,01/04/2021," 4,788.00 ",321100,Social Community Care Supplies & Services - Children
5411955,THREE CIRCLES FOSTERING LTD,Childrens Services,Children's Services,Foster Carer Agency Fees,,01/04/2021," 3,325.00 ",321100,Social Community Care Supplies & Services - Children
5411996,THREE CIRCLES FOSTERING LTD,Childrens Services,Children's Services,Foster Carer Agency Fees,,01/04/2021," 3,192.00 ",321100,Social Community Care Supplies & Services - Children
5412002,THREE CIRCLES FOSTERING LTD,Childrens Services,Children's Services,Foster Carer Agency Fees,,01/04/2021," 3,192.00 ",321100,Social Community Care Supplies & Services - Children
5411997,THREE CIRCLES FOSTERING LTD,Childrens Services,Children's Services,Foster Carer Agency Fees,,01/04/2021," 3,049.76 ",321100,Social Community Care Supplies & Services - Children
5411961,THREE CIRCLES FOSTERING LTD,Childrens Services,Children's Services,Foster Carer Agency Fees,,01/04/2021," 3,704.40 ",321100,Social Community Care Supplies & Services - Children
5411999,THREE CIRCLES FOSTERING LTD,Childrens Services,Children's Services,Foster Carer Agency Fees,,01/04/2021," 3,704.40 ",321100,Social Community Care Supplies & Services - Children
5411958,THREE CIRCLES FOSTERING LTD,Childrens Services,Children's Services,Foster Carer Agency Fees,,01/04/2021," 3,607.20 ",321100,Social Community Care Supplies & Services - Children
5411957,THREE CIRCLES FOSTERING LTD,Childrens Services,Children's Services,Foster Carer Agency Fees,,01/04/2021," 3,607.20 ",321100,Social Community Care Supplies & Services - Children
5412006,THREE CIRCLES FOSTERING LTD,Childrens Services,Children's Services,Foster Carer Agency Fees,,01/04/2021," 1,640.00 ",321100,Social Community Care Supplies & Services - Children
5411695,COMMUNITY INTEGRATED CARE,Adult Social Care,Adults,Homecare Fees,,01/04/2021," 20,112.46 ",321000,Social Community Care Supplies & Services - Adult
5414467,ABLE CARE AND SUPPORT SERVICES LTD,Contingency,Contingency,COVID-19 Infection Control Fund,,01/04/2021," 18,676.10 ",321000,Social Community Care Supplies & Services - Adult
5412431,UNIVERSITY HOSPITALS BIRMINGHAM NHS FOUNDATION TRUST,Population Health,Population Health,Training Materials,,01/04/2021," 1,719.00 ",150000,Consultancy
5412429,UNIVERSITY HOSPITALS BIRMINGHAM NHS FOUNDATION TRUST,Population Health,Population Health,Training Course Costs,,01/04/2021, 678.00 ,150000,Consultancy
5411952,TURNING POINT,Adult Social Care,Adults,Homecare Fees,,01/04/2021," 176,557.34 ",321000,Social Community Care Supplies & Services - Adult
5411853,TURNING POINT,Adult Social Care,Adults,Homecare Fees,,01/04/2021," 1,848.77 ",321000,Social Community Care Supplies & Services - Adult
5412273,Redacted,Hosted Services,Hosted Services,Professional Services,Business Payment,01/04/2021," 1,000.00 ",260000,Human Resources
5412032,PLATINUM STAIRLIFTS LIMITED,Housing,Director of Place,Mandatory Adaptations Grant (DFG),,01/04/2021," 2,097.81 ",321000,Social Community Care Supplies & Services - Adult
5411722,PLATINUM STAIRLIFTS LIMITED,Housing,Director of Place,Mandatory Adaptations Grant (DFG),,01/04/2021," 2,125.00 ",321000,Social Community Care Supplies & Services - Adult
5411680,PLATINUM STAIRLIFTS LIMITED,Housing,Director of Place,Mandatory Adaptations Grant (DFG),,01/04/2021," 2,156.25 ",321000,Social Community Care Supplies & Services - Adult
5412242,PRISM MEDICAL UK,Housing,Director of Place,Specialist Works,,01/04/2021," 1,115.00 ",311600,Healthcare
5411725,CRJ TRUSTEES LIMITED,Place,Growth,Non-Authority Accommodation Rental,,01/04/2021," 20,562.50 ",200000,Financial Services
5414593,NEW CHARTER HOUSING TRUST GROUP,Childrens Services,Children's Services,Non-Authority Accommodation Rental,,01/04/2021," 3,143.13 ",-999999,Unclassifiable
5411809,FORENSIC TESTING SERVICE LTD,Childrens Services,Children's Services,Professional Medical Services,,01/04/2021," 1,029.20 ",180000,Environmental Services
5412461,FORENSIC TESTING SERVICE LTD,Childrens Services,Children's Services,Professional Medical Services,,01/04/2021, 996.67 ,180000,Environmental Services
5411843,ORACLE CARE LTD,Childrens Services,Children's Services,Childrens Homes Outside Local Authority Fees,,01/04/2021," 20,150.00 ",321100,Social Community Care Supplies & Services - Children
5411798,Redacted,(blank),(blank),Professional Entertainment Services,,01/04/2021," 1,760.00 ",-999999,Unclassifiable
5412069,NATIONAL FOSTERING AGENCY LTD,Childrens Services,Children's Services,Foster Carer Agency Fees,,01/04/2021," 3,200.12 ",321100,Social Community Care Supplies & Services - Children
5412079,NATIONAL FOSTERING AGENCY LTD,Childrens Services,Children's Services,Foster Carer Agency Fees,,01/04/2021," 2,793.00 ",321100,Social Community Care Supplies & Services - Children
5412031,NATIONAL FOSTERING AGENCY LTD,Childrens Services,Children's Services,Foster Carer Agency Fees,,01/04/2021," 2,815.12 ",321100,Social Community Care Supplies & Services - Children
5412027,NATIONAL FOSTERING AGENCY LTD,Childrens Services,Children's Services,Foster Carer Agency Fees,,01/04/2021," 2,815.12 ",321100,Social Community Care Supplies & Services - Children
5412073,NATIONAL FOSTERING AGENCY LTD,Childrens Services,Children's Services,Foster Carer Agency Fees,,01/04/2021," 3,155.60 ",321100,Social Community Care Supplies & Services - Children
5412026,NATIONAL FOSTERING AGENCY LTD,Childrens Services,Children's Services,Foster Carer Agency Fees,,01/04/2021," 2,906.96 ",321100,Social Community Care Supplies & Services - Children
5412336,STRUCTEC (NW) LTD,Housing,Director of Place,Mandatory Adaptations Grant (DFG),,01/04/2021," 4,512.97 ",321000,Social Community Care Supplies & Services - Adult
5412013,COMPUTEAM LTD,Individual Schools Budget,Children's Services,Computer Software,,01/04/2021," 11,645.80 ",270000,Information Communication Technology
5412286,COMPUTEAM LTD,Individual Schools Budget,Children's Services,Computer Hardware Maintenance Costs,,01/04/2021," 2,860.00 ",270000,Information Communication Technology
5412381,BRANAS ISAF LTD,Childrens Services,Children's Services,Childrens Homes Outside Local Authority Fees,,01/04/2021," 19,800.00 ",321100,Social Community Care Supplies & Services - Children
5412489,Redacted,Education,Children's Services,Professional Services,,01/04/2021," 1,100.00 ",170000,Education
5412469,JETMASTERS LTD,Operations and Neighbourhoods,Operations and Neighbourhoods,Training Course Costs,,01/04/2021," 1,500.00 ",261500,Human Resources
5412086,THE ADOLESCENT & CHILDRENS TRUST,Childrens Services,Children's Services,Foster Carer Agency Fees,,01/04/2021," 3,659.41 ",321100,Social Community Care Supplies & Services - Children
5412089,THE ADOLESCENT & CHILDRENS TRUST,Childrens Services,Children's Services,Foster Carer Agency Fees,,01/04/2021," 2,872.80 ",321100,Social Community Care Supplies & Services - Children
5412087,THE ADOLESCENT & CHILDRENS TRUST,Childrens Services,Children's Services,Foster Carer Agency Fees,,01/04/2021," 2,942.52 ",321100,Social Community Care Supplies & Services - Children
5412088,THE ADOLESCENT & CHILDRENS TRUST,Childrens Services,Children's Services,Foster Carer Agency Fees,,01/04/2021," 2,812.32 ",321100,Social Community Care Supplies & Services - Children
5412488,ROUTES HEALTHCARE (NORTH) LIMITED,Adult Social Care,Adults,Homecare Fees,,01/04/2021," 7,958.42 ",321100,Social Community Care Supplies & Services - Children
5412291,ROUTES HEALTHCARE (NORTH) LIMITED,Adult Social Care,Adults,Homecare Fees,,01/04/2021," 10,843.02 ",321100,Social Community Care Supplies & Services - Children
5412382,PRIME ACTIVE COMMUNITIES CIC,Operations and Neighbourhoods,Operations and Neighbourhoods,Grants to Organisations,,01/04/2021," 16,000.00 ",321100,Social Community Care Supplies & Services - Children
5411857,Redacted,Operations and Neighbourhoods,Operations and Neighbourhoods,Professional Entertainment Services,,01/04/2021," 1,500.00 ",290000,Arts & Leisure Services
5411870,DHL Parcel UK Ltd (UK Mail),Exchequer,Governance,Printing And Stationery,,01/04/2021," 2,983.94 ",300000,Mail Services
5411985,Olive Branch Fostering LTD,Childrens Services,Children's Services,Foster Carer Agency Fees,,01/04/2021," 2,697.03 ",321100,Social Community Care Supplies & Services - Children
5411852,Northern Community Pathways Limited,Childrens Services,Children's Services,Living With Formal Support,,01/04/2021," 12,000.00 ",321100,Social Community Care Supplies & Services - Children
5411989,Northern Community Pathways Limited,Childrens Services,Children's Services,Living With Formal Support,,01/04/2021," 2,680.00 ",321100,Social Community Care Supplies & Services - Children
5411943,Northern Community Pathways Limited,Childrens Services,Children's Services,Living With Formal Support,,01/04/2021," 2,680.00 ",321100,Social Community Care Supplies & Services - Children
5411911,Northern Community Pathways Limited,Childrens Services,Children's Services,Living With Formal Support,,01/04/2021," 3,080.00 ",321100,Social Community Care Supplies & Services - Children
5411983,Northern Community Pathways Limited,Childrens Services,Children's Services,Living With Formal Support,,01/04/2021," 2,680.00 ",321100,Social Community Care Supplies & Services - Children
5411884,Northern Community Pathways Limited,Childrens Services,Children's Services,Non-Authority Accommodation Rental,,01/04/2021," 2,308.00 ",321100,Social Community Care Supplies & Services - Children
5411907,Northern Community Pathways Limited,Childrens Services,Children's Services,Living With Formal Support,,01/04/2021," 2,280.00 ",321100,Social Community Care Supplies & Services - Children
5411994,Northern Community Pathways Limited,Childrens Services,Children's Services,Living With Formal Support,,01/04/2021," 2,680.00 ",321100,Social Community Care Supplies & Services - Children
5411883,Northern Community Pathways Limited,Childrens Services,Children's Services,Living With Formal Support,,01/04/2021," 2,600.00 ",321100,Social Community Care Supplies & Services - Children
5411886,Northern Community Pathways Limited,Childrens Services,Children's Services,Living With Formal Support,,01/04/2021," 2,540.00 ",321100,Social Community Care Supplies & Services - Children
5412108,Northern Community Pathways Limited,Childrens Services,Children's Services,Living With Formal Support,,01/04/2021," 2,090.00 ",321100,Social Community Care Supplies & Services - Children
5411916,Northern Community Pathways Limited,Childrens Services,Children's Services,Living With Formal Support,,01/04/2021," 2,204.20 ",321100,Social Community Care Supplies & Services - Children
5414976,Arrow Cabs LTD,Education,Children's Services,Transport Of Ola Pupils,,01/04/2021," 3,700.00 ",360000,Public Transport
5414985,Arrow Cabs LTD,Education,Children's Services,Transport Of Ola Pupils,,01/04/2021," 3,500.00 ",360000,Public Transport
5411789,Exclusec Security Solutions Ltd,Contingency,Contingency,Security Services,,01/04/2021," 4,455.50 ",-999999,Unclassifiable
5412003,Exclusec Security Solutions Ltd,Operations and Neighbourhoods,Operations and Neighbourhoods,Security Services,,01/04/2021," 18,947.50 ",-999999,Unclassifiable
5411779,Compass Fostering North LTD,Childrens Services,Children's Services,Foster Carer Agency Fees,,01/04/2021," 3,445.65 ",321100,Social Community Care Supplies & Services - Children
5411787,Compass Fostering North LTD,Childrens Services,Children's Services,Foster Carer Agency Fees,,01/04/2021," 3,613.67 ",321100,Social Community Care Supplies & Services - Children
5411777,Compass Fostering North LTD,Childrens Services,Children's Services,Foster Carer Agency Fees,,01/04/2021," 3,264.30 ",321100,Social Community Care Supplies & Services - Children
5411785,Compass Fostering North LTD,Childrens Services,Children's Services,Foster Carer Agency Fees,,01/04/2021," 3,365.55 ",321100,Social Community Care Supplies & Services - Children
5411783,Compass Fostering North LTD,Childrens Services,Children's Services,Foster Carer Agency Fees,,01/04/2021," 3,216.53 ",321100,Social Community Care Supplies & Services - Children
5411782,Compass Fostering North LTD,Childrens Services,Children's Services,Foster Carer Agency Fees,,01/04/2021," 2,996.46 ",321100,Social Community Care Supplies & Services - Children
5411788,Compass Fostering North LTD,Childrens Services,Children's Services,Foster Carer Agency Fees,,01/04/2021," 3,276.98 ",321100,Social Community Care Supplies & Services - Children
5411781,Compass Fostering North LTD,Childrens Services,Children's Services,Foster Carer Agency Fees,,01/04/2021," 3,264.30 ",321100,Social Community Care Supplies & Services - Children
5411775,Compass Fostering North LTD,Childrens Services,Children's Services,Foster Carer Agency Fees,,01/04/2021," 3,337.27 ",321100,Social Community Care Supplies & Services - Children
5412019,Bright Opportunities,Adult Social Care,Adults,Homecare Fees,,01/04/2021," 1,080.00 ",-999999,Unclassifiable
5412021,Bright Opportunities,Adult Social Care,Adults,Homecare Fees,,01/04/2021," 1,080.00 ",-999999,Unclassifiable
5411771,Northend Creative Print Solution,(blank),(blank),Professional Services,,01/04/2021," 3,512.00 ",190000,Facilities & Management Services
5414039,MANCHESTER CITY COUNCIL,Childrens Services,Children's Services,Professional Services,,01/04/2021," 1,133.00 ",UNCLASS,Unclassifiable
5411855,XMA LIMITED,Digital Tameside,Finance & IT,IT Equipment,,01/04/2021, 792.48 ,270000,Information Communication Technology
5412472,XMA LIMITED,Digital Tameside,Finance & IT,IT Equipment,,01/04/2021, 904.93 ,270000,Information Communication Technology
5411856,XMA LIMITED,Digital Tameside,Finance & IT,IT Equipment,,01/04/2021, 988.34 ,270000,Information Communication Technology
5412207,MOSSCARE HOUSING LTD,Childrens Services,Children's Services,Living With Formal Support,,01/04/2021, 727.48 ,321000,Social Community Care Supplies & Services - Adult
5412204,MOSSCARE HOUSING LTD,Childrens Services,Children's Services,Living With Formal Support,,01/04/2021, 727.48 ,321000,Social Community Care Supplies & Services - Adult
5412206,MOSSCARE HOUSING LTD,Childrens Services,Children's Services,Non-Authority Accommodation Rental,,01/04/2021, 687.04 ,321000,Social Community Care Supplies & Services - Adult
5412208,MOSSCARE HOUSING LTD,Childrens Services,Children's Services,Non-Authority Accommodation Rental,,01/04/2021, 687.04 ,321000,Social Community Care Supplies & Services - Adult
5412201,MOSSCARE HOUSING LTD,Childrens Services,Children's Services,Living With Formal Support,,01/04/2021, 727.48 ,321000,Social Community Care Supplies & Services - Adult
5412322,FOSTER CARE ASSOCIATES LTD (FCA),Childrens Services,Children's Services,Foster Carer Agency Fees,,01/04/2021," 6,172.72 ",321000,Social Community Care Supplies & Services - Adult
5412310,FOSTER CARE ASSOCIATES LTD (FCA),Childrens Services,Children's Services,Foster Carer Agency Fees,,01/04/2021," 4,411.30 ",321000,Social Community Care Supplies & Services - Adult
5412303,FOSTER CARE ASSOCIATES LTD (FCA),Childrens Services,Children's Services,Foster Carer Agency Fees,,01/04/2021," 3,237.02 ",321000,Social Community Care Supplies & Services - Adult
5412304,FOSTER CARE ASSOCIATES LTD (FCA),Childrens Services,Children's Services,Foster Carer Agency Fees,,01/04/2021," 4,029.69 ",321000,Social Community Care Supplies & Services - Adult
5412306,FOSTER CARE ASSOCIATES LTD (FCA),Childrens Services,Children's Services,Foster Carer Agency Fees,,01/04/2021," 4,029.69 ",321000,Social Community Care Supplies & Services - Adult
5412302,FOSTER CARE ASSOCIATES LTD (FCA),Childrens Services,Children's Services,Foster Carer Agency Fees,,01/04/2021," 3,412.94 ",321000,Social Community Care Supplies & Services - Adult
5412320,FOSTER CARE ASSOCIATES LTD (FCA),Childrens Services,Children's Services,Foster Carer Agency Fees,,01/04/2021," 3,414.65 ",321000,Social Community Care Supplies & Services - Adult
5412317,FOSTER CARE ASSOCIATES LTD (FCA),Childrens Services,Children's Services,Foster Carer Agency Fees,,01/04/2021," 3,936.38 ",321000,Social Community Care Supplies & Services - Adult
5412183,CLEAR SKIES SOFTWARE LTD,Operations and Neighbourhoods,Operations and Neighbourhoods,Professional Services,,01/04/2021," 1,950.00 ",270000,Information Communication Technology
5412187,CLEAR SKIES SOFTWARE LTD,Operations and Neighbourhoods,Operations and Neighbourhoods,IT Equipment,,01/04/2021, 650.00 ,270000,Information Communication Technology
5414611,DIRECT CARE (TAMESIDE) LTD,Adult Social Care,Adults,Homecare Fees,,01/04/2021," 41,845.01 ",321000,Social Community Care Supplies & Services - Adult
5412277,CARITAS CARE LTD,Childrens Services,Children's Services,Foster Carer Agency Fees,,01/04/2021," 2,214.33 ",321000,Social Community Care Supplies & Services - Adult
5412465,CARITAS CARE LTD,Childrens Services,Children's Services,Professional Services,,01/04/2021, 650.00 ,321000,Social Community Care Supplies & Services - Adult
5411895,PARALLEL PARENTS,Childrens Services,Children's Services,Foster Carer Agency Fees,,01/04/2021," 2,927.40 ",321100,Social Community Care Supplies & Services - Children
5411901,PARALLEL PARENTS,Childrens Services,Children's Services,Foster Carer Agency Fees,,01/04/2021," 3,530.24 ",321100,Social Community Care Supplies & Services - Children
5411910,PARALLEL PARENTS,Childrens Services,Children's Services,Foster Carer Agency Fees,,01/04/2021," 3,831.52 ",321100,Social Community Care Supplies & Services - Children
5411899,PARALLEL PARENTS,Childrens Services,Children's Services,Foster Carer Agency Fees,,01/04/2021," 3,438.96 ",321100,Social Community Care Supplies & Services - Children
5411919,PARALLEL PARENTS,Childrens Services,Children's Services,Foster Carer Agency Fees,,01/04/2021," 4,800.04 ",321100,Social Community Care Supplies & Services - Children
5411893,PARALLEL PARENTS,Childrens Services,Children's Services,Foster Carer Agency Fees,,01/04/2021," 2,900.80 ",321100,Social Community Care Supplies & Services - Children
5411921,PARALLEL PARENTS,Childrens Services,Children's Services,Foster Carer Agency Fees,,01/04/2021," 2,927.40 ",321100,Social Community Care Supplies & Services - Children
5411898,PARALLEL PARENTS,Childrens Services,Children's Services,Foster Carer Agency Fees,,01/04/2021," 3,438.96 ",321100,Social Community Care Supplies & Services - Children
5411920,PARALLEL PARENTS,Childrens Services,Children's Services,Foster Carer Agency Fees,,01/04/2021," 3,185.56 ",321100,Social Community Care Supplies & Services - Children
5411897,PARALLEL PARENTS,Childrens Services,Children's Services,Foster Carer Agency Fees,,01/04/2021," 2,604.84 ",321100,Social Community Care Supplies & Services - Children
5411912,PARALLEL PARENTS,Childrens Services,Children's Services,Foster Carer Agency Fees,,01/04/2021," 1,505.24 ",321100,Social Community Care Supplies & Services - Children
5411926,PARALLEL PARENTS,Childrens Services,Children's Services,Foster Carer Agency Fees,,01/04/2021," 2,872.80 ",321100,Social Community Care Supplies & Services - Children
5411915,PARALLEL PARENTS,Childrens Services,Children's Services,Foster Carer Agency Fees,,01/04/2021," 3,146.64 ",321100,Social Community Care Supplies & Services - Children
5411927,PARALLEL PARENTS,Childrens Services,Children's Services,Foster Carer Agency Fees,,01/04/2021," 3,550.96 ",321100,Social Community Care Supplies & Services - Children
5411923,PARALLEL PARENTS,Childrens Services,Children's Services,Foster Carer Agency Fees,,01/04/2021," 3,099.60 ",321100,Social Community Care Supplies & Services - Children
5411913,PARALLEL PARENTS,Childrens Services,Children's Services,Foster Carer Agency Fees,,01/04/2021," 2,604.84 ",321100,Social Community Care Supplies & Services - Children
5411776,PITNEY BOWES UK MAILING LTD,Exchequer,Governance,Postages,,01/04/2021, 979.75 ,300000,Mail Services
5414477,TAMESIDE SPORTS TRUST,Place,Growth,Other Accommodation Related Costs,,01/04/2021," 3,788.82 ",290000,Arts & Leisure Services
5414703,TAMESIDE SPORTS TRUST,Childrens Services,Children's Services,"Childrens Allowances (Weekly,Xmas,Festive,Clothing)",,01/04/2021," 1,000.00 ",290000,Arts & Leisure Services
5414476,TAMESIDE SPORTS TRUST,Place,Growth,Other Accommodation Related Costs,,01/04/2021," 8,333.33 ",290000,Arts & Leisure Services
5412100,TREASURED MEMORIES LTD,Operations and Neighbourhoods,Operations and Neighbourhoods,Plaques,,01/04/2021, 526.30 ,120000,Cemetery & Crematorium
5412105,Redacted,Adult Social Care,Adults,Homecare Fees,Redacted Supplier,01/04/2021," 1,973.12 ",321100,Social Community Care Supplies & Services - Children
5411665,Redacted,Childrens Services,Children's Services,Childrens Homes Outside Local Authority Fees,Redacted Supplier,01/04/2021," 11,000.08 ",321100,Social Community Care Supplies & Services - Children
5411676,CREATIVE SUPPORT LTD,Adult Social Care,Adults,Homecare Fees,,01/04/2021," 18,608.00 ",321000,Social Community Care Supplies & Services - Adult
5412094,Redacted,Childrens Services,Children's Services,Childrens Homes Outside Local Authority Fees,Redacted Supplier,01/04/2021," 10,580.08 ",321100,Social Community Care Supplies & Services - Children
5412103,Redacted,Childrens Services,Children's Services,Childrens Homes Outside Local Authority Fees,Redacted Supplier,01/04/2021," 10,580.08 ",321100,Social Community Care Supplies & Services - Children
5412099,Redacted,Childrens Services,Children's Services,Childrens Homes Outside Local Authority Fees,Redacted Supplier,01/04/2021," 12,780.04 ",321100,Social Community Care Supplies & Services - Children
5412095,Redacted,Childrens Services,Children's Services,Childrens Homes Outside Local Authority Fees,Redacted Supplier,01/04/2021," 2,096.25 ",321100,Social Community Care Supplies & Services - Children
5412092,Redacted,Childrens Services,Children's Services,Childrens Homes Outside Local Authority Fees,Redacted Supplier,01/04/2021," 16,499.84 ",321100,Social Community Care Supplies & Services - Children
5414923,EXPERIAN LTD,Policy and Communications,Governance,Computer Software,,01/04/2021," 14,720.49 ",200000,Financial Services
5412331,EQUIFAX LTD,Hosted Services,Hosted Services,Professional Services,,01/04/2021," 1,188.12 ",200000,Financial Services
5412494,ULVERSCROFT LARGE PRINT  BOOKS LTD,Operations and Neighbourhoods,Operations and Neighbourhoods,Purchase Books,,01/04/2021," 1,388.69 ",170000,Education
5412379,CAPITA BUSINESS SERVICES LIMITED,Education,Children's Services,Computer Software Maintenance Costs,,01/04/2021," 139,072.61 ",270000,Information Communication Technology
5412487,CAPITA BUSINESS SERVICES LIMITED,Exchequer,Governance,Computer Software Maintenance Costs,,01/04/2021," 31,861.32 ",270000,Information Communication Technology
5412474,DOLPHIN COMPUTER ACCESS LTD,Education,Children's Services,Educational Equipment,,01/04/2021," 2,725.00 ",271500,Information Communication Technology
5411756,DSG Retail Limited t/as Currys PC WORLD BUSINESS,Childrens Services,Children's Services,"Fixtures, Fittings & Furniture Purchase",,01/04/2021, 556.65 ,270000,Information Communication Technology
5411797,GIBSONS GARDEN MACHINERY LIMITED,Operations and Neighbourhoods,Operations and Neighbourhoods,General Equipment Purchase,,01/04/2021," 1,346.44 ",240000,Horticultural
5412014,SWIIS FOSTER CARE LTD,Childrens Services,Children's Services,Foster Carer Agency Fees,,01/04/2021, 722.47 ,321100,Social Community Care Supplies & Services - Children
5412090,SWIIS FOSTER CARE LTD,Childrens Services,Children's Services,Foster Carer Agency Fees,,01/04/2021, 722.47 ,321100,Social Community Care Supplies & Services - Children
5412005,SWIIS FOSTER CARE LTD,Childrens Services,Children's Services,Foster Carer Agency Fees,,01/04/2021," 1,694.98 ",321100,Social Community Care Supplies & Services - Children
5412091,SWIIS FOSTER CARE LTD,Childrens Services,Children's Services,Foster Carer Agency Fees,,01/04/2021, 711.76 ,321100,Social Community Care Supplies & Services - Children
5412010,SWIIS FOSTER CARE LTD,Childrens Services,Children's Services,Foster Carer Agency Fees,,01/04/2021, 760.48 ,321100,Social Community Care Supplies & Services - Children
5414433,TAMESIDE COLLEGE,Education,Children's Services,Post 16 FE College Fees,,01/04/2021," 229,445.97 ",UNCLASS,Unclassifiable
5412473,FAITH IN FAMILIES,Childrens Services,Children's Services,Adoption Agency Fees,,01/04/2021," 32,063.00 ",-999999,Unclassifiable
5414186,P J SPENCER (ELECTRICAL)  LTD,(blank),(blank),Building Works,,01/04/2021, 621.00 ,390000,"Works - Construction, Repair & Maintenance"
5414617,JACKSON & TAYLOR LTD,Housing,Director of Place,Mandatory Adaptations Grant (DFG),,01/04/2021," 5,534.20 ",390000,"Works - Construction, Repair & Maintenance"
5414573,MANLEC ELECTRICAL(MANCHESTER) LTD,Housing,Director of Place,Specialist Works,,01/04/2021," 1,144.00 ",390000,"Works - Construction, Repair & Maintenance"
5414314,MANLEC ELECTRICAL(MANCHESTER) LTD,Housing,Director of Place,Specialist Works,,01/04/2021, 575.00 ,390000,"Works - Construction, Repair & Maintenance"
5414585,MANLEC ELECTRICAL(MANCHESTER) LTD,Housing,Director of Place,Specialist Works,,01/04/2021, 540.00 ,390000,"Works - Construction, Repair & Maintenance"
5414583,MANLEC ELECTRICAL(MANCHESTER) LTD,Housing,Director of Place,Specialist Works,,01/04/2021, 840.00 ,390000,"Works - Construction, Repair & Maintenance"
5414578,MANLEC ELECTRICAL(MANCHESTER) LTD,Housing,Director of Place,Specialist Works,,01/04/2021, 849.00 ,390000,"Works - Construction, Repair & Maintenance"
5414322,MANLEC ELECTRICAL(MANCHESTER) LTD,Housing,Director of Place,Specialist Works,,01/04/2021, 650.00 ,390000,"Works - Construction, Repair & Maintenance"
5414320,MANLEC ELECTRICAL(MANCHESTER) LTD,Housing,Director of Place,Specialist Works,,01/04/2021, 760.00 ,390000,"Works - Construction, Repair & Maintenance"
5414579,MANLEC ELECTRICAL(MANCHESTER) LTD,Housing,Director of Place,Specialist Works,,01/04/2021, 760.00 ,390000,"Works - Construction, Repair & Maintenance"
5411935,WESLEY PROPERTIES (NORTHERN) LTD,Adult Social Care,Adults,Non-Authority Accommodation Rental,,01/04/2021," 1,361.18 ",190000,Facilities & Management Services
5412345,BEDSPACE RESOURCE LTD,Childrens Services,Children's Services,Living With Formal Support,,01/04/2021, 500.00 ,250000,Housing Management
5414130,BOLTON MBC,Education,Children's Services,Professional Services,,01/04/2021, 737.50 ,UNCLASS,Unclassifiable
5411764,TAMESIDE CITIZENS ADVICE BUREAU LTD,Operations and Neighbourhoods,Operations and Neighbourhoods,Grants to Citizens' Advice Bureau,,01/04/2021," 9,666.66 ",321000,Social Community Care Supplies & Services - Adult
5412476,VALE  ENGINEERING(YORK)LTD,Operations and Neighbourhoods,Operations and Neighbourhoods,Training Course Costs,,01/04/2021, 720.00 ,-999999,Unclassifiable
5414216,QUALITY PROTECTS CHILDREN LTD,Childrens Services,Children's Services,Childrens Homes Outside Local Authority Fees,,01/04/2021," 28,000.00 ",-999999,Unclassifiable
5412440,Redacted,Childrens Services,Children's Services,Childrens Homes Outside Local Authority Fees,Redacted Supplier,01/04/2021," 25,021.34 ",321100,Social Community Care Supplies & Services - Children
5412435,Redacted,Childrens Services,Children's Services,Childrens Homes Outside Local Authority Fees,Redacted Supplier,01/04/2021," 4,842.84 ",321100,Social Community Care Supplies & Services - Children
5414570,TAMESIDE ARTS LTD,Adult Social Care,Adults,Professional Services,,01/04/2021," 3,361.92 ",290000,Arts & Leisure Services
5411938,CROFT INVESTMENTS LTD,Adult Social Care,Adults,Non-Authority Accommodation Rental,,01/04/2021," 2,011.66 ",321000,Social Community Care Supplies & Services - Adult
5413693,ALPHA PLUS FOSTERING LIMITED,Childrens Services,Children's Services,Foster Carer Agency Fees,,01/04/2021," 5,300.12 ",321000,Social Community Care Supplies & Services - Adult
5412332,K P DODD CONSTRUCTION LTD,Housing,Director of Place,Mandatory Adaptations Grant (DFG),,01/04/2021, 985.00 ,399999,"Works - Construction, Repair & Maintenance"
5411768,K P DODD CONSTRUCTION LTD,Housing,Director of Place,Mandatory Adaptations Grant (DFG),,01/04/2021," 3,797.24 ",399999,"Works - Construction, Repair & Maintenance"
5414920,K P DODD CONSTRUCTION LTD,Childrens Services,Children's Services,Mandatory Adaptations Grant (DFG),,01/04/2021," 5,779.80 ",399999,"Works - Construction, Repair & Maintenance"
5412191,Redacted,Childrens Services,Children's Services,Childrens Homes Outside Local Authority Fees,Redacted Supplier,01/04/2021," 8,058.71 ",321100,Social Community Care Supplies & Services - Children
5414983,Luka Triangle Ltd,Individual Schools Budget,Children's Services,Professional Child Services,,06/04/2021," 9,450.00 ",179999,Education
5415319,THE MANCHESTER COLLEGE,Education,Children's Services,Post 16 FE College Fees,,06/04/2021," 42,073.88 ",400000,Non 3rd Party spend  
5415273,CYCLESCHEME LTD,(blank),(blank),Debits,,06/04/2021," 5,000.00 ",-999999,Unclassifiable
5415270,CYCLESCHEME LTD,(blank),(blank),Debits,,06/04/2021," 1,086.67 ",-999999,Unclassifiable
5415275,CYCLESCHEME LTD,(blank),(blank),Debits,,06/04/2021," 1,691.67 ",-999999,Unclassifiable
5414430,PERSON CENTRED CARE SERVICES LIMITED,Adult Social Care,Adults,Homecare Fees,,06/04/2021," 1,307.20 ",310000,Healthcare
5414431,PERSON CENTRED CARE SERVICES LIMITED,Adult Social Care,Adults,Homecare Fees,,06/04/2021," 1,241.84 ",310000,Healthcare
5415347,CURZON ASHTON FOOTBALL CLUB,Contingency,Contingency,Room Hire,,06/04/2021, 500.00 ,290000,Arts & Leisure Services
5412718,CITY LIFT SERVICES (NW) LTD,Adult Social Care,Adults,General Equipment Repair & Maintenance,,06/04/2021, 650.00 ,390000,"Works - Construction, Repair & Maintenance"
5413850,PLATINUM STAIRLIFTS LIMITED,Housing,Director of Place,Mandatory Adaptations Grant (DFG),,06/04/2021," 2,656.25 ",321000,Social Community Care Supplies & Services - Adult
5415579,NHS Manchester CCG,Contingency,Contingency,Contributions,,06/04/2021," 108,028.00 ",150000,Consultancy
5414354,TRAFFORD MBC,Population Health,Population Health,External Secondments,,06/04/2021," 12,500.00 ",UNCLASS,Unclassifiable
5414291,STOCKPORT MBC,Population Health,Population Health,Professional Services,,06/04/2021," 106,606.10 ",321100,Social Community Care Supplies & Services - Children
5414332,STOCKPORT MBC,Population Health,Population Health,Professional Services,,06/04/2021," 106,606.10 ",321100,Social Community Care Supplies & Services - Children
5412430,CPC,Digital Tameside,Finance & IT,Network Equipment/Setup,,06/04/2021," 1,322.00 ",270000,Information Communication Technology
5415331,HAMILTON PROPERTIES,Adult Social Care,Adults,Non-Authority Accommodation Rental,,06/04/2021," 1,565.96 ",250000,Housing Management
5412548,Co-Operative Network Infrastructure,(blank),(blank),Fibre Works,,07/04/2021," 2,950.00 ",-999999,Unclassifiable
470902,AGGREGATE INDUSTRIES UK LIMITED,Operations and Neighbourhoods,Operations and Neighbourhoods,General Materials,,07/04/2021," 2,533.49 ",230000,Highway Equipment & Materials
470902,ARCO LIMITED,Operations and Neighbourhoods,Operations and Neighbourhoods,General Materials,,07/04/2021," 1,270.92 ",140000,Clothing
470902,KEN TAYLOR SUPPLIES LTD,Operations and Neighbourhoods,Operations and Neighbourhoods,General Materials,,07/04/2021, 571.37 ,-999999,Unclassifiable
470902,TARMAC CENTRAL LIMITED,Operations and Neighbourhoods,Operations and Neighbourhoods,General Materials,,07/04/2021," 5,449.25 ",230000,Highway Equipment & Materials
470902,TOTALLY LOCAL COMPANY LIMITED,Operations and Neighbourhoods,Operations and Neighbourhoods,Tipping Facility Fees,,07/04/2021, 820.00 ,190000,Facilities & Management Services
470902,COLAS LTD,Civil Engineers,Director of Place,Debits Goods Received,,07/04/2021, 700.80 ,230000,Highway Equipment & Materials
470902,NORTHWEST UTILITY SOLUTIONS LTD,Operations and Neighbourhoods,Operations and Neighbourhoods,Sub-contractor Services,,07/04/2021," 12,750.15 ",370000,Utilities
470902,TRAFFIC DIRECT LTD,Operations and Neighbourhoods,Operations and Neighbourhoods,Sub-contractor Services,,07/04/2021," 1,200.00 ",350000,Street & Traffic Management
470902,Bloom Procurement Services Limited,(blank),(blank),Street Lighting Works,,07/04/2021," 18,333.00 ",150000,Consultancy
470902,REDIWELD RUBBER & PLASTICS LIMITED,(blank),(blank),General Materials,,07/04/2021," 5,307.00 ",-999999,Unclassifiable
5412377,Central Chambers,Childrens Services,Children's Services,Legal Fees,,07/04/2021," 1,250.00 ",280000,Legal Services
5412552,FROSTBITE REFRIGERATION LTD,Operations and Neighbourhoods,Operations and Neighbourhoods,Other Accommodation Related Costs,,07/04/2021," 1,220.00 ",-999999,Unclassifiable
5412553,FROSTBITE REFRIGERATION LTD,Operations and Neighbourhoods,Operations and Neighbourhoods,Other Accommodation Related Costs,,07/04/2021," 1,000.00 ",-999999,Unclassifiable
5412587,Komplex Community Ltd,Childrens Services,Children's Services,Childrens Homes Outside Local Authority Fees,,07/04/2021," 12,000.00 ",-999999,Unclassifiable
5412562,Wellbeing Property Solutions Ltd,Childrens Services,Children's Services,Childrens Homes Outside Local Authority Fees,,07/04/2021, 700.00 ,261000,Human Resources
5412561,Positive Care Solutions Ltd,Childrens Services,Children's Services,Childrens Homes Outside Local Authority Fees,,07/04/2021," 8,371.42 ",261000,Human Resources
5412589,Beyond Psychology Ltd,Childrens Services,Children's Services,Professional Services,,07/04/2021," 1,790.00 ",MEDICAL,Medical
5415599,NSL LIMITED,Operations and Neighbourhoods,Operations and Neighbourhoods,General Materials,,07/04/2021," 51,987.53 ",350000,Street & Traffic Management
5412536,Redacted,Childrens Services,Children's Services,Professional Consultancy Services,Redacted Supplier,07/04/2021," 3,689.20 ",321100,Social Community Care Supplies & Services - Children
5415583,Redacted,Childrens Services,Children's Services,Professional Consultancy Services,Redacted Supplier,07/04/2021," 2,121.25 ",321100,Social Community Care Supplies & Services - Children
5415373,Redacted,Childrens Services,Children's Services,Professional Consultancy Services,Redacted Supplier,07/04/2021," 1,588.00 ",321100,Social Community Care Supplies & Services - Children
5415374,Redacted,Childrens Services,Children's Services,Professional Consultancy Services,Redacted Supplier,07/04/2021," 1,114.90 ",321100,Social Community Care Supplies & Services - Children
5414861,Redacted,Childrens Services,Children's Services,Professional Services,Redacted Supplier,07/04/2021," 2,752.56 ",321100,Social Community Care Supplies & Services - Children
5415375,Redacted,Childrens Services,Children's Services,Professional Consultancy Services,Redacted Supplier,07/04/2021," 1,789.20 ",321100,Social Community Care Supplies & Services - Children
5412515,FOSTERING SOLUTIONS LTD,Childrens Services,Children's Services,Foster Carer Agency Fees,,07/04/2021," 3,528.73 ",321000,Social Community Care Supplies & Services - Adult
5412502,FOSTERING SOLUTIONS LTD,Childrens Services,Children's Services,Foster Carer Agency Fees,,07/04/2021," 3,344.64 ",321000,Social Community Care Supplies & Services - Adult
5412500,FOSTERING SOLUTIONS LTD,Childrens Services,Children's Services,Foster Carer Agency Fees,,07/04/2021," 2,987.11 ",321000,Social Community Care Supplies & Services - Adult
5412505,FOSTERING SOLUTIONS LTD,Childrens Services,Children's Services,Foster Carer Agency Fees,,07/04/2021," 3,302.52 ",321000,Social Community Care Supplies & Services - Adult
5412521,FOSTERING SOLUTIONS LTD,Childrens Services,Children's Services,Foster Carer Agency Fees,,07/04/2021," 3,491.89 ",321000,Social Community Care Supplies & Services - Adult
5412512,FOSTERING SOLUTIONS LTD,Childrens Services,Children's Services,Foster Carer Agency Fees,,07/04/2021," 3,609.33 ",321000,Social Community Care Supplies & Services - Adult
5412514,FOSTERING SOLUTIONS LTD,Childrens Services,Children's Services,Foster Carer Agency Fees,,07/04/2021," 3,528.73 ",321000,Social Community Care Supplies & Services - Adult
5412509,FOSTERING SOLUTIONS LTD,Childrens Services,Children's Services,Foster Carer Agency Fees,,07/04/2021," 3,428.86 ",321000,Social Community Care Supplies & Services - Adult
5412511,FOSTERING SOLUTIONS LTD,Childrens Services,Children's Services,Foster Carer Agency Fees,,07/04/2021," 3,387.04 ",321000,Social Community Care Supplies & Services - Adult
5412504,FOSTERING SOLUTIONS LTD,Childrens Services,Children's Services,Foster Carer Agency Fees,,07/04/2021," 2,924.09 ",321000,Social Community Care Supplies & Services - Adult
5412519,FOSTERING SOLUTIONS LTD,Childrens Services,Children's Services,Foster Carer Agency Fees,,07/04/2021," 2,924.09 ",321000,Social Community Care Supplies & Services - Adult
5412522,FOSTERING SOLUTIONS LTD,Childrens Services,Children's Services,Foster Carer Agency Fees,,07/04/2021," 2,987.11 ",321000,Social Community Care Supplies & Services - Adult
5412507,FOSTERING SOLUTIONS LTD,Childrens Services,Children's Services,Foster Carer Agency Fees,,07/04/2021," 3,144.33 ",321000,Social Community Care Supplies & Services - Adult
5412563,VIP-SYSTEM LIMITED,Operations and Neighbourhoods,Operations and Neighbourhoods,Printing And Stationery,,07/04/2021," 1,009.46 ",380000,Vehicle Management
5412591,AECOM LTD,(blank),(blank),External  Consultants,,07/04/2021," 23,640.00 ",-999999,Unclassifiable
5412569,FOSTERING PEOPLE LTD,Childrens Services,Children's Services,Foster Carer Agency Fees,,07/04/2021," 3,254.61 ",321100,Social Community Care Supplies & Services - Children
5412570,BOLINDA UK LIMITED,Operations and Neighbourhoods,Operations and Neighbourhoods,Digital Materials,,07/04/2021, 997.15 ,170000,Education
5412483,BRANAS ISAF LTD,Childrens Services,Children's Services,Childrens Homes Outside Local Authority Fees,,07/04/2021," 19,600.00 ",321100,Social Community Care Supplies & Services - Children
5412470,Dukinfield Medical Practice,Population Health,Population Health,Local Enhanced Services,,07/04/2021," 2,100.00 ",321000,Social Community Care Supplies & Services - Adult
5412547,MOSSCARE HOUSING LTD,Adult Social Care,Adults,Non-Authority Accommodation Rental,,07/04/2021," 30,570.37 ",321000,Social Community Care Supplies & Services - Adult
5414699,CREATIVE SUPPORT LTD,Adult Social Care,Adults,Homecare Fees,,07/04/2021," 12,422.91 ",321000,Social Community Care Supplies & Services - Adult
5412530,CHILD ACTION NORTHWEST,Childrens Services,Children's Services,Professional Child Services,,07/04/2021, 618.50 ,-999999,Unclassifiable
5412529,CHILD ACTION NORTHWEST,Adult Social Care,Adults,Professional Services,,07/04/2021, 807.08 ,-999999,Unclassifiable
5412525,K P DODD CONSTRUCTION LTD,Place,Growth,Specialist Works,,07/04/2021, 675.00 ,399999,"Works - Construction, Repair & Maintenance"
3250807,BURNT TREE GROUP LIMITED,Operations and Neighbourhoods,Operations and Neighbourhoods,Additional Hire,,08/04/2021, 564.80 ,380000,Vehicle Management
3250807,DENNIS EAGLE LTD,Operations and Neighbourhoods,Operations and Neighbourhoods,General Materials,,08/04/2021," 1,164.24 ",380000,Vehicle Management
3250807,TERBERG MATEC UK LTD,Operations and Neighbourhoods,Operations and Neighbourhoods,General Materials,,08/04/2021," 1,871.18 ",180000,Environmental Services
3250807,JOHNSONS APPARELMASTER LTD,Operations and Neighbourhoods,Operations and Neighbourhoods,Protective Clothing,,08/04/2021, 569.20 ,141300,Clothing
3250807,RIVERSIDE TRUCK RENTAL LIMITED,Operations and Neighbourhoods,Operations and Neighbourhoods,Additional Hire,,08/04/2021," 4,296.00 ",380000,Vehicle Management
3250807,PETER DOUGLASS PLATFORMS,Operations and Neighbourhoods,Operations and Neighbourhoods,Replacement Hire,,08/04/2021," 1,610.00 ",380000,Vehicle Management
3250807,HTF TYRE SERVICES LTD,Operations and Neighbourhoods,Operations and Neighbourhoods,Tyre Costs,,08/04/2021," 1,168.85 ",380000,Vehicle Management
3250807,GARIC LTD,Operations and Neighbourhoods,Operations and Neighbourhoods,Additional Hire,,08/04/2021," 4,172.20 ",-999999,Unclassifiable
3250807,ECON ENGINEERING LTD,Transport,Director of Place,Vehicles,,08/04/2021," 169,804.77 ",380000,Vehicle Management
3250807,ECLIPSE AUTOMOTIVE TECHNOLOGY LTD,Operations and Neighbourhoods,Operations and Neighbourhoods,General Equipment Repair & Maintenance,,08/04/2021," 1,830.00 ",381400,Vehicle Management
5412680,CMA Training,Operations and Neighbourhoods,Operations and Neighbourhoods,Professional Services,,08/04/2021," 2,500.00 ",260000,Human Resources
5415178,ISW CSC Limited,Childrens Services,Children's Services,Living With Formal Support,,08/04/2021," 1,070.00 ",260000,Human Resources
5415171,ISW CSC Limited,Childrens Services,Children's Services,Living With Formal Support,,08/04/2021, 980.00 ,260000,Human Resources
5414842,Bloom Procurement Services Limited,Tameside Investment Partnership,Director of Place,Professional Services,,08/04/2021," 14,210.53 ",150000,Consultancy
5414837,SEDGEMOOR DISTRICT COUNCIL,Hosted Services,Hosted Services,Professional Consultancy Services,,08/04/2021," 2,426.00 ",-999999,Unclassifiable
5414836,SEDGEMOOR DISTRICT COUNCIL,Hosted Services,Hosted Services,Professional Consultancy Services,,08/04/2021," 3,010.00 ",-999999,Unclassifiable
5414834,SEDGEMOOR DISTRICT COUNCIL,Hosted Services,Hosted Services,Professional Consultancy Services,,08/04/2021," 4,010.00 ",-999999,Unclassifiable
5414835,SEDGEMOOR DISTRICT COUNCIL,Hosted Services,Hosted Services,Professional Consultancy Services,,08/04/2021," 1,410.00 ",-999999,Unclassifiable
5412773,LOCAL CARE FORCE,Adult Social Care,Adults,Homecare Fees,,08/04/2021, 567.00 ,310000,Healthcare
5412774,Warrington 8 Limited,Place,Growth,Non-Authority Accommodation Rental,,08/04/2021," 9,387.50 ",202000,Financial Services
5412774,Warrington 8 Limited,Place,Growth,Other Accommodation Related Costs,,08/04/2021, 711.90 ,202000,Financial Services
5415957,SMT Projects,Place,Growth,Professional Services,,08/04/2021," 3,672.00 ",-999999,Unclassifiable
5412710,PLASTIC FORMERS Ltd,Adult Social Care,Adults,General Materials,,08/04/2021, 607.32 ,-999999,Unclassifiable
5412706,PLASTIC FORMERS Ltd,Adult Social Care,Adults,General Materials,,08/04/2021, 557.96 ,-999999,Unclassifiable
5412712,Griffin Care Training,People and Workforce Development,Governance,Training Course Costs,,08/04/2021, 500.00 ,170000,Education
5412715,Griffin Care Training,People and Workforce Development,Governance,Training Course Costs,,08/04/2021," 1,000.00 ",170000,Education
5412722,Amore Social Care Ltd,Childrens Services,Children's Services,Childrens Homes Outside Local Authority Fees,,08/04/2021," 5,916.00 ",310000,Healthcare
5412627,Amore Social Care Ltd,Childrens Services,Children's Services,Childrens Homes Outside Local Authority Fees,,08/04/2021," 5,614.00 ",310000,Healthcare
5415206,MOSSLEY PRIVATE HIRE,Education,Children's Services,Transport Of Ola Pupils,,08/04/2021," 2,967.00 ",360000,Public Transport
5415202,MOSSLEY PRIVATE HIRE,Education,Children's Services,Transport Of Pupils,,08/04/2021," 2,875.00 ",360000,Public Transport
5415208,MOSSLEY PRIVATE HIRE,Education,Children's Services,Transport Of Pupils,,08/04/2021," 2,875.00 ",360000,Public Transport
5415210,MOSSLEY PRIVATE HIRE,Education,Children's Services,Transport Of Pupils,,08/04/2021," 2,875.00 ",360000,Public Transport
5415207,MOSSLEY PRIVATE HIRE,Education,Children's Services,Transport Of Pupils,,08/04/2021," 2,875.00 ",360000,Public Transport
5415204,MOSSLEY PRIVATE HIRE,Education,Children's Services,Transport Of Pupils,,08/04/2021," 3,450.00 ",360000,Public Transport
5415199,MOSSLEY PRIVATE HIRE,Education,Children's Services,Transport Of Pupils,,08/04/2021," 1,610.00 ",360000,Public Transport
5415201,MOSSLEY PRIVATE HIRE,Education,Children's Services,Transport Of Pupils,,08/04/2021," 2,702.50 ",360000,Public Transport
5412698,AUTISM INITIATIVES (UK),Adult Social Care,Adults,Homecare Fees,,08/04/2021, 908.28 ,321100,Social Community Care Supplies & Services - Children
5412699,AUTISM INITIATIVES (UK),Adult Social Care,Adults,Homecare Fees,,08/04/2021," 2,899.68 ",321100,Social Community Care Supplies & Services - Children
5412697,AUTISM INITIATIVES (UK),Adult Social Care,Adults,Homecare Fees,,08/04/2021," 2,899.68 ",321100,Social Community Care Supplies & Services - Children
5412754,BOOTS UK LTD,Population Health,Population Health,Local Enhanced Services,,08/04/2021, 616.65 ,150000,Consultancy
5415333,HUGH MASON PROPERTIES LIMITED,Adult Social Care,Adults,Non-Authority Accommodation Rental,,08/04/2021," 2,468.23 ",190000,Facilities & Management Services
5415339,HUGH MASON PROPERTIES LIMITED,Adult Social Care,Adults,Non-Authority Accommodation Rental,,08/04/2021," 2,450.46 ",190000,Facilities & Management Services
5415326,HUGH MASON PROPERTIES LIMITED,Adult Social Care,Adults,Non-Authority Accommodation Rental,,08/04/2021," 2,689.73 ",190000,Facilities & Management Services
5412762,POSITIVE STEPS OLDHAM,Place,Growth,Professional Services,,08/04/2021," 38,219.18 ",261400,Human Resources
5412763,POSITIVE STEPS OLDHAM,Place,Growth,Contributions,,08/04/2021," 5,500.00 ",261400,Human Resources
5416028,PEOPLE FIRST TAMESIDE,Adult Social Care,Adults,Homecare Fees,,08/04/2021, 963.36 ,321000,Social Community Care Supplies & Services - Adult
5416029,PEOPLE FIRST TAMESIDE,Adult Social Care,Adults,Homecare Fees,,08/04/2021, 826.56 ,321000,Social Community Care Supplies & Services - Adult
5416030,PEOPLE FIRST TAMESIDE,Adult Social Care,Adults,Homecare Fees,,08/04/2021," 1,180.80 ",321000,Social Community Care Supplies & Services - Adult
5414005,Inspired Spaces (ProjectCo1) LTD,(blank),(blank),New Accommodation Works,,08/04/2021," 24,431.00 ",390000,"Works - Construction, Repair & Maintenance"
5415334,NORTHERN PROPERTIES LTD,Adult Social Care,Adults,Non-Authority Accommodation Rental,,08/04/2021," 1,959.94 ",190000,Facilities & Management Services
5415363,COMFORT CALL LIMITED,Adult Social Care,Adults,Homecare Fees,,08/04/2021," 226,885.87 ",310000,Healthcare
5414008,INSPIREDSPACES TAMESIDE (PROJECTCO2) LTD,(blank),(blank),New Accommodation Works,,08/04/2021," 142,763.92 ",170000,Education
5412713,RNIB Enterprises,Adult Social Care,Adults,IT Equipment,,08/04/2021, 713.70 ,-999999,Unclassifiable
5412617,PLAYSAFETY LIMITED,Operations and Neighbourhoods,Operations and Neighbourhoods,Training Course Costs,,08/04/2021," 1,033.00 ",330000,Sports & Playground Equipment & Maintenance
5412595,THE GUINNESS PARTNERSHIP LTD,Adult Social Care,Adults,Non-Authority Accommodation Rental,,08/04/2021," 4,986.80 ",250000,Housing Management
5412594,THE GUINNESS PARTNERSHIP LTD,Adult Social Care,Adults,Non-Authority Accommodation Rental,,08/04/2021," 1,433.81 ",250000,Housing Management
5412568,CURZON ASHTON FOOTBALL CLUB,Contingency,Contingency,Room Hire,,08/04/2021," 1,000.00 ",290000,Arts & Leisure Services
5415335,HOMES FOR LIFE LTD,Adult Social Care,Adults,Non-Authority Accommodation Rental,,08/04/2021, 890.52 ,-999999,Unclassifiable
5415322,HOMES FOR LIFE LTD,Adult Social Care,Adults,Non-Authority Accommodation Rental,,08/04/2021, 890.52 ,-999999,Unclassifiable
5415336,HOMES FOR LIFE LTD,Adult Social Care,Adults,Non-Authority Accommodation Rental,,08/04/2021, 890.52 ,-999999,Unclassifiable
5415337,HOMES FOR LIFE LTD,Adult Social Care,Adults,Non-Authority Accommodation Rental,,08/04/2021, 808.19 ,-999999,Unclassifiable
5415327,HOMES FOR LIFE LTD,Adult Social Care,Adults,Non-Authority Accommodation Rental,,08/04/2021, 817.08 ,-999999,Unclassifiable
5412717,CITY LIFT SERVICES (NW) LTD,Adult Social Care,Adults,General Equipment Repair & Maintenance,,08/04/2021, 952.00 ,390000,"Works - Construction, Repair & Maintenance"
5415426,ABLE CARE AND SUPPORT SERVICES LTD,Adult Social Care,Adults,Homecare Fees,,08/04/2021," 11,899.46 ",321000,Social Community Care Supplies & Services - Adult
5412769,UK CONTAINER MAINTENANCE LTD,Operations and Neighbourhoods,Operations and Neighbourhoods,Purchase Wheeled Bins,,08/04/2021," 3,783.28 ",390000,"Works - Construction, Repair & Maintenance"
5412890,FORENSIC TESTING SERVICE LTD,Childrens Services,Children's Services,Professional Medical Services,,08/04/2021," 1,023.80 ",180000,Environmental Services
5414808,INSPIREDSPACES TAMESIDE LTD,Asset & Investment Partnership Management,Growth,Free School Meal Costs,,08/04/2021," 2,881.44 ",390000,"Works - Construction, Repair & Maintenance"
5414812,INSPIREDSPACES TAMESIDE LTD,Place,Growth,Fees,,08/04/2021," 3,115.67 ",390000,"Works - Construction, Repair & Maintenance"
5414812,INSPIREDSPACES TAMESIDE LTD,Place,Growth,Food & Refreshments,,08/04/2021," 139,515.73 ",390000,"Works - Construction, Repair & Maintenance"
5414841,INSPIREDSPACES TAMESIDE LTD,(blank),(blank),Fees,,08/04/2021," 157,869.47 ",390000,"Works - Construction, Repair & Maintenance"
5414838,INSPIREDSPACES TAMESIDE LTD,(blank),(blank),Survey/Surveyors Fees,,08/04/2021, 868.22 ,390000,"Works - Construction, Repair & Maintenance"
5414848,INSPIREDSPACES TAMESIDE LTD,(blank),(blank),Fees,,08/04/2021," 1,602.92 ",390000,"Works - Construction, Repair & Maintenance"
5414448,INSPIREDSPACES TAMESIDE LTD,(blank),(blank),Fees,,08/04/2021," 12,035.18 ",390000,"Works - Construction, Repair & Maintenance"
5414450,INSPIREDSPACES TAMESIDE LTD,(blank),(blank),Fees,,08/04/2021," 11,424.00 ",390000,"Works - Construction, Repair & Maintenance"
5414208,INSPIREDSPACES TAMESIDE LTD,Place,Growth,Security Services,,08/04/2021," 5,908.54 ",390000,"Works - Construction, Repair & Maintenance"
5414321,INSPIREDSPACES TAMESIDE LTD,Contingency,Contingency,General Office Expenses,,08/04/2021," 3,051.89 ",390000,"Works - Construction, Repair & Maintenance"
5414832,INSPIREDSPACES TAMESIDE LTD,Place,Growth,Food & Refreshments,,08/04/2021, 686.62 ,390000,"Works - Construction, Repair & Maintenance"
5414839,INSPIREDSPACES TAMESIDE LTD,(blank),(blank),Fees,,08/04/2021," 180,369.65 ",390000,"Works - Construction, Repair & Maintenance"
5414817,INSPIREDSPACES TAMESIDE LTD,(blank),(blank),Fees,,08/04/2021," 1,275.00 ",390000,"Works - Construction, Repair & Maintenance"
5414207,INSPIREDSPACES TAMESIDE LTD,Place,Growth,Security Services,,08/04/2021," 16,807.56 ",390000,"Works - Construction, Repair & Maintenance"
5414036,MEDACS HEALTHCARE,Contingency,Contingency,COVID-19 Infection Control Fund,,08/04/2021," 23,463.77 ",150000,Consultancy
5413981,CARELINE HOMECARE LTD,Adult Social Care,Adults,Homecare Fees,,08/04/2021," 23,238.00 ",321000,Social Community Care Supplies & Services - Adult
5413986,CARELINE HOMECARE LTD,Adult Social Care,Adults,Homecare Fees,,08/04/2021," 23,238.00 ",321000,Social Community Care Supplies & Services - Adult
5415408,CARELINE HOMECARE LTD,Adult Social Care,Adults,Homecare Fees,,08/04/2021," 23,238.00 ",321000,Social Community Care Supplies & Services - Adult
5412669,BARNARDO SERVICES LIMITED,Childrens Services,Children's Services,Professional Services,,08/04/2021," 18,555.83 ",321100,Social Community Care Supplies & Services - Children
5415976,Redacted,Childrens Services,Children's Services,Nursery Services,,08/04/2021, 707.00 ,170000,Education
5414829,STOCKPORT MBC,Population Health,Population Health,Contributions,,08/04/2021," 1,112.00 ",321100,Social Community Care Supplies & Services - Children
5414830,STOCKPORT MBC,Population Health,Population Health,Professional Services,,08/04/2021," 26,692.00 ",321100,Social Community Care Supplies & Services - Children
5412656,MANCHESTER METROPOLITAN UNIVERSITY,People and Workforce Development,Governance,Training Course Costs,,08/04/2021, 800.00 ,260000,Human Resources
5415259,TAMESIDE SPORTS TRUST,Childrens Services,Children's Services,Community Based Activities,,08/04/2021," 6,860.00 ",290000,Arts & Leisure Services
5413919,CREATIVE SUPPORT LTD,Adult Social Care,Adults,Homecare Fees,,08/04/2021," 12,568.76 ",321000,Social Community Care Supplies & Services - Adult
5415605,CREATIVE SUPPORT LTD,Adult Social Care,Adults,Age Concern Fees,,08/04/2021," 34,775.09 ",321000,Social Community Care Supplies & Services - Adult
5413921,CREATIVE SUPPORT LTD,Contingency,Contingency,COVID-19 Infection Control Fund,,08/04/2021," 37,722.52 ",321000,Social Community Care Supplies & Services - Adult
5412657,GL EDUCATION GROUP,Population Health,Population Health,Training Materials,,08/04/2021," 2,619.44 ",170000,Education
5414982,TAMESIDE COLLEGE,(blank),(blank),Grants to Organisations,,08/04/2021," 32,610.00 ",UNCLASS,Unclassifiable
5415200,A & E FURNITURE LTD T.A THE PAVILION,Childrens Services,Children's Services,"Fixtures,Fittings & Furniture Purchase (Service Users)",,08/04/2021, 504.00 ,210000,Furniture & Soft Furnishings
5412614,PERPETUAL FOSTERING,Childrens Services,Children's Services,Laundry,,08/04/2021," 2,170.00 ",321100,Social Community Care Supplies & Services - Children
5415329,STAMFORD PROPERTIES,Adult Social Care,Adults,Non-Authority Accommodation Rental,,08/04/2021," 1,011.83 ",-999999,Unclassifiable
5415328,STAMFORD PROPERTIES,Adult Social Care,Adults,Non-Authority Accommodation Rental,,08/04/2021," 2,507.19 ",-999999,Unclassifiable
5412693,KEYSOFT SOLUTIONS LTD,Operations and Neighbourhoods,Operations and Neighbourhoods,Licences,,08/04/2021," 3,360.00 ",270000,Information Communication Technology
5412613,TAMESIDE ARTS LTD,Adult Social Care,Adults,Professional Services,,08/04/2021," 3,361.92 ",290000,Arts & Leisure Services
5413691,ALPHA PLUS FOSTERING LIMITED,Childrens Services,Children's Services,Foster Carer Agency Fees,,08/04/2021," 5,867.99 ",321000,Social Community Care Supplies & Services - Adult
5412897,Water Plus,Place,Growth,Water (Metered and Rates),,08/04/2021," 2,203.11 ",370000,Utilities
5412900,Water Plus,Place,Growth,Water (Metered and Rates),,08/04/2021, 861.02 ,370000,Utilities
5412913,Water Plus,Place,Growth,Water (Metered and Rates),,08/04/2021, 611.55 ,370000,Utilities
5412908,Water Plus,Place,Growth,Water (Metered and Rates),,08/04/2021," 1,096.58 ",370000,Utilities
5412886,COOLSPIRIT LTD,Digital Tameside,Finance & IT,Computer Hardware Purchase,,09/04/2021," 9,639.40 ",270000,Information Communication Technology
5413050,WRIGHT ROBINSON COLLEGE,Education,Children's Services,Other Local Authorities Fees,,09/04/2021," 22,692.00 ",908001,Public Bodies
5413197,Advantage Healthcare Limited,Childrens Services,Children's Services,Homecare Fees,,09/04/2021," 2,196.69 ",321100,Social Community Care Supplies & Services - Children
5412970,Co-Operative Network Infrastructure,Digital Tameside,Finance & IT,Network Maintenance/Rental,,09/04/2021," 2,950.00 ",-999999,Unclassifiable
5413052,Redacted,Operations and Neighbourhoods,Operations and Neighbourhoods,Professional Entertainment Services,,09/04/2021, 640.00 ,400000,Non 3rd Party spend  
5415173,ISW CSC Limited,Childrens Services,Children's Services,Living With Formal Support,,09/04/2021, 980.00 ,260000,Human Resources
5415189,ISW CSC Limited,Childrens Services,Children's Services,Living With Formal Support,,09/04/2021, 980.00 ,260000,Human Resources
5415186,ISW CSC Limited,Childrens Services,Children's Services,Living With Formal Support,,09/04/2021," 1,250.00 ",260000,Human Resources
5415177,ISW CSC Limited,Childrens Services,Children's Services,Living With Formal Support,,09/04/2021, 950.00 ,260000,Human Resources
5415185,ISW CSC Limited,Childrens Services,Children's Services,Living With Formal Support,,09/04/2021, 765.00 ,260000,Human Resources
5415183,ISW CSC Limited,Childrens Services,Children's Services,Living With Formal Support,,09/04/2021, 850.00 ,260000,Human Resources
5415184,ISW CSC Limited,Childrens Services,Children's Services,Living With Formal Support,,09/04/2021," 1,250.00 ",260000,Human Resources
5415169,ISW CSC Limited,Childrens Services,Children's Services,Living With Formal Support,,09/04/2021, 870.00 ,260000,Human Resources
5415179,ISW CSC Limited,Childrens Services,Children's Services,Living With Formal Support,,09/04/2021," 1,250.00 ",260000,Human Resources
5415188,ISW CSC Limited,Childrens Services,Children's Services,Living With Formal Support,,09/04/2021," 1,160.00 ",260000,Human Resources
5415180,ISW CSC Limited,Childrens Services,Children's Services,Living With Formal Support,,09/04/2021," 1,160.00 ",260000,Human Resources
5415182,ISW CSC Limited,Childrens Services,Children's Services,Living With Formal Support,,09/04/2021," 1,160.00 ",260000,Human Resources
5412971,iCare Solutions,Adult Social Care,Adults,Homecare Fees,,09/04/2021," 14,661.07 ",310000,Healthcare
5416071,Redacted,Childrens Services,Children's Services,Professional Child Services,,09/04/2021," 1,800.00 ",400000,Non 3rd Party spend  
5412972,YOUNG PEOPLE FIRST LIMITED,Childrens Services,Children's Services,Living With Formal Support,,09/04/2021," 2,730.00 ",321100,Social Community Care Supplies & Services - Children
5412915,YOUNG PEOPLE FIRST LIMITED,Childrens Services,Children's Services,Living With Formal Support,,09/04/2021, 850.00 ,321100,Social Community Care Supplies & Services - Children
5412974,Beacon Counselling,People and Workforce Development,Governance,Professional Medical Services,,09/04/2021," 3,765.00 ",310000,Healthcare
5412907,G2V Recruitment Group Limited t/a Vivid Resourcing,Place,Growth,Agency Staff,,09/04/2021," 2,500.00 ",280000,Legal Services
5413005,Deans Court Chambers,Adult Social Care,Adults,Legal Fees,,09/04/2021," 1,750.00 ",280000,Legal Services
5413060,Redacted,People and Workforce Development,Governance,Training Course Costs,,09/04/2021, 950.00 ,261520,Human Resources
5413201,ESAFE Global Limited,Childrens Services,Children's Services,Professional Services,,09/04/2021," 1,360.00 ",190000,Facilities & Management Services
5413061,Oyster Partnership,Place,Growth,Agency Staff,,09/04/2021," 2,200.00 ",261313,Human Resources
5414167,Conservation Contracts North West Limited,Hosted Services,Hosted Services,Sub-contractor Services,,09/04/2021," 5,201.55 ",250000,Housing Management
5413284,Carrington West Ltd,Place,Growth,Agency Staff,,09/04/2021, 842.40 ,-999999,Unclassifiable
5413063,Carrington West Ltd,Place,Growth,Professional Services,,09/04/2021, 795.60 ,-999999,Unclassifiable
5413285,Carrington West Ltd,Place,Growth,Agency Staff,,09/04/2021, 865.80 ,-999999,Unclassifiable
5413203,LOCAL CARE FORCE,Adult Social Care,Adults,Homecare Fees,,09/04/2021, 553.50 ,310000,Healthcare
5412987,Newsquest Ltd T/A LOCALiQ,Childrens Services,Children's Services,"Marketing, Publicity and Recruitment",,09/04/2021," 3,500.00 ",192400,Facilities & Management Services
5412914,Capita ESS Limited,Digital Tameside,Finance & IT,Computer Software,,09/04/2021," 96,841.84 ",-999999,Unclassifiable
5413218,Kainos Software Limited,Operations and Neighbourhoods,Operations and Neighbourhoods,Security Services,,09/04/2021," 1,875.00 ",-999999,Unclassifiable
5413219,Kainos Software Limited,Operations and Neighbourhoods,Operations and Neighbourhoods,Security Services,,09/04/2021," 1,875.00 ",-999999,Unclassifiable
5413102,Browne Jacobson LLP,Governance,Governance,Training Course Costs,,09/04/2021," 1,900.00 ",280000,Legal Services
5412870,Work of Art Home Improvements,Childrens Services,Children's Services,"Fixtures,Fittings & Furniture Purchase (Service Users)",,09/04/2021," 1,200.00 ",101300,Building Construction Materials
5412988,PRO VENTURE CONSULTING,Finance,Finance & IT,"Marketing, Publicity and Recruitment",,09/04/2021," 11,825.00 ",-999999,Unclassifiable
5413226,EON ENERGY,Adult Social Care,Adults,Electricity,,09/04/2021, 832.00 ,370000,Utilities
5413209,ALLIANCE DISPOSABLES LTD,Adult Social Care,Adults,Printing And Stationery,,09/04/2021," 3,015.00 ",130000,Cleaning & Janitorial
5413019,ADOPTION MATTERS NORTHWEST,Childrens Services,Children's Services,Adoption Agency Fees,,09/04/2021," 10,000.00 ",321100,Social Community Care Supplies & Services - Children
5413018,ADOPTION MATTERS NORTHWEST,Childrens Services,Children's Services,Adoption Agency Fees,,09/04/2021, 571.50 ,321100,Social Community Care Supplies & Services - Children
5412999,OFSTED,Childrens Services,Children's Services,Subscriptions,,09/04/2021," 2,059.00 ",200000,Financial Services
5413001,OFSTED,Childrens Services,Children's Services,Professional Services,,09/04/2021," 3,216.00 ",200000,Financial Services
5412871,DOMAIN CARE NORTH WEST LTD,Adult Social Care,Adults,Homecare Fees,,09/04/2021," 1,771.08 ",321100,Social Community Care Supplies & Services - Children
5413230,TMP UK LTD,GMPF (FX),GMPF (FX),"Marketing, Publicity and Recruitment",,09/04/2021," 2,507.00 ",260000,Human Resources
5413056,TRANSPORT FOR GREATER MANCHESTER,(blank),(blank),External  Consultants,,09/04/2021," 1,943.80 ",360000,Public Transport
5414626,TAMESIDE AND GLOSSOP INTEGRATED CARE NHS FOUNDATION TRUST,Adult Social Care,Adults,External Secondments,,09/04/2021," 3,510.71 ",310000,Healthcare
5415576,TAMESIDE AND GLOSSOP INTEGRATED CARE NHS FOUNDATION TRUST,Policy and Communications,Governance,"Marketing, Publicity and Recruitment",,09/04/2021," 2,520.00 ",310000,Healthcare
5413232,TAMESIDE AND GLOSSOP INTEGRATED CARE NHS FOUNDATION TRUST,Hosted Services,Hosted Services,Professional Services,,09/04/2021," 3,495.00 ",310000,Healthcare
5415362,TAMESIDE AND GLOSSOP INTEGRATED CARE NHS FOUNDATION TRUST,Contingency,Contingency,Professional Services,,09/04/2021," 7,197.52 ",310000,Healthcare
5415701,Redacted,Education,Children's Services,Transport Of Pupils,Business Payment,09/04/2021," 3,059.00 ",360000,Public Transport
5415703,Redacted,Education,Children's Services,Transport Of Ola Pupils,Business Payment,09/04/2021," 2,484.00 ",360000,Public Transport
5415704,Redacted,Education,Children's Services,Transport Of Pupils,Business Payment,09/04/2021," 1,909.00 ",360000,Public Transport
5413294,Redacted,Finance,Finance & IT,Security Services,,09/04/2021, 740.59 ,190000,Facilities & Management Services
5413015,VISION FOR EDUCATION LIMITED,Education,Children's Services,Professional Services,,09/04/2021," 1,096.00 ",170000,Education
5415537,NORCOMM (UK) LTD,Digital Tameside,Finance & IT,Network Equipment/Setup,,09/04/2021," 6,356.09 ",270000,Information Communication Technology
5415664,PEOPLE FIRST TAMESIDE,Adult Social Care,Adults,Professional Services,,09/04/2021," 1,890.00 ",321000,Social Community Care Supplies & Services - Adult
5415862,PERSON CENTRED CARE SERVICES LIMITED,Adult Social Care,Adults,Homecare Fees,,09/04/2021," 8,523.48 ",310000,Healthcare
5413216,POSTURITE (UK) LIMITED,Adult Social Care,Adults,Professional Consultancy Services,,09/04/2021, 525.00 ,220000,Health & Safety
5412945,The Pathways Group Ltd,Childrens Services,Children's Services,Living With Formal Support,,09/04/2021," 3,835.71 ",321000,Social Community Care Supplies & Services - Adult
5414161,COMFORT CALL LIMITED,Adult Social Care,Adults,Homecare Fees,,09/04/2021," 37,892.00 ",310000,Healthcare
5414162,COMFORT CALL LIMITED,Adult Social Care,Adults,Homecare Fees,,09/04/2021," 40,108.54 ",310000,Healthcare
5413236,HANDICARE LIMITED,Housing,Director of Place,Mandatory Adaptations Grant (DFG),,09/04/2021," 4,364.26 ",321100,Social Community Care Supplies & Services - Children
5413128,UNITED UTILITIES,Place,Growth,Water (Metered and Rates),,09/04/2021," 1,203.32 ",UNCLASS,Unclassifiable
5413004,CORE INTEGRATED SOLUTIONS LTD,Digital Tameside,Finance & IT,Network Equipment/Setup,,09/04/2021," 1,976.72 ",390000,"Works - Construction, Repair & Maintenance"
5413239,ACORN CARE & EDUCATION LTD (SALES),Education,Children's Services,Independent School Fees,,09/04/2021, 900.00 ,321100,Social Community Care Supplies & Services - Children
5413016,JENOPTIK TRAFFIC SOLUTIONS UK LTD,Operations and Neighbourhoods,Operations and Neighbourhoods,Fees,,09/04/2021," 1,680.00 ",350000,Street & Traffic Management
5413070,Redacted,Education,Children's Services,Professional Services,,09/04/2021," 1,650.00 ",311600,Healthcare
5413021,AGRICULTURAL AND RURAL CENTRE CIC,Education,Children's Services,Independent School Fees,,09/04/2021, 960.00 ,170000,Education
5413022,AGRICULTURAL AND RURAL CENTRE CIC,Education,Children's Services,Independent School Fees,,09/04/2021, 960.00 ,170000,Education
5413039,AGRICULTURAL AND RURAL CENTRE CIC,Education,Children's Services,Independent School Fees,,09/04/2021, 960.00 ,170000,Education
5413114,GRANART LIMITED,Operations and Neighbourhoods,Operations and Neighbourhoods,Plaques,,09/04/2021, 634.50 ,120000,Cemetery & Crematorium
5413031,REMOTE AUDIO VISUAL,Hosted Services,Hosted Services,Event Related Activity,,09/04/2021," 1,925.00 ",120000,Cemetery & Crematorium
5415920,Gallagher Bassett International Ltd,Multiple Heads of Service,Multiple Strategic Directorates,Employers Liability Insurance Claims,,09/04/2021, 528.00 ,-999999,Unclassifiable
5415920,Gallagher Bassett International Ltd,Multiple Heads of Service,Multiple Strategic Directorates,Public Liability Insurance Claims,,09/04/2021," 7,585.00 ",-999999,Unclassifiable
5415920,Gallagher Bassett International Ltd,Multiple Heads of Service,Multiple Strategic Directorates,Transport Insurance Claims,,09/04/2021," 2,128.00 ",-999999,Unclassifiable
5413240,NAGELS (UK) LTD,Operations and Neighbourhoods,Operations and Neighbourhoods,General Materials,,09/04/2021, 505.00 ,230000,Highway Equipment & Materials
5412997,CCW CARE LTD,Adult Social Care,Adults,Professional Services,,09/04/2021, 525.00 ,260000,Human Resources
5413222,NORTHWEST RADIO COMMUNICATIONS LTD,Place,Growth,Security Services,,09/04/2021," 1,500.00 ",270000,Information Communication Technology
5413120,BUILDING SOFTWARE LTD T/A MEASURE2IMPROVE,Engineers Client,Director of Place,Survey/Surveyors Fees,,09/04/2021," 13,450.00 ",-999999,Unclassifiable
5415082,INSPIREDSPACES TAMESIDE LTD,Place,Growth,Building Repairs,,09/04/2021," 1,903.94 ",390000,"Works - Construction, Repair & Maintenance"
5415078,INSPIREDSPACES TAMESIDE LTD,(blank),(blank),Fees,,09/04/2021, 706.10 ,390000,"Works - Construction, Repair & Maintenance"
5415080,INSPIREDSPACES TAMESIDE LTD,(blank),(blank),New Accommodation Works,,09/04/2021," 2,650.37 ",390000,"Works - Construction, Repair & Maintenance"
5413017,CATCH 22 CHARITY LTD,Childrens Services,Children's Services,Professional Child Services,,09/04/2021," 2,995.00 ",321100,Social Community Care Supplies & Services - Children
5413088,UK FOSTERING LTD,Childrens Services,Children's Services,Foster Carer Agency Fees,,09/04/2021," 2,983.12 ",321100,Social Community Care Supplies & Services - Children
5413090,UK FOSTERING LTD,Childrens Services,Children's Services,Foster Carer Agency Fees,,09/04/2021," 3,078.04 ",321100,Social Community Care Supplies & Services - Children
5414149,CARELINE HOMECARE LTD,Adult Social Care,Adults,Homecare Fees,,09/04/2021," 33,233.48 ",321000,Social Community Care Supplies & Services - Adult
5414150,CARELINE HOMECARE LTD,Adult Social Care,Adults,Homecare Fees,,09/04/2021," 33,866.68 ",321000,Social Community Care Supplies & Services - Adult
5413086,DELTA STEEPLEJACKS LTD,(blank),(blank),Engineers -External,,09/04/2021, 985.00 ,180000,Environmental Services
5412984,ROUTES HEALTHCARE (NORTH) LIMITED,Adult Social Care,Adults,Homecare Fees,,09/04/2021," 7,445.26 ",321100,Social Community Care Supplies & Services - Children
5413224,ROUTES HEALTHCARE (NORTH) LIMITED,Adult Social Care,Adults,Homecare Fees,,09/04/2021," 10,748.51 ",321100,Social Community Care Supplies & Services - Children
5412916,DHL Parcel UK Ltd (UK Mail),Exchequer,Governance,Printing And Stationery,,09/04/2021, 827.00 ,300000,Mail Services
5412935,DHL Parcel UK Ltd (UK Mail),Exchequer,Governance,Printing And Stationery,,09/04/2021," 7,082.78 ",300000,Mail Services
5412882,DHL Parcel UK Ltd (UK Mail),Education,Children's Services,Professional Services,,09/04/2021," 1,816.07 ",300000,Mail Services
5413036,Change Grow Live,Operations and Neighbourhoods,Operations and Neighbourhoods,Professional Services,,09/04/2021, 617.00 ,321000,Social Community Care Supplies & Services - Adult
5413038,Change Grow Live,Population Health,Population Health,Professional Services,,09/04/2021," 272,416.66 ",321000,Social Community Care Supplies & Services - Adult
5412975,Next Stage 'A Way Forward' Youth Development LTD,Childrens Services,Children's Services,Living With Formal Support,,09/04/2021," 3,410.00 ",321100,Social Community Care Supplies & Services - Children
5412976,Next Stage 'A Way Forward' Youth Development LTD,Childrens Services,Children's Services,Living With Formal Support,,09/04/2021," 4,340.00 ",321100,Social Community Care Supplies & Services - Children
5415837,Viva Minibus LTD,Education,Children's Services,Transport Of Pupils,,09/04/2021," 2,530.00 ",230000,Highway Equipment & Materials
5415836,Viva Minibus LTD,Education,Children's Services,Transport Of Pupils,,09/04/2021," 2,530.00 ",230000,Highway Equipment & Materials
5415551,Adlard Transport LTD,Education,Children's Services,Transport Of Pupils,,09/04/2021," 2,300.00 ",360000,Public Transport
5415759,Joes Travel LTD,Education,Children's Services,Transport Of Pupils,,09/04/2021," 2,277.00 ",360000,Public Transport
5415745,Joes Travel LTD,Education,Children's Services,Transport Of Ola Pupils,,09/04/2021," 2,185.00 ",360000,Public Transport
5412928,Orange Grove Fostercare LTD,Childrens Services,Children's Services,Foster Carer Agency Fees,,09/04/2021," 3,551.45 ",321100,Social Community Care Supplies & Services - Children
5412932,Orange Grove Fostercare LTD,Childrens Services,Children's Services,Foster Carer Agency Fees,,09/04/2021," 3,680.63 ",321100,Social Community Care Supplies & Services - Children
5412931,Orange Grove Fostercare LTD,Childrens Services,Children's Services,Foster Carer Agency Fees,,09/04/2021," 3,551.45 ",321100,Social Community Care Supplies & Services - Children
5412927,Orange Grove Fostercare LTD,Childrens Services,Children's Services,Foster Carer Agency Fees,,09/04/2021," 3,497.33 ",321100,Social Community Care Supplies & Services - Children
5412933,Orange Grove Fostercare LTD,Childrens Services,Children's Services,Foster Carer Agency Fees,,09/04/2021," 3,669.48 ",321100,Social Community Care Supplies & Services - Children
5412929,Orange Grove Fostercare LTD,Childrens Services,Children's Services,Foster Carer Agency Fees,,09/04/2021," 3,378.21 ",321100,Social Community Care Supplies & Services - Children
5413020,Footsteps Psychology,Education,Children's Services,Professional Services,,09/04/2021," 1,100.00 ",-999999,Unclassifiable
5413093,Footsteps Psychology,Education,Children's Services,Professional Services,,09/04/2021," 1,100.00 ",-999999,Unclassifiable
5413106,MOSSCARE HOUSING LTD,Childrens Services,Children's Services,Non-Authority Accommodation Rental,,09/04/2021, 715.76 ,321000,Social Community Care Supplies & Services - Adult
5415672,DIRECT CARE (TAMESIDE) LTD,Adult Social Care,Adults,Homecare Fees,,09/04/2021, 505.68 ,321000,Social Community Care Supplies & Services - Adult
5415753,DIRECT CARE (TAMESIDE) LTD,Adult Social Care,Adults,Homecare Fees,,09/04/2021," 41,613.25 ",321000,Social Community Care Supplies & Services - Adult
5413108,GREATER MANCHESTER COMBINED AUTHORITY,Engineers Client,Director of Place,Traffic Signals,,09/04/2021," 2,474.48 ",-999999,Unclassifiable
5413242,CARITAS CARE LTD,Childrens Services,Children's Services,Foster Carer Agency Fees,,09/04/2021," 2,000.04 ",321000,Social Community Care Supplies & Services - Adult
5413266,CIVICA UK LIMITED,Operations and Neighbourhoods,Operations and Neighbourhoods,Engineers Works,,09/04/2021," 1,438.50 ",271600,Information Communication Technology
5412885,PARALLEL PARENTS,Childrens Services,Children's Services,Foster Carer Agency Fees,,09/04/2021," 3,831.52 ",321100,Social Community Care Supplies & Services - Children
5415636,TAMESIDE SPORTS TRUST,Education,Children's Services,Professional Services,,09/04/2021," 16,916.67 ",290000,Arts & Leisure Services
5415669,TAMESIDE SPORTS TRUST,Operations and Neighbourhoods,Operations and Neighbourhoods,Project Costs,,09/04/2021," 5,000.00 ",290000,Arts & Leisure Services
5415959,TAMESIDE SPORTS TRUST,Population Health,Population Health,Leisure Services Contract Payment,,09/04/2021," 927,000.00 ",290000,Arts & Leisure Services
5413223,F G MARSHALL LTD,Operations and Neighbourhoods,Operations and Neighbourhoods,Plaques,,09/04/2021, 566.75 ,120000,Cemetery & Crematorium
5415891,TAMESIDE LINK,Adult Social Care,Adults,Voluntary Organisations Fees,,09/04/2021," 24,805.70 ",321000,Social Community Care Supplies & Services - Adult
5415762,J & R TAXIS LTD,Education,Children's Services,Transport Of Ola Pupils,,09/04/2021," 2,400.00 ",360000,Public Transport
5412986,Redacted,Childrens Services,Children's Services,Childrens Homes Outside Local Authority Fees,Redacted Supplier,09/04/2021," 8,293.17 ",321100,Social Community Care Supplies & Services - Children
5412985,Redacted,Childrens Services,Children's Services,Childrens Homes Outside Local Authority Fees,Redacted Supplier,09/04/2021," 5,892.90 ",321100,Social Community Care Supplies & Services - Children
5413105,DISTRICT SURVEYORS ASSOCIATION LTD T/A LABC,Place,Growth,Subscriptions,,09/04/2021," 2,628.82 ",260000,Human Resources
5412926,SWIIS FOSTER CARE LTD,Childrens Services,Children's Services,Foster Carer Agency Fees,,09/04/2021, 760.48 ,321100,Social Community Care Supplies & Services - Children
5412923,SWIIS FOSTER CARE LTD,Childrens Services,Children's Services,Foster Carer Agency Fees,,09/04/2021, 711.76 ,321100,Social Community Care Supplies & Services - Children
5412922,SWIIS FOSTER CARE LTD,Childrens Services,Children's Services,Foster Carer Agency Fees,,09/04/2021, 722.47 ,321100,Social Community Care Supplies & Services - Children
5412925,SWIIS FOSTER CARE LTD,Childrens Services,Children's Services,Foster Carer Agency Fees,,09/04/2021," 1,694.98 ",321100,Social Community Care Supplies & Services - Children
5412924,SWIIS FOSTER CARE LTD,Childrens Services,Children's Services,Foster Carer Agency Fees,,09/04/2021, 722.47 ,321100,Social Community Care Supplies & Services - Children
5415824,ROYALE MINICOACHES,Education,Children's Services,Transport Of Pupils,,09/04/2021," 2,392.00 ",UNCLASS,Unclassifiable
5413243,BEDSPACE RESOURCE LTD,Childrens Services,Children's Services,Living With Formal Support,,09/04/2021, 500.00 ,250000,Housing Management
5413261,TTS GROUP LTD,Population Health,Population Health,"Activity (Materials, Trips)",,09/04/2021, 701.20 ,170000,Education
5412968,PHOENIX SOFTWARE LTD,Digital Tameside,Finance & IT,Computer Software,,09/04/2021, 887.06 ,270000,Information Communication Technology
5412966,TEAM TEACH LTD,Individual Schools Budget,Children's Services,Training Course Costs,,09/04/2021," 2,372.00 ",260000,Human Resources
5415823,A & E FURNITURE LTD T.A THE PAVILION,Childrens Services,Children's Services,"Fixtures,Fittings & Furniture Purchase (Service Users)",,09/04/2021, 658.00 ,210000,Furniture & Soft Furnishings
5415660,TAMESIDE ARTS LTD,Adult Social Care,Adults,Professional Services,,09/04/2021," 2,948.78 ",290000,Arts & Leisure Services
5415662,TAMESIDE ARTS LTD,Adult Social Care,Adults,Professional Services,,09/04/2021," 3,022.10 ",290000,Arts & Leisure Services
5415816,TAMESIDE ARTS LTD,Adult Social Care,Adults,Professional Services,,09/04/2021," 3,361.92 ",290000,Arts & Leisure Services
5415661,TAMESIDE ARTS LTD,Adult Social Care,Adults,Professional Services,,09/04/2021," 3,086.40 ",290000,Arts & Leisure Services
5415650,STAMFORD CARS UK LTD,Education,Children's Services,Transport Of Ola Pupils,,09/04/2021," 3,392.50 ",360000,Public Transport
5415761,STAMFORD CARS UK LTD,Education,Children's Services,Transport Of Pupils,,09/04/2021," 2,530.00 ",360000,Public Transport
5415767,STAMFORD CARS UK LTD,Education,Children's Services,Transport Of Pupils,,09/04/2021," 1,840.00 ",360000,Public Transport
5415781,STAMFORD CARS UK LTD,Education,Children's Services,Transport Of Ola Pupils,,09/04/2021," 1,840.00 ",360000,Public Transport
5415511,STAMFORD CARS UK LTD,Education,Children's Services,Transport Of Ola Pupils,,09/04/2021," 1,495.00 ",360000,Public Transport
5415523,STAMFORD CARS UK LTD,Education,Children's Services,Transport Of Ola Pupils,,09/04/2021," 1,495.00 ",360000,Public Transport
5415448,STAMFORD CARS UK LTD,Operations and Neighbourhoods,Operations and Neighbourhoods,Transport Of Post 16 Pupils,,09/04/2021, 920.00 ,360000,Public Transport
5415735,STAMFORD CARS UK LTD,Education,Children's Services,Transport Of Pupils,,09/04/2021," 1,092.50 ",360000,Public Transport
5415457,STAMFORD CARS UK LTD,Education,Children's Services,Transport Of Ola Pupils,,09/04/2021," 2,645.00 ",360000,Public Transport
5415506,STAMFORD CARS UK LTD,Education,Children's Services,Transport Of Ola Pupils,,09/04/2021," 3,046.00 ",360000,Public Transport
5415783,STAMFORD CARS UK LTD,Education,Children's Services,Transport Of Ola Pupils,,09/04/2021," 2,300.00 ",360000,Public Transport
5415439,STAMFORD CARS UK LTD,Education,Children's Services,Transport Of Ola Pupils,,09/04/2021," 2,070.00 ",360000,Public Transport
5415756,STAMFORD CARS UK LTD,Education,Children's Services,Transport Of Pupils,,09/04/2021, 575.00 ,360000,Public Transport
5415791,STAMFORD CARS UK LTD,Education,Children's Services,Transport Of Pupils,,09/04/2021," 2,185.00 ",360000,Public Transport
5415758,STAMFORD CARS UK LTD,Education,Children's Services,Transport Of Pupils,,09/04/2021," 1,440.00 ",360000,Public Transport
5415522,STAMFORD CARS UK LTD,Education,Children's Services,Transport Of Post 16 Pupils,,09/04/2021," 1,495.00 ",360000,Public Transport
5415407,STAMFORD CARS UK LTD,Education,Children's Services,Transport Of Pupils,,09/04/2021," 2,185.00 ",360000,Public Transport
5415473,STAMFORD CARS UK LTD,Education,Children's Services,Transport Of Pupils,,09/04/2021," 2,185.00 ",360000,Public Transport
5415482,STAMFORD CARS UK LTD,Education,Children's Services,Transport Of Pupils,,09/04/2021," 2,185.00 ",360000,Public Transport
5415517,STAMFORD CARS UK LTD,Education,Children's Services,Transport Of Ola Pupils,,09/04/2021," 2,050.00 ",360000,Public Transport
5415779,STAMFORD CARS UK LTD,Education,Children's Services,Transport Of Pupils,,09/04/2021," 2,185.00 ",360000,Public Transport
5415524,STAMFORD CARS UK LTD,Education,Children's Services,Transport Of Pupils,,09/04/2021," 2,185.00 ",360000,Public Transport
5415514,STAMFORD CARS UK LTD,Education,Children's Services,Transport Of Ola Pupils,,09/04/2021," 1,782.50 ",360000,Public Transport
5415520,STAMFORD CARS UK LTD,Operations and Neighbourhoods,Operations and Neighbourhoods,Transport Of Post 16 Pupils,,09/04/2021," 1,782.50 ",360000,Public Transport
5415518,STAMFORD CARS UK LTD,Education,Children's Services,Transport Of Post 16 Pupils,,09/04/2021, 975.00 ,360000,Public Transport
5415521,STAMFORD CARS UK LTD,Education,Children's Services,Transport Of Pupils,,09/04/2021," 1,380.00 ",360000,Public Transport
5415789,STAMFORD CARS UK LTD,Education,Children's Services,Transport Of Ola Pupils,,09/04/2021," 2,600.00 ",360000,Public Transport
5415790,STAMFORD CARS UK LTD,Education,Children's Services,Transport Of Ola Pupils,,09/04/2021," 3,300.00 ",360000,Public Transport
5415765,STAMFORD CARS UK LTD,Education,Children's Services,Transport Of Pupils,,09/04/2021," 1,897.50 ",360000,Public Transport
5415527,STAMFORD CARS UK LTD,Education,Children's Services,Transport Of Pupils,,09/04/2021," 1,380.00 ",360000,Public Transport
5415786,STAMFORD CARS UK LTD,Education,Children's Services,Transport Of Pupils,,09/04/2021," 1,092.50 ",360000,Public Transport
5415651,STAMFORD CARS UK LTD,Education,Children's Services,Transport Of Pupils,,09/04/2021," 1,150.00 ",360000,Public Transport
5415519,STAMFORD CARS UK LTD,Education,Children's Services,Transport Of Pupils,,09/04/2021," 1,150.00 ",360000,Public Transport
5412965,BRITISH ASSOCIATION FOR SUPPORTED EMPLOYMENT,Place,Growth,Training Course Costs,,09/04/2021," 1,500.00 ",200000,Financial Services
5416075,The Compost Bag Company Ltd,Operations and Neighbourhoods,Operations and Neighbourhoods,Purchase Plastic Sacks,,12/04/2021," 6,030.00 ",182014,Environmental Services
470903,AGGREGATE INDUSTRIES UK LIMITED,Operations and Neighbourhoods,Operations and Neighbourhoods,General Materials,,12/04/2021," 3,230.77 ",230000,Highway Equipment & Materials
470903,FAIRWAY LANDSCAPES LTD,Operations and Neighbourhoods,Operations and Neighbourhoods,Sub-contractor Services,,12/04/2021, 521.00 ,399999,"Works - Construction, Repair & Maintenance"
470903,TARMAC CENTRAL LIMITED,Operations and Neighbourhoods,Operations and Neighbourhoods,General Materials,,12/04/2021," 5,989.82 ",230000,Highway Equipment & Materials
470903,HSS HIRE SERVICE GROUP  PLC,Operations and Neighbourhoods,Operations and Neighbourhoods,General Materials,,12/04/2021, 678.04 ,380000,Vehicle Management
470903,STALYBRIDGE READYMIX LTD,Operations and Neighbourhoods,Operations and Neighbourhoods,General Materials,,12/04/2021," 4,255.00 ",231200,Highway Equipment & Materials
470903,Saint-Gobain Building Distribution Limited t/a Benchmark Building Supplies,Operations and Neighbourhoods,Operations and Neighbourhoods,General Materials,,12/04/2021," 1,953.41 ",100000,Building Construction Materials
470903,BRIDGE ELECTRICALSUPPLIES LTD,Civil Engineers,Director of Place,Debits Goods Received,,12/04/2021, 882.00 ,100000,Building Construction Materials
470903,NORTHWEST UTILITY SOLUTIONS LTD,Operations and Neighbourhoods,Operations and Neighbourhoods,Sub-contractor Services,,12/04/2021," 12,243.96 ",370000,Utilities
470903,TRAFFIC DIRECT LTD,Operations and Neighbourhoods,Operations and Neighbourhoods,Sub-contractor Services,,12/04/2021," 6,825.00 ",350000,Street & Traffic Management
470903,ROWAN ASHWORTH LIMITED,Operations and Neighbourhoods,Operations and Neighbourhoods,Sub-contractor Services,,12/04/2021," 18,487.50 ",-999999,Unclassifiable
470903,REDIWELD RUBBER & PLASTICS LIMITED,(blank),(blank),General Materials,,12/04/2021," 8,202.00 ",-999999,Unclassifiable
470903,HILTI (GB) LTD,Operations and Neighbourhoods,Operations and Neighbourhoods,General Materials,,12/04/2021, 861.15 ,390000,"Works - Construction, Repair & Maintenance"
5415244,Hillgate Health Group Limited,Childrens Services,Children's Services,Living With Formal Support,,12/04/2021," 2,159.36 ",-999999,Unclassifiable
5415556,ISW CSC Limited,Childrens Services,Children's Services,Living With Formal Support,,12/04/2021, 950.00 ,260000,Human Resources
5415565,ISW CSC Limited,Childrens Services,Children's Services,Living With Formal Support,,12/04/2021," 1,160.00 ",260000,Human Resources
5415194,ISW CSC Limited,Childrens Services,Children's Services,Living With Formal Support,,12/04/2021," 2,420.00 ",260000,Human Resources
5415571,ISW CSC Limited,Childrens Services,Children's Services,Living With Formal Support,,12/04/2021, 690.00 ,260000,Human Resources
5415197,ISW CSC Limited,Childrens Services,Children's Services,Living With Formal Support,,12/04/2021, 690.00 ,260000,Human Resources
5415191,ISW CSC Limited,Childrens Services,Children's Services,Living With Formal Support,,12/04/2021," 1,102.00 ",260000,Human Resources
5415193,ISW CSC Limited,Childrens Services,Children's Services,Living With Formal Support,,12/04/2021," 1,102.00 ",260000,Human Resources
5415567,ISW CSC Limited,Childrens Services,Children's Services,Living With Formal Support,,12/04/2021," 1,102.00 ",260000,Human Resources
5415568,ISW CSC Limited,Childrens Services,Children's Services,Living With Formal Support,,12/04/2021," 1,102.00 ",260000,Human Resources
5415553,ISW CSC Limited,Childrens Services,Children's Services,Living With Formal Support,,12/04/2021, 980.00 ,260000,Human Resources
5415558,ISW CSC Limited,Childrens Services,Children's Services,Living With Formal Support,,12/04/2021," 1,250.00 ",260000,Human Resources
5415562,ISW CSC Limited,Childrens Services,Children's Services,Living With Formal Support,,12/04/2021," 1,250.00 ",260000,Human Resources
5415563,ISW CSC Limited,Childrens Services,Children's Services,Living With Formal Support,,12/04/2021, 765.00 ,260000,Human Resources
5415554,ISW CSC Limited,Childrens Services,Children's Services,Living With Formal Support,,12/04/2021, 980.00 ,260000,Human Resources
5415559,ISW CSC Limited,Childrens Services,Children's Services,Living With Formal Support,,12/04/2021," 1,160.00 ",260000,Human Resources
5415560,ISW CSC Limited,Childrens Services,Children's Services,Living With Formal Support,,12/04/2021," 1,160.00 ",260000,Human Resources
5415552,ISW CSC Limited,Childrens Services,Children's Services,Living With Formal Support,,12/04/2021, 870.00 ,260000,Human Resources
5415557,ISW CSC Limited,Childrens Services,Children's Services,Living With Formal Support,,12/04/2021," 1,070.00 ",260000,Human Resources
5415561,ISW CSC Limited,Childrens Services,Children's Services,Living With Formal Support,,12/04/2021, 850.00 ,260000,Human Resources
5415566,ISW CSC Limited,Childrens Services,Children's Services,Living With Formal Support,,12/04/2021, 980.00 ,260000,Human Resources
5415569,ISW CSC Limited,Childrens Services,Children's Services,Living With Formal Support,,12/04/2021," 1,210.00 ",260000,Human Resources
5415175,ISW CSC Limited,Childrens Services,Children's Services,Living With Formal Support,,12/04/2021," 1,250.00 ",260000,Human Resources
5415564,ISW CSC Limited,Childrens Services,Children's Services,Living With Formal Support,,12/04/2021," 1,250.00 ",260000,Human Resources
5415555,ISW CSC Limited,Childrens Services,Children's Services,Living With Formal Support,,12/04/2021," 1,250.00 ",260000,Human Resources
5415498,Redacted,Education,Children's Services,Independent School Fees,,12/04/2021," 5,503.60 ",170000,Education
5415168,PG FABRICATIONS,Operations and Neighbourhoods,Operations and Neighbourhoods,General Materials,,12/04/2021, 980.00 ,390000,"Works - Construction, Repair & Maintenance"
5414200,Inspired Spaces (ProjectCo1) LTD,Asset & Investment Partnership Management,Growth,PFI FM Fees and Insurance Costs,,12/04/2021," 8,470.00 ",390000,"Works - Construction, Repair & Maintenance"
5414201,Inspired Spaces (ProjectCo1) LTD,Asset & Investment Partnership Management,Growth,PFI FM Fees and Insurance Costs,,12/04/2021," 5,615.62 ",390000,"Works - Construction, Repair & Maintenance"
5416440,COMFORT CALL LIMITED,Adult Social Care,Adults,Homecare Fees,,12/04/2021," 37,151.41 ",310000,Healthcare
5414301,INSPIREDSPACES TAMESIDE (PROJECTCO2) LTD,Asset & Investment Partnership Management,Growth,PFI FM Fees and Insurance Costs,,12/04/2021," 3,245.00 ",170000,Education
5414202,INSPIREDSPACES TAMESIDE (PROJECTCO2) LTD,Asset & Investment Partnership Management,Growth,PFI FM Fees and Insurance Costs,,12/04/2021," 5,755.25 ",170000,Education
5414302,INSPIREDSPACES TAMESIDE (PROJECTCO2) LTD,Asset & Investment Partnership Management,Growth,PFI FM Fees and Insurance Costs,,12/04/2021," 5,197.50 ",170000,Education
5415246,Redacted,Childrens Services,Children's Services,Childrens Homes Outside Local Authority Fees,Redacted Supplier,12/04/2021," 12,842.86 ",321100,Social Community Care Supplies & Services - Children
5415248,Redacted,Childrens Services,Children's Services,Childrens Homes Outside Local Authority Fees,Redacted Supplier,12/04/2021," 12,842.86 ",321100,Social Community Care Supplies & Services - Children
5415600,Agilyx UK LTD,People and Workforce Development,Governance,Professional Consultancy Services,,12/04/2021, 759.99 ,150000,Consultancy
5416202,ABLE CARE AND SUPPORT SERVICES LTD,Adult Social Care,Adults,Homecare Fees,,12/04/2021," 21,190.00 ",321000,Social Community Care Supplies & Services - Adult
5416172,Gallagher Bassett International Ltd,Multiple Heads of Service,Multiple Strategic Directorates,Public Liability Insurance Claims,,12/04/2021," 2,796.60 ",-999999,Unclassifiable
5416172,Gallagher Bassett International Ltd,Finance,Finance & IT,Public Liability Insurance,,12/04/2021," 12,946.00 ",-999999,Unclassifiable
5416172,Gallagher Bassett International Ltd,Finance,Finance & IT,Transport Insurance,,12/04/2021," 20,990.77 ",-999999,Unclassifiable
5415309,INSPIREDSPACES TAMESIDE LTD,(blank),(blank),Fees,,12/04/2021," 21,539.57 ",390000,"Works - Construction, Repair & Maintenance"
5415314,INSPIREDSPACES TAMESIDE LTD,Place,Growth,Fees,,12/04/2021, 780.30 ,390000,"Works - Construction, Repair & Maintenance"
5415396,INSPIREDSPACES TAMESIDE LTD,Cultural and Customer Services,"Community,Environmental,Adult and Health Services",External  Consultants,,12/04/2021, 750.00 ,390000,"Works - Construction, Repair & Maintenance"
5415418,INSPIREDSPACES TAMESIDE LTD,(blank),(blank),External  Consultants,,12/04/2021," 1,986.55 ",390000,"Works - Construction, Repair & Maintenance"
5415427,INSPIREDSPACES TAMESIDE LTD,Cultural and Customer Services,"Community,Environmental,Adult and Health Services",Other Works,,12/04/2021," 51,650.22 ",390000,"Works - Construction, Repair & Maintenance"
5415422,INSPIREDSPACES TAMESIDE LTD,Environmental Services,Director of Place,Fees,,12/04/2021," 9,443.23 ",390000,"Works - Construction, Repair & Maintenance"
5415421,INSPIREDSPACES TAMESIDE LTD,Population Health,Population Health,Professional Services,,12/04/2021," 11,317.82 ",390000,"Works - Construction, Repair & Maintenance"
5415083,INSPIREDSPACES TAMESIDE LTD,(blank),(blank),New Accommodation Works,,12/04/2021," 2,653.47 ",390000,"Works - Construction, Repair & Maintenance"
5415432,INSPIREDSPACES TAMESIDE LTD,Cultural and Customer Services,"Community,Environmental,Adult and Health Services",Other Works,,12/04/2021," 25,900.86 ",390000,"Works - Construction, Repair & Maintenance"
5415434,INSPIREDSPACES TAMESIDE LTD,Cultural and Customer Services,"Community,Environmental,Adult and Health Services",Fees,,12/04/2021," 4,567.28 ",390000,"Works - Construction, Repair & Maintenance"
5415266,GREATER MANCHESTER DYSLEXIA CENTRE,Place,Growth,Miscellaneous Expenses,,12/04/2021, 700.00 ,170000,Education
5415637,STEPPING STONES CHILDRENS HOMES LTD,Childrens Services,Children's Services,Childrens Homes Outside Local Authority Fees,,12/04/2021," 42,140.00 ",321100,Social Community Care Supplies & Services - Children
5415642,STEPPING STONES CHILDRENS HOMES LTD,Childrens Services,Children's Services,Childrens Homes Outside Local Authority Fees,,12/04/2021," 22,623.42 ",321100,Social Community Care Supplies & Services - Children
5415634,STEPPING STONES CHILDRENS HOMES LTD,Childrens Services,Children's Services,Childrens Homes Outside Local Authority Fees,,12/04/2021," 21,070.00 ",321100,Social Community Care Supplies & Services - Children
5415639,STEPPING STONES CHILDRENS HOMES LTD,Childrens Services,Children's Services,Childrens Homes Outside Local Authority Fees,,12/04/2021," 43,000.00 ",321100,Social Community Care Supplies & Services - Children
5415760,Joes Travel LTD,Education,Children's Services,Transport Of Post 16 Pupils,,12/04/2021," 1,760.00 ",360000,Public Transport
5415483,STOCKPORT MBC,Place,Growth,Agency Staff,,12/04/2021," 5,103.00 ",321100,Social Community Care Supplies & Services - Children
5415441,STOCKPORT MBC,Childrens Services,Children's Services,Subscriptions,,12/04/2021," 7,000.00 ",321100,Social Community Care Supplies & Services - Children
5414338,WIGAN MBC,People and Workforce Development,Governance,Professional Services,,12/04/2021," 14,667.00 ",UNCLASS,Unclassifiable
5415425,WIGAN MBC,Hosted Services,Hosted Services,Professional Services,,12/04/2021," 90,374.96 ",UNCLASS,Unclassifiable
5415209,E PETCH PRINTERS LTD,Policy and Communications,Governance,Printing And Stationery,,12/04/2021, 665.00 ,190000,Facilities & Management Services
5415768,STAMFORD CARS UK LTD,Operations and Neighbourhoods,Operations and Neighbourhoods,Hired Transport,,12/04/2021," 1,265.00 ",360000,Public Transport
5415770,STAMFORD CARS UK LTD,Operations and Neighbourhoods,Operations and Neighbourhoods,Hired Transport,,12/04/2021, 833.75 ,360000,Public Transport
5415509,STAMFORD CARS UK LTD,Operations and Neighbourhoods,Operations and Neighbourhoods,Hired Transport,,12/04/2021," 1,782.50 ",360000,Public Transport
5415510,STAMFORD CARS UK LTD,Operations and Neighbourhoods,Operations and Neighbourhoods,Hired Transport,,12/04/2021," 1,035.00 ",360000,Public Transport
5415525,STAMFORD CARS UK LTD,Operations and Neighbourhoods,Operations and Neighbourhoods,Hired Transport,,12/04/2021, 608.75 ,360000,Public Transport
5415782,STAMFORD CARS UK LTD,Operations and Neighbourhoods,Operations and Neighbourhoods,Hired Transport,,12/04/2021," 1,675.00 ",360000,Public Transport
5415513,STAMFORD CARS UK LTD,Operations and Neighbourhoods,Operations and Neighbourhoods,Hired Transport,,12/04/2021," 1,930.00 ",360000,Public Transport
5415431,STAMFORD CARS UK LTD,Operations and Neighbourhoods,Operations and Neighbourhoods,Hired Transport,,12/04/2021, 665.00 ,360000,Public Transport
5415265,Bloom Procurement Services Limited,Tameside Investment Partnership,Director of Place,Professional Services,,13/04/2021," 16,315.79 ",150000,Consultancy
5413075,Three Angels Healthcare,Adult Social Care,Adults,Homecare Fees,,13/04/2021," 1,761.50 ",-999999,Unclassifiable
5413078,Three Angels Healthcare,Adult Social Care,Adults,Homecare Fees,,13/04/2021," 1,761.50 ",-999999,Unclassifiable
5413034,Three Angels Healthcare,Adult Social Care,Adults,Homecare Fees,,13/04/2021," 1,761.50 ",-999999,Unclassifiable
5413041,Three Angels Healthcare,Adult Social Care,Adults,Homecare Fees,,13/04/2021," 1,761.50 ",-999999,Unclassifiable
5413053,Three Angels Healthcare,Adult Social Care,Adults,Homecare Fees,,13/04/2021," 1,761.50 ",-999999,Unclassifiable
5413033,Three Angels Healthcare,Adult Social Care,Adults,Homecare Fees,,13/04/2021," 1,761.50 ",-999999,Unclassifiable
5413037,Three Angels Healthcare,Adult Social Care,Adults,Homecare Fees,,13/04/2021," 1,761.50 ",-999999,Unclassifiable
5413074,Three Angels Healthcare,Adult Social Care,Adults,Homecare Fees,,13/04/2021," 1,761.50 ",-999999,Unclassifiable
5413079,Three Angels Healthcare,Adult Social Care,Adults,Homecare Fees,,13/04/2021," 1,761.50 ",-999999,Unclassifiable
5413030,Three Angels Healthcare,Adult Social Care,Adults,Homecare Fees,,13/04/2021," 1,761.50 ",-999999,Unclassifiable
5413032,Three Angels Healthcare,Adult Social Care,Adults,Homecare Fees,,13/04/2021," 1,761.50 ",-999999,Unclassifiable
5413035,Three Angels Healthcare,Adult Social Care,Adults,Homecare Fees,,13/04/2021," 1,761.50 ",-999999,Unclassifiable
5413042,Three Angels Healthcare,Adult Social Care,Adults,Homecare Fees,,13/04/2021," 1,761.50 ",-999999,Unclassifiable
5413057,Three Angels Healthcare,Adult Social Care,Adults,Homecare Fees,,13/04/2021," 1,761.50 ",-999999,Unclassifiable
5413046,Three Angels Healthcare,Adult Social Care,Adults,Homecare Fees,,13/04/2021," 1,761.50 ",-999999,Unclassifiable
5413051,Three Angels Healthcare,Adult Social Care,Adults,Homecare Fees,,13/04/2021," 1,761.50 ",-999999,Unclassifiable
5413058,Three Angels Healthcare,Adult Social Care,Adults,Homecare Fees,,13/04/2021," 1,761.50 ",-999999,Unclassifiable
5413077,Three Angels Healthcare,Adult Social Care,Adults,Homecare Fees,,13/04/2021," 1,761.50 ",-999999,Unclassifiable
5413080,Three Angels Healthcare,Adult Social Care,Adults,Homecare Fees,,13/04/2021," 1,761.50 ",-999999,Unclassifiable
5413062,Three Angels Healthcare,Adult Social Care,Adults,Homecare Fees,,13/04/2021," 1,761.50 ",-999999,Unclassifiable
5413064,Three Angels Healthcare,Adult Social Care,Adults,Homecare Fees,,13/04/2021," 1,761.50 ",-999999,Unclassifiable
5413066,Three Angels Healthcare,Adult Social Care,Adults,Homecare Fees,,13/04/2021," 1,761.50 ",-999999,Unclassifiable
5413076,Three Angels Healthcare,Adult Social Care,Adults,Homecare Fees,,13/04/2021," 1,761.50 ",-999999,Unclassifiable
5413081,Three Angels Healthcare,Adult Social Care,Adults,Homecare Fees,,13/04/2021," 1,761.50 ",-999999,Unclassifiable
5416571,Redacted,Contingency,Contingency,COVID-19 Test and Trace Support Payments - Discretionary,,13/04/2021, 500.00 ,UNCLASS,Unclassifiable
5415598,ROCHDALE MBC,Education,Children's Services,Other Local Authorities Fees,,13/04/2021," 1,693.85 ",UNCLASS,Unclassifiable
5415577,INSPIREDSPACES TAMESIDE LTD,Contingency,Contingency,Professional Medical Services,,13/04/2021," 11,960.83 ",390000,"Works - Construction, Repair & Maintenance"
5416429,CARELINE HOMECARE LTD,Adult Social Care,Adults,Homecare Fees,,13/04/2021," 34,729.15 ",321000,Social Community Care Supplies & Services - Adult
5416120,LIBERTY SUPPORT SERVICES LTD,Adult Social Care,Adults,Homecare Fees,,13/04/2021," 17,192.00 ",321000,Social Community Care Supplies & Services - Adult
5416067,DIRECT CARE (TAMESIDE) LTD,Adult Social Care,Adults,Homecare Fees,,13/04/2021," 42,897.66 ",321000,Social Community Care Supplies & Services - Adult
5412292,GREATER MANCHESTER COMBINED AUTHORITY,Operations and Neighbourhoods,Operations and Neighbourhoods,Passenger Transport Levy,,13/04/2021," 844,836.00 ",-999999,Unclassifiable
5412305,GREATER MANCHESTER COMBINED AUTHORITY,Operations and Neighbourhoods,Operations and Neighbourhoods,Passenger Transport Levy,,13/04/2021," 692,490.00 ",-999999,Unclassifiable
5415486,STAMFORD CARS UK LTD,Operations and Neighbourhoods,Operations and Neighbourhoods,Transport Of Pupils,,13/04/2021," 2,357.50 ",360000,Public Transport
5415777,STAMFORD CARS UK LTD,Operations and Neighbourhoods,Operations and Neighbourhoods,Hired Transport,,13/04/2021," 1,840.00 ",360000,Public Transport
5415465,STAMFORD CARS UK LTD,Operations and Neighbourhoods,Operations and Neighbourhoods,Transport Of Ola Pupils,,13/04/2021," 2,070.00 ",360000,Public Transport
5415772,STAMFORD CARS UK LTD,Operations and Neighbourhoods,Operations and Neighbourhoods,Hired Transport,,13/04/2021, 630.00 ,360000,Public Transport
5415489,STAMFORD CARS UK LTD,Operations and Neighbourhoods,Operations and Neighbourhoods,Transport Of Pupils,,13/04/2021," 1,050.00 ",360000,Public Transport
5415526,STAMFORD CARS UK LTD,Operations and Neighbourhoods,Operations and Neighbourhoods,Hired Transport,,13/04/2021, 540.00 ,360000,Public Transport
5415470,STAMFORD CARS UK LTD,Operations and Neighbourhoods,Operations and Neighbourhoods,Transport Of Pupils,,13/04/2021," 1,845.00 ",360000,Public Transport
5415267,Bloom Procurement Services Limited,Hosted Services,Hosted Services,Professional Services,,14/04/2021," 9,975.00 ",150000,Consultancy
5413312,Zeno Ltd,Adult Social Care,Adults,Homecare Fees,,14/04/2021," 10,037.84 ",310000,Healthcare
5413369,Brookfield House,Childrens Services,Children's Services,Childrens Homes Outside Local Authority Fees,,14/04/2021," 11,200.00 ",-999999,Unclassifiable
5413317,Komplex Community Ltd,Childrens Services,Children's Services,Childrens Homes Outside Local Authority Fees,,14/04/2021," 12,000.00 ",-999999,Unclassifiable
5413318,Wellbeing Property Solutions Ltd,Childrens Services,Children's Services,Childrens Homes Outside Local Authority Fees,,14/04/2021, 700.00 ,261000,Human Resources
5413372,Positive Care Solutions Ltd,Childrens Services,Children's Services,Childrens Homes Outside Local Authority Fees,,14/04/2021," 8,014.28 ",261000,Human Resources
5413321,Amore Social Care Ltd,Childrens Services,Children's Services,Childrens Homes Outside Local Authority Fees,,14/04/2021," 5,299.00 ",310000,Healthcare
5414180,Avoira Ltd,Digital Tameside,Finance & IT,Telephone Landline Costs,,14/04/2021," 5,631.20 ",-999999,Unclassifiable
5413322,Tobii Dynavox Limited,Childrens Services,Children's Services,Computer Software,,14/04/2021, 598.00 ,ICT,Unclassifiable
5416652,Creative Support Rents,Adult Social Care,Adults,Residential Home Long Stay Fees,,14/04/2021, 964.64 ,202000,Financial Services
5416653,Creative Support Rents,Adult Social Care,Adults,Residential Home Long Stay Fees,,14/04/2021," 3,858.56 ",202000,Financial Services
5414486,Redacted,Adult Social Care,Adults,Professional Medical Services,,14/04/2021, 510.50 ,MEDICAL,Medical
5416662,Redacted,Contingency,Contingency,COVID-19 Additional Restrictions Support - Discretionary,,14/04/2021," 5,000.00 ",UNCLASS,Unclassifiable
5413323,N A Brown Ltd,Operations and Neighbourhoods,Operations and Neighbourhoods,General Materials,,14/04/2021," 1,875.00 ",-999999,Unclassifiable
5413326,Redacted,Childrens Services,Children's Services,Childrens Homes Outside Local Authority Fees,Redacted Supplier,14/04/2021," 9,600.00 ",321100,Social Community Care Supplies & Services - Children
5413237,HANDICARE LIMITED,Housing,Director of Place,Mandatory Adaptations Grant (DFG),,14/04/2021," 1,280.07 ",321100,Social Community Care Supplies & Services - Children
5413328,INTACT PROJECTS LTD,Childrens Services,Children's Services,Living With Formal Support,,14/04/2021," 4,088.57 ",-999999,Unclassifiable
5413332,FAMILY CARE FOSTERING LTD,Childrens Services,Children's Services,Foster Carer Agency Fees,,14/04/2021," 3,403.54 ",321100,Social Community Care Supplies & Services - Children
5413330,FAMILY CARE FOSTERING LTD,Childrens Services,Children's Services,Foster Carer Agency Fees,,14/04/2021," 3,491.89 ",321100,Social Community Care Supplies & Services - Children
5413334,FAMILY CARE FOSTERING LTD,Childrens Services,Children's Services,Foster Carer Agency Fees,,14/04/2021," 4,594.51 ",321100,Social Community Care Supplies & Services - Children
5415711,INSPIREDSPACES TAMESIDE LTD,Cultural and Customer Services,"Community,Environmental,Adult and Health Services",Fees,,14/04/2021," 3,088.45 ",390000,"Works - Construction, Repair & Maintenance"
5415648,INSPIREDSPACES TAMESIDE LTD,(blank),(blank),Fees,,14/04/2021," 157,869.47 ",390000,"Works - Construction, Repair & Maintenance"
5415625,INSPIREDSPACES TAMESIDE LTD,(blank),(blank),Fees,,14/04/2021," 99,365.74 ",390000,"Works - Construction, Repair & Maintenance"
5415646,INSPIREDSPACES TAMESIDE LTD,(blank),(blank),Survey/Surveyors Fees,,14/04/2021, 868.22 ,390000,"Works - Construction, Repair & Maintenance"
5413374,Redacted,Education,Children's Services,Professional Services,,14/04/2021," 1,100.00 ",170000,Education
5413355,Redacted,Operations and Neighbourhoods,Operations and Neighbourhoods,Professional Entertainment Services,,14/04/2021, 500.00 ,170000,Education
5413357,CIPFA BUSINESS LIMITED,Finance,Finance & IT,Subscriptions,,14/04/2021," 2,170.00 ",200000,Financial Services
5413262,STOCKPORT CP  SOCIETY,Adult Social Care,Adults,Homecare Fees,,14/04/2021," 2,522.40 ",321000,Social Community Care Supplies & Services - Adult
5415614,WIGAN MBC,Hosted Services,Hosted Services,Professional Services,,14/04/2021," 2,648.48 ",UNCLASS,Unclassifiable
5416266,CREATIVE SUPPORT LTD,Adult Social Care,Adults,Homecare Fees,,14/04/2021," 12,779.40 ",321000,Social Community Care Supplies & Services - Adult
5413377,RIGBY TAYLOR LTD,Operations and Neighbourhoods,Operations and Neighbourhoods,General Materials,,14/04/2021," 1,072.95 ",240000,Horticultural
5413359,MHR International UK Limited,People and Workforce Development,Governance,Computer Software,,14/04/2021," 2,808.00 ",270000,Information Communication Technology
5413362,ASKEWS  AND HOLTS LIBRARY SERVICES LTD,Operations and Neighbourhoods,Operations and Neighbourhoods,Purchase Books,,14/04/2021," 2,453.81 ",170000,Education
5413363,GOVNET COMMUNICATIONS,Governance,Governance,Training Course Costs,,14/04/2021," 1,250.00 ",260000,Human Resources
5413364,ODD ARTS,Operations and Neighbourhoods,Operations and Neighbourhoods,General Materials,,14/04/2021," 6,200.00 ",-999999,Unclassifiable
5413368,MANCHESTER PLANT TRAINING LTD,Operations and Neighbourhoods,Operations and Neighbourhoods,Training Course Costs,,14/04/2021, 990.00 ,260000,Human Resources
5415721,Redacted,Operations and Neighbourhoods,Operations and Neighbourhoods,Hired Transport,Business Payment,15/04/2021," 1,207.50 ",360000,Public Transport
5415725,Redacted,Operations and Neighbourhoods,Operations and Neighbourhoods,Hired Transport,Business Payment,15/04/2021," 2,580.00 ",360000,Public Transport
5412599,Montrose Recruitment Limited TA Montrose Living,Childrens Services,Children's Services,Living With Formal Support,,15/04/2021," 1,302.00 ",321100,Social Community Care Supplies & Services - Children
3250808,DENNIS EAGLE LTD,Transport,Director of Place,Debits Goods Received,,15/04/2021," 3,454.46 ",380000,Vehicle Management
3250808,DENNIS EAGLE LTD,Operations and Neighbourhoods,Operations and Neighbourhoods,General Materials,,15/04/2021," 3,864.13 ",380000,Vehicle Management
3250808,FREIGHT TRANSPORT ASSOCIATION,Operations and Neighbourhoods,Operations and Neighbourhoods,Vehicle Inspection/Testing Costs,,15/04/2021," 7,507.03 ",380000,Vehicle Management
3250808,G B OILS TA CARLTON FUELS,Transport,Director of Place,Diesel Fuel,,15/04/2021," 24,206.97 ",380000,Vehicle Management
3250808,A & J MOTORSPARES,Operations and Neighbourhoods,Operations and Neighbourhoods,General Materials,,15/04/2021, 523.00 ,380000,Vehicle Management
3250808,Teletrac Navman UK LTD (in corporating Navman Wireless UK LTD),Operations and Neighbourhoods,Operations and Neighbourhoods,General Equipment Repair & Maintenance,,15/04/2021," 5,385.33 ",360000,Public Transport
3250808,INDUSTRIAL & HYDRAULIC SERVICES,Operations and Neighbourhoods,Operations and Neighbourhoods,Sub-contractor Services,,15/04/2021, 690.07 ,100000,Building Construction Materials
3250808,Vehicle Weighing Solutions Ltd,Operations and Neighbourhoods,Operations and Neighbourhoods,Sub-contractor Services,,15/04/2021, 800.00 ,380000,Vehicle Management
3250808,Quantum Production Ltd T/A Quantum Cryogenics,Operations and Neighbourhoods,Operations and Neighbourhoods,General Equipment Repair & Maintenance,,15/04/2021," 1,060.00 ",100000,Building Construction Materials
5413367,Power2 Ltd,Operations and Neighbourhoods,Operations and Neighbourhoods,Project Costs,,15/04/2021," 10,000.00 ",170000,Education
5415690,Bloom Procurement Services Limited,GMPF (FX),GMPF (FX),Computer Software,,15/04/2021," 7,875.00 ",150000,Consultancy
5413634,KBW Barristers Chambers,Childrens Services,Children's Services,Legal Fees,,15/04/2021, 500.00 ,280000,Legal Services
5413631,KBW Barristers Chambers,Childrens Services,Children's Services,Legal Fees,,15/04/2021, 500.00 ,280000,Legal Services
5413635,KBW Barristers Chambers,Childrens Services,Children's Services,Legal Fees,,15/04/2021, 500.00 ,280000,Legal Services
5413632,KBW Barristers Chambers,Childrens Services,Children's Services,Legal Fees,,15/04/2021, 600.00 ,280000,Legal Services
5413633,KBW Barristers Chambers,Childrens Services,Children's Services,Legal Fees,,15/04/2021, 650.00 ,280000,Legal Services
5413636,Broad Hey Limited (Jonathan Sutton),Governance,Governance,Professional Consultancy Services,,15/04/2021, 675.00 ,281400,Legal Services
5413643,Redacted,Childrens Services,Children's Services,Nursery Services,,15/04/2021, 665.96 ,171040,Education
5413642,Redacted,Childrens Services,Children's Services,Professional Services,,15/04/2021, 718.50 ,171040,Education
5415452,Redacted,Childrens Services,Children's Services,Nursery Services,,15/04/2021, 697.98 ,171040,Education
5414826,The Woodland Trust,Hosted Services,Hosted Services,Chief/Ground Rent,,15/04/2021," 2,100.00 ",250000,Housing Management
5413644,Optima Health,People and Workforce Development,Governance,Fees,,15/04/2021," 3,593.23 ",311410,Healthcare
5413645,1ST PLANNER LTD,(blank),(blank),New Accommodation Works,,15/04/2021," 2,000.00 ",171011,Education
5413648,Engage Support LTD,Childrens Services,Children's Services,Living With Formal Support,,15/04/2021," 9,180.00 ",-999999,Unclassifiable
5416657,Creative Support Rents,Adult Social Care,Adults,Residential Home Long Stay Fees,,15/04/2021, 964.64 ,202000,Financial Services
5416654,Creative Support Rents,Adult Social Care,Adults,Residential Home Long Stay Fees,,15/04/2021, 964.64 ,202000,Financial Services
5416655,Creative Support Rents,Adult Social Care,Adults,Residential Home Long Stay Fees,,15/04/2021, 964.64 ,202000,Financial Services
5416658,Creative Support Rents,Adult Social Care,Adults,Residential Home Long Stay Fees,,15/04/2021, 964.64 ,202000,Financial Services
5416573,Redacted,Contingency,Contingency,COVID-19 Payments - Domestic/Taxi,,15/04/2021," 1,500.00 ",UNCLASS,Unclassifiable
5413638,ALLIANCE DISPOSABLES LTD,Adult Social Care,Adults,Printing And Stationery,,15/04/2021," 3,015.00 ",130000,Cleaning & Janitorial
5416088,NSL LIMITED,Operations and Neighbourhoods,Operations and Neighbourhoods,Fees,,15/04/2021," 1,605.40 ",350000,Street & Traffic Management
5413650,N A Brown Ltd,Operations and Neighbourhoods,Operations and Neighbourhoods,General Materials,,15/04/2021, 865.00 ,-999999,Unclassifiable
5413651,REACTEC LIMITED,Operations and Neighbourhoods,Operations and Neighbourhoods,General Materials,,15/04/2021," 4,953.77 ",390000,"Works - Construction, Repair & Maintenance"
5413652,ADCS LTD,Childrens Services,Children's Services,Professional Services,,15/04/2021," 2,686.00 ",200000,Financial Services
5415692,OAKFIELDS CHILDRENS CARE,Childrens Services,Children's Services,Childrens Homes Outside Local Authority Fees,,15/04/2021," 9,980.00 ",321100,Social Community Care Supplies & Services - Children
5416188,PRD PROPERTY SERVICES LTD,Governance,Governance,Legal Fees,,15/04/2021," 7,200.00 ",190000,Facilities & Management Services
5413655,TUNSTALL HEALTHCARE (UK) LTD,Adult Social Care,Adults,IT Equipment,,15/04/2021, 621.00 ,321000,Social Community Care Supplies & Services - Adult
5414704,INSPIREDSPACES TAMESIDE (PROJECTCO2) LTD,Asset & Investment Partnership Management,Growth,PFI FM Fees and Insurance Costs,,15/04/2021," 14,393.75 ",170000,Education
5415732,AGE UK TAMESIDE,Adult Social Care,Adults,Professional Services,,15/04/2021," 44,065.75 ",180000,Environmental Services
5413658,CLARENDON MEDICAL PRACTICE,Population Health,Population Health,Local Enhanced Services,,15/04/2021," 3,510.00 ",150000,Consultancy
5415905,THE FAMILY UNIT LTD,Childrens Services,Children's Services,Living With Formal Support,,15/04/2021," 4,628.57 ",321000,Social Community Care Supplies & Services - Adult
5415906,THE FAMILY UNIT LTD,Childrens Services,Children's Services,Living With Formal Support,,15/04/2021," 10,250.00 ",321000,Social Community Care Supplies & Services - Adult
5415887,THE FAMILY UNIT LTD,Childrens Services,Children's Services,Living With Formal Support,,15/04/2021," 16,285.71 ",321000,Social Community Care Supplies & Services - Adult
5415889,THE FAMILY UNIT LTD,Childrens Services,Children's Services,Living With Formal Support,,15/04/2021," 18,428.57 ",321000,Social Community Care Supplies & Services - Adult
5415886,THE FAMILY UNIT LTD,Childrens Services,Children's Services,Childrens Homes Outside Local Authority Fees,,15/04/2021," 2,886.00 ",321000,Social Community Care Supplies & Services - Adult
5415879,THE FAMILY UNIT LTD,Childrens Services,Children's Services,Living With Formal Support,,15/04/2021," 7,328.57 ",321000,Social Community Care Supplies & Services - Adult
5415897,THE FAMILY UNIT LTD,Childrens Services,Children's Services,Living With Formal Support,,15/04/2021," 14,558.57 ",321000,Social Community Care Supplies & Services - Adult
5416522,QUEST MEDIA NETWORKS LTD,Policy and Communications,Governance,"Marketing, Publicity and Recruitment",,15/04/2021, 575.00 ,-999999,Unclassifiable
5413659,Manchester University NHS Foundation Trust (MFT),Population Health,Population Health,Professional Services,,15/04/2021," 45,000.00 ",150000,Consultancy
5415323,INSPIREDSPACES TAMESIDE LTD,(blank),(blank),Building Works,,15/04/2021," 100,234.78 ",390000,"Works - Construction, Repair & Maintenance"
5415670,INSPIREDSPACES TAMESIDE LTD,(blank),(blank),New Accommodation Works,,15/04/2021," 25,184.06 ",390000,"Works - Construction, Repair & Maintenance"
5415394,INSPIREDSPACES TAMESIDE LTD,(blank),(blank),Building Works,,15/04/2021," 65,209.43 ",390000,"Works - Construction, Repair & Maintenance"
5415635,STEPPING STONES CHILDRENS HOMES LTD,Childrens Services,Children's Services,Childrens Homes Outside Local Authority Fees,,15/04/2021," 27,022.43 ",321100,Social Community Care Supplies & Services - Children
5416574,Oxygen Finance Limited,People and Workforce Development,Governance,Professional Services,,15/04/2021," 4,889.86 ",200000,Financial Services
5415977,FENTONS TAXIS,Education,Children's Services,Transport Of Pupils,,15/04/2021," 2,242.50 ",360000,Public Transport
5413668,ASHTON SIXTH FORM COLLEGE,Education,Children's Services,Post 16 FE College Fees,,15/04/2021," 6,579.00 ",170000,Education
5413667,ASHTON SIXTH FORM COLLEGE,Education,Children's Services,Post 16 FE College Fees,,15/04/2021," 6,579.00 ",170000,Education
5413486,PHOENIX SOFTWARE LTD,GMPF (FX),GMPF (FX),Computer Software,,15/04/2021," 22,086.55 ",270000,Information Communication Technology
5413488,PHOENIX SOFTWARE LTD,GMPF (FX),GMPF (FX),Computer Software,,15/04/2021," 1,728.00 ",270000,Information Communication Technology
5413677,NPOWER LIMITED,Place,Growth,Electricity,,15/04/2021," 50,213.30 ",370000,Utilities
5413676,NPOWER LIMITED,Operations and Neighbourhoods,Operations and Neighbourhoods,Electricity,,15/04/2021," 134,892.44 ",370000,Utilities
5415934,FENTONS MINIBUSES LTD,Education,Children's Services,Transport Of Ola Pupils,,15/04/2021," 2,540.00 ",360000,Public Transport
5415451,STAMFORD CARS UK LTD,Education,Children's Services,Transport Of Pupils,,15/04/2021," 1,380.00 ",360000,Public Transport
5415467,STAMFORD CARS UK LTD,Education,Children's Services,Transport Of Pupils,,15/04/2021," 2,200.00 ",360000,Public Transport
5415497,STAMFORD CARS UK LTD,Education,Children's Services,Transport Of Pupils,,15/04/2021," 2,185.00 ",360000,Public Transport
5415487,STAMFORD CARS UK LTD,Education,Children's Services,Transport Of Pupils,,15/04/2021," 2,185.00 ",360000,Public Transport
5415492,STAMFORD CARS UK LTD,Education,Children's Services,Transport Of Pupils,,15/04/2021," 2,185.00 ",360000,Public Transport
5413717,COOLSPIRIT LTD,Digital Tameside,Finance & IT,Network Equipment/Setup,,16/04/2021," 1,116.50 ",270000,Information Communication Technology
5413719,Hampshire County Council,Childrens Services,Children's Services,Adoption Agency Fees,,16/04/2021," 9,000.00 ",400000,Non 3rd Party spend  
5415165,Montrose Recruitment Limited TA Montrose Living,Childrens Services,Children's Services,Living With Formal Support,,16/04/2021," 5,648.64 ",321100,Social Community Care Supplies & Services - Children
5413720,Redacted,Childrens Services,Children's Services,Legal Fees,,16/04/2021, 600.00 ,280000,Legal Services
5413869,Redacted,Operations and Neighbourhoods,Operations and Neighbourhoods,Professional Entertainment Services,,16/04/2021, 500.00 ,-999999,Unclassifiable
5413728,YOUNG PEOPLE FIRST LIMITED,Childrens Services,Children's Services,Living With Formal Support,,16/04/2021," 2,730.00 ",321100,Social Community Care Supplies & Services - Children
5413732,YOUNG PEOPLE FIRST LIMITED,Childrens Services,Children's Services,Living With Formal Support,,16/04/2021, 850.00 ,321100,Social Community Care Supplies & Services - Children
5413731,Sandcastle Care LTD,Childrens Services,Children's Services,Childrens Homes Outside Local Authority Fees,,16/04/2021," 26,549.29 ",321000,Social Community Care Supplies & Services - Adult
5413745,Sandcastle Care LTD,Childrens Services,Children's Services,Childrens Homes Outside Local Authority Fees,,16/04/2021," 26,549.29 ",321000,Social Community Care Supplies & Services - Adult
5413734,Sandcastle Care LTD,Childrens Services,Children's Services,Childrens Homes Outside Local Authority Fees,,16/04/2021," 18,821.43 ",321000,Social Community Care Supplies & Services - Adult
5413736,Sandcastle Care LTD,Childrens Services,Children's Services,Childrens Homes Outside Local Authority Fees,,16/04/2021," 44,064.29 ",321000,Social Community Care Supplies & Services - Adult
5413741,Sandcastle Care LTD,Childrens Services,Children's Services,Childrens Homes Outside Local Authority Fees,,16/04/2021," 26,549.29 ",321000,Social Community Care Supplies & Services - Adult
5413743,Sandcastle Care LTD,Childrens Services,Children's Services,Childrens Homes Outside Local Authority Fees,,16/04/2021," 26,549.29 ",321000,Social Community Care Supplies & Services - Adult
5413873,AFFINITY WORKFORCE SOLUTIONS LIMITED T/A Monarch Education,Education,Children's Services,Independent School Fees,,16/04/2021, 600.00 ,170000,Education
5413882,Furniture Resource Centre Ltd,Operations and Neighbourhoods,Operations and Neighbourhoods,"Fixtures, Fittings & Furniture Purchase",,16/04/2021," 1,140.39 ",UNCLASS,Unclassifiable
5413887,Furniture Resource Centre Ltd,Childrens Services,Children's Services,"Fixtures,Fittings & Furniture Purchase (Service Users)",,16/04/2021, 552.60 ,UNCLASS,Unclassifiable
5413888,Furniture Resource Centre Ltd,Operations and Neighbourhoods,Operations and Neighbourhoods,"Fixtures, Fittings & Furniture Purchase",,16/04/2021, 518.00 ,UNCLASS,Unclassifiable
5413884,Furniture Resource Centre Ltd,Operations and Neighbourhoods,Operations and Neighbourhoods,"Fixtures, Fittings & Furniture Purchase",,16/04/2021, 535.34 ,UNCLASS,Unclassifiable
5413749,G2V Recruitment Group Limited t/a Vivid Resourcing,Place,Growth,Agency Staff,,16/04/2021," 2,500.00 ",280000,Legal Services
5413751,G2V Recruitment Group Limited t/a Vivid Resourcing,Place,Growth,Recruitment Campaign,,16/04/2021," 2,925.00 ",280000,Legal Services
5413790,18 St John Street Chambers,Childrens Services,Children's Services,Legal Fees,,16/04/2021," 1,490.00 ",280000,Legal Services
5413893,18 St John Street Chambers,Childrens Services,Children's Services,Legal Fees,,16/04/2021, 840.00 ,280000,Legal Services
5413782,18 St John Street Chambers,Childrens Services,Children's Services,Legal Fees,,16/04/2021, 770.00 ,280000,Legal Services
5413816,18 St John Street Chambers,Childrens Services,Children's Services,Legal Fees,,16/04/2021, 770.00 ,280000,Legal Services
5413824,18 St John Street Chambers,Childrens Services,Children's Services,Legal Fees,,16/04/2021, 770.00 ,280000,Legal Services
5413787,18 St John Street Chambers,Childrens Services,Children's Services,Legal Fees,,16/04/2021, 950.00 ,280000,Legal Services
5413789,18 St John Street Chambers,Childrens Services,Children's Services,Legal Fees,,16/04/2021, 950.00 ,280000,Legal Services
5413788,18 St John Street Chambers,Childrens Services,Children's Services,Legal Fees,,16/04/2021, 650.00 ,280000,Legal Services
5413818,18 St John Street Chambers,Childrens Services,Children's Services,Legal Fees,,16/04/2021, 650.00 ,280000,Legal Services
5413763,18 St John Street Chambers,Childrens Services,Children's Services,Legal Fees,,16/04/2021, 650.00 ,280000,Legal Services
5413779,18 St John Street Chambers,Childrens Services,Children's Services,Legal Fees,,16/04/2021, 650.00 ,280000,Legal Services
5413760,18 St John Street Chambers,Childrens Services,Children's Services,Legal Fees,,16/04/2021, 650.00 ,280000,Legal Services
5413761,18 St John Street Chambers,Childrens Services,Children's Services,Legal Fees,,16/04/2021, 650.00 ,280000,Legal Services
5413766,18 St John Street Chambers,Childrens Services,Children's Services,Legal Fees,,16/04/2021, 650.00 ,280000,Legal Services
5413771,18 St John Street Chambers,Childrens Services,Children's Services,Legal Fees,,16/04/2021, 650.00 ,280000,Legal Services
5413791,18 St John Street Chambers,Childrens Services,Children's Services,Legal Fees,,16/04/2021, 650.00 ,280000,Legal Services
5413821,18 St John Street Chambers,Childrens Services,Children's Services,Legal Fees,,16/04/2021, 650.00 ,280000,Legal Services
5413826,18 St John Street Chambers,Childrens Services,Children's Services,Legal Fees,,16/04/2021, 650.00 ,280000,Legal Services
5413823,18 St John Street Chambers,Childrens Services,Children's Services,Legal Fees,,16/04/2021, 770.00 ,280000,Legal Services
5413754,18 St John Street Chambers,Childrens Services,Children's Services,Legal Fees,,16/04/2021, 650.00 ,280000,Legal Services
5413756,18 St John Street Chambers,Childrens Services,Children's Services,Legal Fees,,16/04/2021, 650.00 ,280000,Legal Services
5413758,18 St John Street Chambers,Childrens Services,Children's Services,Legal Fees,,16/04/2021, 650.00 ,280000,Legal Services
5413819,18 St John Street Chambers,Childrens Services,Children's Services,Legal Fees,,16/04/2021," 1,540.00 ",280000,Legal Services
5413815,18 St John Street Chambers,Childrens Services,Children's Services,Legal Fees,,16/04/2021," 1,010.00 ",280000,Legal Services
5413768,18 St John Street Chambers,Childrens Services,Children's Services,Legal Fees,,16/04/2021, 550.00 ,280000,Legal Services
5413770,18 St John Street Chambers,Childrens Services,Children's Services,Legal Fees,,16/04/2021, 550.00 ,280000,Legal Services
5413810,CARTER BROWN - THE EXPERT SERVICE LIMITED,Childrens Services,Children's Services,Professional Medical Services,,16/04/2021," 2,347.90 ",280000,Legal Services
5413809,CARTER BROWN - THE EXPERT SERVICE LIMITED,Childrens Services,Children's Services,Professional Medical Services,,16/04/2021," 1,782.00 ",280000,Legal Services
5413827,CARTER BROWN - THE EXPERT SERVICE LIMITED,Childrens Services,Children's Services,Professional Medical Services,,16/04/2021," 5,514.50 ",280000,Legal Services
5415136,Pure Care Homes Ltd,Childrens Services,Children's Services,Childrens Homes Outside Local Authority Fees,,16/04/2021," 16,164.33 ",321000,Social Community Care Supplies & Services - Adult
5413895,N-Compass Northwest,Adult Social Care,Adults,Professional Services,,16/04/2021," 14,789.84 ",-999999,Unclassifiable
5413738,Pennine Medical Supplies Ltd T/A Pennine Workwear,Operations and Neighbourhoods,Operations and Neighbourhoods,Protective Clothing,,16/04/2021, 880.00 ,MEDICAL,Medical
5413753,GREENLEAF HEALTH & SOCIAL CARE,Adult Social Care,Adults,Homecare Fees,,16/04/2021," 4,083.65 ",250000,Housing Management
5413049,GREENLEAF HEALTH & SOCIAL CARE,Adult Social Care,Adults,Homecare Fees,,16/04/2021," 3,382.39 ",250000,Housing Management
5413897,The JJeffect Ltd,Operations and Neighbourhoods,Operations and Neighbourhoods,Project Costs,,16/04/2021," 5,000.00 ",261500,Human Resources
5413912,The IOutlet T/A James Green Ltd,Adult Social Care,Adults,Professional Services,,16/04/2021," 1,500.00 ",271400,Information Communication Technology
5413926,SSI SCHAEFER LTD,Operations and Neighbourhoods,Operations and Neighbourhoods,Purchase Wheeled Bins,,16/04/2021," 1,134.00 ",180000,Environmental Services
5413923,SSI SCHAEFER LTD,Operations and Neighbourhoods,Operations and Neighbourhoods,Purchase Wheeled Bins,,16/04/2021," 29,598.30 ",180000,Environmental Services
5413962,PRO-CLEAN NW LTD,(blank),(blank),Building Works,,16/04/2021," 1,780.00 ",130000,Cleaning & Janitorial
5416139,GREENSCAPE,Operations and Neighbourhoods,Operations and Neighbourhoods,General Materials,,16/04/2021, 660.00 ,390000,"Works - Construction, Repair & Maintenance"
5413963,TMP UK LTD,Finance,Finance & IT,"Marketing, Publicity and Recruitment",,16/04/2021," 1,335.00 ",260000,Human Resources
5416051,TAMESIDE AND GLOSSOP INTEGRATED CARE NHS FOUNDATION TRUST,Childrens Services,Children's Services,Homecare Fees,,16/04/2021," 3,886.92 ",310000,Healthcare
5413965,TELEFONICA O2 (UK) LTD,Digital Tameside,Finance & IT,Mobile Telephones,,16/04/2021," 6,792.97 ",270000,Information Communication Technology
5413967,LAVAT CONSULTING LIMITED,Finance,Finance & IT,Fees,,16/04/2021," 2,950.00 ",150000,Consultancy
5414001,VISION FOR EDUCATION LIMITED,Education,Children's Services,Professional Services,,16/04/2021, 754.00 ,170000,Education
5416756,MATTHEWS ENVIRONMENTAL SOLUTIONS LTD,(blank),(blank),Engineers -External,,16/04/2021," 8,000.00 ",390000,"Works - Construction, Repair & Maintenance"
5413968,REDDIPAK LIMITED,Operations and Neighbourhoods,Operations and Neighbourhoods,General Materials,,16/04/2021, 532.00 ,-999999,Unclassifiable
5416010,PEOPLE FIRST TAMESIDE,Adult Social Care,Adults,Homecare Fees,,16/04/2021, 501.75 ,321000,Social Community Care Supplies & Services - Adult
5416011,PEOPLE FIRST TAMESIDE,Adult Social Care,Adults,Professional Services,,16/04/2021," 5,866.88 ",321000,Social Community Care Supplies & Services - Adult
5416025,PEOPLE FIRST TAMESIDE,Adult Social Care,Adults,Homecare Fees,,16/04/2021, 934.80 ,321000,Social Community Care Supplies & Services - Adult
5416024,PEOPLE FIRST TAMESIDE,Adult Social Care,Adults,Homecare Fees,,16/04/2021," 1,377.60 ",321000,Social Community Care Supplies & Services - Adult
5416026,PEOPLE FIRST TAMESIDE,Adult Social Care,Adults,Homecare Fees,,16/04/2021," 1,043.64 ",321000,Social Community Care Supplies & Services - Adult
5416310,PERSON CENTRED CARE SERVICES LIMITED,Adult Social Care,Adults,Homecare Fees,,16/04/2021," 8,626.36 ",310000,Healthcare
5414129,PROFILE SECURITY SERVICES LIMITED,Operations and Neighbourhoods,Operations and Neighbourhoods,General Materials,,16/04/2021," 5,529.16 ",190000,Facilities & Management Services
5414163,PROFILE SECURITY SERVICES LIMITED,Operations and Neighbourhoods,Operations and Neighbourhoods,General Materials,,16/04/2021," 6,121.58 ",190000,Facilities & Management Services
5414925,COMFORT CALL LIMITED,Adult Social Care,Adults,Homecare Fees,,16/04/2021," 37,900.49 ",310000,Healthcare
5414926,COMFORT CALL LIMITED,Adult Social Care,Adults,Homecare Fees,,16/04/2021," 38,697.76 ",310000,Healthcare
5414932,COMFORT CALL LIMITED,Adult Social Care,Adults,Homecare Fees,,16/04/2021," 38,088.57 ",310000,Healthcare
5414934,COMFORT CALL LIMITED,Adult Social Care,Adults,Homecare Fees,,16/04/2021," 39,411.81 ",310000,Healthcare
5414159,WRIXON CARE SERVICES LTD,Childrens Services,Children's Services,Hired Transport,,16/04/2021," 1,795.50 ",321000,Social Community Care Supplies & Services - Adult
5414158,CLARENDON MEDICAL PRACTICE,Population Health,Population Health,Local Enhanced Services,,16/04/2021, 795.00 ,150000,Consultancy
5414151,CPD CERTIFICATION SERVICES,Hosted Services,Hosted Services,Conference/Seminar Expenses,,16/04/2021," 2,145.00 ",260000,Human Resources
5414009,HANDICARE LIMITED,Housing,Director of Place,Mandatory Adaptations Grant (DFG),,16/04/2021," 1,149.00 ",321100,Social Community Care Supplies & Services - Children
5414010,HANDICARE LIMITED,Housing,Director of Place,Mandatory Adaptations Grant (DFG),,16/04/2021," 1,322.56 ",321100,Social Community Care Supplies & Services - Children
5413849,KINGS CHAMBERS,Adult Social Care,Adults,Legal Fees,,16/04/2021, 750.00 ,908001,Public Bodies
5414012,UNITED UTILITIES,Place,Growth,Water (Metered and Rates),,16/04/2021, 670.40 ,UNCLASS,Unclassifiable
5413954,UNITED UTILITIES,Operations and Neighbourhoods,Operations and Neighbourhoods,Water (Metered and Rates),,16/04/2021, 882.52 ,UNCLASS,Unclassifiable
5413853,NEWGROVE CONSULTANTS LTD T/A NEWGROVE,Place,Growth,Subscriptions,,16/04/2021," 1,495.00 ",280000,Legal Services
5413778,ACORN CARE & EDUCATION LTD (SALES),Education,Children's Services,Independent School Fees,,16/04/2021," 23,685.67 ",321100,Social Community Care Supplies & Services - Children
5413774,ACORN CARE & EDUCATION LTD (SALES),Education,Children's Services,Independent School Fees,,16/04/2021," 11,624.27 ",321100,Social Community Care Supplies & Services - Children
5414015,ACORN CARE & EDUCATION LTD (SALES),Education,Children's Services,Independent School Fees,,16/04/2021," 11,626.61 ",321100,Social Community Care Supplies & Services - Children
5414016,ACORN CARE & EDUCATION LTD (SALES),Education,Children's Services,Independent School Fees,,16/04/2021," 11,626.61 ",321100,Social Community Care Supplies & Services - Children
5413775,ACORN CARE & EDUCATION LTD (SALES),Education,Children's Services,Independent School Fees,,16/04/2021," 23,685.66 ",321100,Social Community Care Supplies & Services - Children
5414157,ECOM COMMUNICATIONS,Exchequer,Governance,Professional Services,,16/04/2021, 589.95 ,-999999,Unclassifiable
5416316,ABLE CARE AND SUPPORT SERVICES LTD,Adult Social Care,Adults,Homecare Fees,,16/04/2021," 12,631.80 ",321000,Social Community Care Supplies & Services - Adult
5415138,QUEST MEDIA NETWORKS LTD,Place,Growth,Statutory Advertising,,16/04/2021, 900.00 ,-999999,Unclassifiable
5413847,COMPLETE BACKGROUND SCREENING LTD,People and Workforce Development,Governance,Professional Services,,16/04/2021," 1,871.00 ",-999999,Unclassifiable
5414019,COMPLETE BACKGROUND SCREENING LTD,People and Workforce Development,Governance,Professional Services,,16/04/2021," 1,205.00 ",-999999,Unclassifiable
5413786,COMPLETE BACKGROUND SCREENING LTD,People and Workforce Development,Governance,Professional Services,,16/04/2021," 1,136.00 ",-999999,Unclassifiable
5414018,COMPLETE BACKGROUND SCREENING LTD,People and Workforce Development,Governance,Professional Services,,16/04/2021," 1,151.50 ",-999999,Unclassifiable
5413785,COMPLETE BACKGROUND SCREENING LTD,People and Workforce Development,Governance,Professional Services,,16/04/2021," 1,151.50 ",-999999,Unclassifiable
5414026,PLATINUM STAIRLIFTS LIMITED,Housing,Director of Place,Mandatory Adaptations Grant (DFG),,16/04/2021," 4,806.25 ",321000,Social Community Care Supplies & Services - Adult
5414022,PLATINUM STAIRLIFTS LIMITED,Housing,Director of Place,Mandatory Adaptations Grant (DFG),,16/04/2021," 4,338.74 ",321000,Social Community Care Supplies & Services - Adult
5414023,PLATINUM STAIRLIFTS LIMITED,Housing,Director of Place,Mandatory Adaptations Grant (DFG),,16/04/2021," 4,163.56 ",321000,Social Community Care Supplies & Services - Adult
5414027,PLATINUM STAIRLIFTS LIMITED,Housing,Director of Place,Mandatory Adaptations Grant (DFG),,16/04/2021," 2,575.00 ",321000,Social Community Care Supplies & Services - Adult
5414028,Connex Community Support,Childrens Services,Children's Services,Homecare Fees,,16/04/2021," 1,573.83 ",321000,Social Community Care Supplies & Services - Adult
5413983,Connex Community Support,Childrens Services,Children's Services,Homecare Fees,,16/04/2021," 1,700.13 ",321000,Social Community Care Supplies & Services - Adult
5414032,Connex Community Support,Childrens Services,Children's Services,Homecare Fees,,16/04/2021, 735.20 ,321000,Social Community Care Supplies & Services - Adult
5414034,Connex Community Support,Childrens Services,Children's Services,Homecare Fees,,16/04/2021, 718.91 ,321000,Social Community Care Supplies & Services - Adult
5414055,NATIONAL FOSTERING AGENCY LTD,Childrens Services,Children's Services,Foster Carer Agency Fees,,16/04/2021," 3,335.00 ",321100,Social Community Care Supplies & Services - Children
5414051,NATIONAL FOSTERING AGENCY LTD,Childrens Services,Children's Services,Foster Carer Agency Fees,,16/04/2021," 3,116.74 ",321100,Social Community Care Supplies & Services - Children
5414054,NATIONAL FOSTERING AGENCY LTD,Childrens Services,Children's Services,Foster Carer Agency Fees,,16/04/2021," 2,915.66 ",321100,Social Community Care Supplies & Services - Children
5414052,NATIONAL FOSTERING AGENCY LTD,Childrens Services,Children's Services,Foster Carer Agency Fees,,16/04/2021," 2,892.75 ",321100,Social Community Care Supplies & Services - Children
5414025,STRUCTEC (NW) LTD,Housing,Director of Place,Mandatory Adaptations Grant (DFG),,16/04/2021," 12,704.26 ",321000,Social Community Care Supplies & Services - Adult
5413716,THE SUMMERHOUSE STUDIO,Operations and Neighbourhoods,Operations and Neighbourhoods,General Materials,,16/04/2021," 2,402.00 ",-999999,Unclassifiable
5414912,CARELINE HOMECARE LTD,Adult Social Care,Adults,Homecare Fees,,16/04/2021," 34,620.26 ",321000,Social Community Care Supplies & Services - Adult
5414911,CARELINE HOMECARE LTD,Adult Social Care,Adults,Homecare Fees,,16/04/2021," 33,770.47 ",321000,Social Community Care Supplies & Services - Adult
5414913,CARELINE HOMECARE LTD,Adult Social Care,Adults,Homecare Fees,,16/04/2021," 34,867.01 ",321000,Social Community Care Supplies & Services - Adult
5414917,CARELINE HOMECARE LTD,Adult Social Care,Adults,Homecare Fees,,16/04/2021," 33,974.43 ",321000,Social Community Care Supplies & Services - Adult
5414155,ROUTES HEALTHCARE (NORTH) LIMITED,Contingency,Contingency,COVID-19 Infection Control Fund,,16/04/2021," 17,507.58 ",321100,Social Community Care Supplies & Services - Children
5415085,LIBERTY SUPPORT SERVICES LTD,Adult Social Care,Adults,Homecare Fees,,16/04/2021," 17,192.00 ",321000,Social Community Care Supplies & Services - Adult
5416311,Headsets4Business Limited,Contingency,Contingency,IT Equipment,,16/04/2021," 2,200.00 ",270000,Information Communication Technology
5413829,Target Psychology Limited,Childrens Services,Children's Services,Professional Child Services,,16/04/2021, 748.80 ,280000,Legal Services
5413825,Target Psychology Limited,Childrens Services,Children's Services,Professional Child Services,,16/04/2021," 3,226.45 ",280000,Legal Services
5413828,Target Psychology Limited,Childrens Services,Children's Services,Professional Child Services,,16/04/2021, 968.10 ,280000,Legal Services
5414156,Dukinfield Medical Practice,Population Health,Population Health,Local Enhanced Services,,16/04/2021," 2,100.00 ",321000,Social Community Care Supplies & Services - Adult
5416366,Smartway Health and Social Care Limited,Adult Social Care,Adults,Homecare Fees,,16/04/2021," 3,643.52 ",321000,Social Community Care Supplies & Services - Adult
5416234,Viva Minibus LTD,Education,Children's Services,Transport Of Pupils,,16/04/2021," 2,720.00 ",230000,Highway Equipment & Materials
5415833,Viva Minibus LTD,Education,Children's Services,Transport Of Pupils,,16/04/2021," 2,960.00 ",230000,Highway Equipment & Materials
5416089,NMA Travel LTD,Education,Children's Services,Transport Of Pupils,,16/04/2021," 2,576.00 ",360000,Public Transport
5416082,NMA Travel LTD,Education,Children's Services,Transport Of Pupils,,16/04/2021," 2,714.00 ",360000,Public Transport
5413759,Redacted,Education,Children's Services,Professional Services,,16/04/2021," 1,100.00 ",321100,Social Community Care Supplies & Services - Children
5413764,Redacted,Education,Children's Services,Professional Services,,16/04/2021," 1,100.00 ",321100,Social Community Care Supplies & Services - Children
5413836,Footsteps Psychology,Education,Children's Services,Professional Services,,16/04/2021," 1,100.00 ",-999999,Unclassifiable
5412263,GREATER MANCHESTER COMBINED AUTHORITY,Operations and Neighbourhoods,Operations and Neighbourhoods,Waste Levy - Domestic Waste Disposal Costs,,16/04/2021," 1,250,000.00 ",-999999,Unclassifiable
5413839,Redacted,Childrens Services,Children's Services,Legal Fees,,16/04/2021," 1,543.75 ",UNCLASS,Unclassifiable
5413928,TREASURED MEMORIES LTD,Operations and Neighbourhoods,Operations and Neighbourhoods,Plaques,,16/04/2021, 640.90 ,120000,Cemetery & Crematorium
5413843,ULVERSCROFT LARGE PRINT  BOOKS LTD,Operations and Neighbourhoods,Operations and Neighbourhoods,Purchase Books,,16/04/2021, 611.84 ,170000,Education
5413780,W F HOWES LTD,Operations and Neighbourhoods,Operations and Neighbourhoods,Digital Materials,,16/04/2021," 7,120.00 ",170000,Education
5414044,M.C. & M.A. STEWART HAULAGE LTD,Operations and Neighbourhoods,Operations and Neighbourhoods,General Materials,,16/04/2021," 4,230.00 ",240000,Horticultural
5416336,NEXUS MOVE LIMITED PREVIOUSLY RADIO CABS (ASHTON)LTD,Operations and Neighbourhoods,Operations and Neighbourhoods,Hired Transport,,16/04/2021, 695.00 ,360000,Public Transport
5416339,NEXUS MOVE LIMITED PREVIOUSLY RADIO CABS (ASHTON)LTD,Operations and Neighbourhoods,Operations and Neighbourhoods,Hired Transport,,16/04/2021, 610.50 ,360000,Public Transport
5416305,NEXUS MOVE LIMITED PREVIOUSLY RADIO CABS (ASHTON)LTD,Education,Children's Services,Transport Of Ola Pupils,,16/04/2021," 1,232.00 ",360000,Public Transport
5416303,NEXUS MOVE LIMITED PREVIOUSLY RADIO CABS (ASHTON)LTD,Education,Children's Services,Transport Of Ola Pupils,,16/04/2021, 874.00 ,360000,Public Transport
5416353,NEXUS MOVE LIMITED PREVIOUSLY RADIO CABS (ASHTON)LTD,Education,Children's Services,Transport Of Pupils,,16/04/2021," 2,438.00 ",360000,Public Transport
5416331,NEXUS MOVE LIMITED PREVIOUSLY RADIO CABS (ASHTON)LTD,Education,Children's Services,Transport Of Ola Pupils,,16/04/2021," 2,520.00 ",360000,Public Transport
5416340,NEXUS MOVE LIMITED PREVIOUSLY RADIO CABS (ASHTON)LTD,Education,Children's Services,Transport Of Pupils,,16/04/2021," 2,208.00 ",360000,Public Transport
5416328,NEXUS MOVE LIMITED PREVIOUSLY RADIO CABS (ASHTON)LTD,Education,Children's Services,Transport Of Pupils,,16/04/2021," 2,254.00 ",360000,Public Transport
5416315,NEXUS MOVE LIMITED PREVIOUSLY RADIO CABS (ASHTON)LTD,Education,Children's Services,Transport Of Pupils,,16/04/2021," 2,438.00 ",360000,Public Transport
5416330,NEXUS MOVE LIMITED PREVIOUSLY RADIO CABS (ASHTON)LTD,Education,Children's Services,Transport Of Pupils,,16/04/2021," 2,438.00 ",360000,Public Transport
5416306,NEXUS MOVE LIMITED PREVIOUSLY RADIO CABS (ASHTON)LTD,Education,Children's Services,Transport Of Pupils,,16/04/2021," 2,208.00 ",360000,Public Transport
5416318,NEXUS MOVE LIMITED PREVIOUSLY RADIO CABS (ASHTON)LTD,Education,Children's Services,Transport Of Post 16 Pupils,,16/04/2021," 2,208.00 ",360000,Public Transport
5416349,NEXUS MOVE LIMITED PREVIOUSLY RADIO CABS (ASHTON)LTD,Education,Children's Services,Transport Of Ola Pupils,,16/04/2021," 1,904.00 ",360000,Public Transport
5416321,NEXUS MOVE LIMITED PREVIOUSLY RADIO CABS (ASHTON)LTD,Education,Children's Services,Transport Of Ola Pupils,,16/04/2021, 880.00 ,360000,Public Transport
5416342,NEXUS MOVE LIMITED PREVIOUSLY RADIO CABS (ASHTON)LTD,Education,Children's Services,Transport Of Post 16 Pupils,,16/04/2021, 627.00 ,360000,Public Transport
5416317,NEXUS MOVE LIMITED PREVIOUSLY RADIO CABS (ASHTON)LTD,Education,Children's Services,Transport Of Post 16 Pupils,,16/04/2021, 770.00 ,360000,Public Transport
5416332,NEXUS MOVE LIMITED PREVIOUSLY RADIO CABS (ASHTON)LTD,Adult Social Care,Adults,Hired Transport,,16/04/2021, 523.24 ,360000,Public Transport
5416344,NEXUS MOVE LIMITED PREVIOUSLY RADIO CABS (ASHTON)LTD,Education,Children's Services,Transport Of Pupils,,16/04/2021, 561.00 ,360000,Public Transport
5416337,NEXUS MOVE LIMITED PREVIOUSLY RADIO CABS (ASHTON)LTD,Education,Children's Services,Transport Of Ola Pupils,,16/04/2021, 715.00 ,360000,Public Transport
5416345,NEXUS MOVE LIMITED PREVIOUSLY RADIO CABS (ASHTON)LTD,Education,Children's Services,Transport Of Pupils,,16/04/2021," 2,622.00 ",360000,Public Transport
5416348,NEXUS MOVE LIMITED PREVIOUSLY RADIO CABS (ASHTON)LTD,Education,Children's Services,Transport Of Pupils,,16/04/2021," 1,840.00 ",360000,Public Transport
5416355,NEXUS MOVE LIMITED PREVIOUSLY RADIO CABS (ASHTON)LTD,Education,Children's Services,Transport Of Pupils,,16/04/2021," 2,438.00 ",360000,Public Transport
5416325,NEXUS MOVE LIMITED PREVIOUSLY RADIO CABS (ASHTON)LTD,Operations and Neighbourhoods,Operations and Neighbourhoods,Hired Transport,,16/04/2021," 2,560.00 ",360000,Public Transport
5416335,NEXUS MOVE LIMITED PREVIOUSLY RADIO CABS (ASHTON)LTD,Education,Children's Services,Transport Of Ola Pupils,,16/04/2021," 2,760.00 ",360000,Public Transport
5416334,NEXUS MOVE LIMITED PREVIOUSLY RADIO CABS (ASHTON)LTD,Education,Children's Services,Transport Of Ola Pupils,,16/04/2021," 1,100.00 ",360000,Public Transport
5416338,NEXUS MOVE LIMITED PREVIOUSLY RADIO CABS (ASHTON)LTD,Education,Children's Services,Transport Of Ola Pupils,,16/04/2021," 1,100.00 ",360000,Public Transport
5416350,NEXUS MOVE LIMITED PREVIOUSLY RADIO CABS (ASHTON)LTD,Operations and Neighbourhoods,Operations and Neighbourhoods,Hired Transport,,16/04/2021," 1,633.00 ",360000,Public Transport
5416314,NEXUS MOVE LIMITED PREVIOUSLY RADIO CABS (ASHTON)LTD,Education,Children's Services,Transport Of Pupils,,16/04/2021," 1,200.00 ",360000,Public Transport
5416327,NEXUS MOVE LIMITED PREVIOUSLY RADIO CABS (ASHTON)LTD,Education,Children's Services,Transport Of Pupils,,16/04/2021," 2,385.00 ",360000,Public Transport
5416341,NEXUS MOVE LIMITED PREVIOUSLY RADIO CABS (ASHTON)LTD,Education,Children's Services,Transport Of Post 16 Pupils,,16/04/2021," 1,265.00 ",360000,Public Transport
5416320,NEXUS MOVE LIMITED PREVIOUSLY RADIO CABS (ASHTON)LTD,Education,Children's Services,Transport Of Pupils,,16/04/2021," 1,344.00 ",360000,Public Transport
5413750,SWIIS FOSTER CARE LTD,Childrens Services,Children's Services,Foster Carer Agency Fees,,16/04/2021," 1,694.98 ",321100,Social Community Care Supplies & Services - Children
5413748,SWIIS FOSTER CARE LTD,Childrens Services,Children's Services,Foster Carer Agency Fees,,16/04/2021, 722.47 ,321100,Social Community Care Supplies & Services - Children
5413742,SWIIS FOSTER CARE LTD,Childrens Services,Children's Services,Foster Carer Agency Fees,,16/04/2021, 722.47 ,321100,Social Community Care Supplies & Services - Children
5413747,SWIIS FOSTER CARE LTD,Childrens Services,Children's Services,Foster Carer Agency Fees,,16/04/2021, 711.76 ,321100,Social Community Care Supplies & Services - Children
5413744,SWIIS FOSTER CARE LTD,Childrens Services,Children's Services,Foster Carer Agency Fees,,16/04/2021, 760.48 ,321100,Social Community Care Supplies & Services - Children
5416407,P J SPENCER (ELECTRICAL)  LTD,Place,Growth,Building Maintenance,,16/04/2021," 1,142.00 ",390000,"Works - Construction, Repair & Maintenance"
5416408,P J SPENCER (ELECTRICAL)  LTD,Place,Growth,Building Maintenance,,16/04/2021," 3,145.00 ",390000,"Works - Construction, Repair & Maintenance"
5414132,BEDSPACE RESOURCE LTD,Childrens Services,Children's Services,Living With Formal Support,,16/04/2021, 500.00 ,250000,Housing Management
5414043,VALE  ENGINEERING(YORK)LTD,Operations and Neighbourhoods,Operations and Neighbourhoods,Professional Weedspraying Services,,16/04/2021," 11,864.00 ",-999999,Unclassifiable
5414128,ROSS AUTO ENGINEERING LIMITED TRADING AS ROSS CARE,Adult Social Care,Adults,Joint Loans Store Fee,,16/04/2021," 137,776.32 ",321100,Social Community Care Supplies & Services - Children
5414127,ROSS AUTO ENGINEERING LIMITED TRADING AS ROSS CARE,Adult Social Care,Adults,Joint Loans Store Fee,,16/04/2021," 15,973.65 ",321100,Social Community Care Supplies & Services - Children
5416015,A & E FURNITURE LTD T.A THE PAVILION,Adult Social Care,Adults,"Fixtures, Fittings & Furniture Purchase",,16/04/2021, 899.00 ,210000,Furniture & Soft Furnishings
5414119,BT GLOBAL SERVICES,Digital Tameside,Finance & IT,Telephone Landline Costs,,16/04/2021," 7,549.81 ",270000,Information Communication Technology
5413746,NPOWER LIMITED,Place,Growth,Electricity,,16/04/2021," 18,951.59 ",370000,Utilities
5416056,STAMFORD CARS UK LTD,Operations and Neighbourhoods,Operations and Neighbourhoods,Hired Transport,,16/04/2021," 1,386.00 ",360000,Public Transport
5413978,Water Plus,Place,Growth,Water (Metered and Rates),,16/04/2021, 747.02 ,370000,Utilities
5413985,Water Plus,Place,Growth,Water (Metered and Rates),,16/04/2021, 808.00 ,370000,Utilities
5413979,Water Plus,Place,Growth,Water (Metered and Rates),,16/04/2021," 1,610.65 ",370000,Utilities
5414121,Water Plus,Place,Growth,Water (Metered and Rates),,16/04/2021, 810.33 ,370000,Utilities
5413989,Water Plus,Place,Growth,Water (Metered and Rates),,16/04/2021, 800.00 ,370000,Utilities
5413990,Water Plus,Place,Growth,Water (Metered and Rates),,16/04/2021," 1,610.89 ",370000,Utilities
5413982,Water Plus,Place,Growth,Water (Metered and Rates),,16/04/2021, 823.46 ,370000,Utilities
5413987,Water Plus,Place,Growth,Water (Metered and Rates),,16/04/2021, 763.20 ,370000,Utilities
5414914,K P DODD CONSTRUCTION LTD,Housing,Director of Place,Mandatory Adaptations Grant (DFG),,16/04/2021," 2,297.36 ",399999,"Works - Construction, Repair & Maintenance"
470904,AGGREGATE INDUSTRIES UK LIMITED,Operations and Neighbourhoods,Operations and Neighbourhoods,General Materials,,19/04/2021," 12,498.37 ",230000,Highway Equipment & Materials
470904,TARMAC CENTRAL LIMITED,Operations and Neighbourhoods,Operations and Neighbourhoods,General Materials,,19/04/2021," 6,140.40 ",230000,Highway Equipment & Materials
470904,WILDE CONSULTING ENGINEERS,Operations and Neighbourhoods,Operations and Neighbourhoods,Sub-contractor Services,,19/04/2021," 5,503.50 ",150000,Consultancy
470904,GRAFTON MERCHANTING GB LTD,Operations and Neighbourhoods,Operations and Neighbourhoods,General Materials,,19/04/2021, 994.92 ,100000,Building Construction Materials
470904,INSTARMAC GROUP PLC,Civil Engineers,Director of Place,Debits Goods Received,,19/04/2021," 1,182.00 ",230000,Highway Equipment & Materials
470904,Saint-Gobain Building Distribution Limited t/a Benchmark Building Supplies,Civil Engineers,Director of Place,Debits Goods Received,,19/04/2021," 3,799.87 ",100000,Building Construction Materials
470904,Saint-Gobain Building Distribution Limited t/a Benchmark Building Supplies,Operations and Neighbourhoods,Operations and Neighbourhoods,General Materials,,19/04/2021," 9,053.97 ",100000,Building Construction Materials
470904,NORTHWEST UTILITY SOLUTIONS LTD,Operations and Neighbourhoods,Operations and Neighbourhoods,Sub-contractor Services,,19/04/2021," 14,439.25 ",370000,Utilities
470904,TRAFFIC DIRECT LTD,Operations and Neighbourhoods,Operations and Neighbourhoods,Sub-contractor Services,,19/04/2021," 7,926.00 ",350000,Street & Traffic Management
470904,MALLATITE LTD,Operations and Neighbourhoods,Operations and Neighbourhoods,General Materials,,19/04/2021, 554.24 ,230000,Highway Equipment & Materials
470904,REDDIPAK LIMITED,Civil Engineers,Director of Place,Debits Goods Received,,19/04/2021, 655.00 ,-999999,Unclassifiable
5416837,Bloom Procurement Services Limited,(blank),(blank),Fees,,19/04/2021," 2,574.14 ",150000,Consultancy
5416495,GREENSCAPE,Adult Social Care,Adults,Professional Services,,19/04/2021," 1,648.00 ",390000,"Works - Construction, Repair & Maintenance"
5416646,CYCLESCHEME LTD,(blank),(blank),Debits,,19/04/2021," 1,760.00 ",-999999,Unclassifiable
5416645,CYCLESCHEME LTD,(blank),(blank),Debits,,19/04/2021, 635.00 ,-999999,Unclassifiable
5412374,CYCLESCHEME LTD,Multiple Heads of Service,Multiple Strategic Directorates,Debits,,19/04/2021, 633.33 ,-999999,Unclassifiable
5401121,ALPHA BIOLABS,Childrens Services,Children's Services,Professional Medical Services,,19/04/2021, 690.00 ,180000,Environmental Services
5415132,ALPHA BIOLABS,Childrens Services,Children's Services,Professional Medical Services,,19/04/2021, 820.00 ,180000,Environmental Services
5416540,ABOUT TAMESIDE,(blank),(blank),"Marketing, Publicity and Recruitment",,19/04/2021, 550.00 ,908001,Public Bodies
5414305,CITY LIFT SERVICES (NW) LTD,Adult Social Care,Adults,General Equipment Repair & Maintenance,,19/04/2021," 3,500.00 ",390000,"Works - Construction, Repair & Maintenance"
5416549,NEW CHARTER HOUSING TRUST GROUP,Population Health,Population Health,Contributions,,19/04/2021," 13,000.00 ",-999999,Unclassifiable
5416037,Hyde Accessible Transport Limited,Operations and Neighbourhoods,Operations and Neighbourhoods,Hired Transport,,19/04/2021, 500.00 ,360000,Public Transport
5416780,DECATHLON UK LIMITED,Adult Social Care,Adults,Voluntary Organisations Fees,,19/04/2021," 1,100.00 ",330000,Sports & Playground Equipment & Maintenance
5416544,OFF THE RECORD,Population Health,Population Health,Contributions,,19/04/2021," 22,875.00 ",321000,Social Community Care Supplies & Services - Adult
5416059,STAMFORD CARS UK LTD,Operations and Neighbourhoods,Operations and Neighbourhoods,Hired Transport,,19/04/2021," 1,265.00 ",360000,Public Transport
5416081,Bloom Procurement Services Limited,Hosted Services,Hosted Services,Professional Services,,20/04/2021," 17,250.00 ",150000,Consultancy
5416887,Welcome Nurseries At Stalybridge,Childrens Services,Children's Services,Nursery Services,,20/04/2021, 565.20 ,400000,Non 3rd Party spend  
5416777,Redacted,Contingency,Contingency,COVID-19 Payments - Domestic/Taxi,,20/04/2021," 1,500.00 ",UNCLASS,Unclassifiable
5416773,ZZ-Hair Industry,Contingency,Contingency,COVID-19 Additional Restrictions Support - Discretionary,,20/04/2021," 5,000.00 ",UNCLASS,Unclassifiable
5416491,GREENSCAPE,Adult Social Care,Adults,Professional Services,,20/04/2021, 842.00 ,390000,"Works - Construction, Repair & Maintenance"
5417186,DENTON MEDICAL PRACTICE,Population Health,Population Health,Local Enhanced Services,,20/04/2021, 759.60 ,310000,Healthcare
5417214,ABLE CARE AND SUPPORT SERVICES LTD,Adult Social Care,Adults,Homecare Fees,,20/04/2021, 585.64 ,321000,Social Community Care Supplies & Services - Adult
5415673,ABLE CARE AND SUPPORT SERVICES LTD,Adult Social Care,Adults,Homecare Fees,,20/04/2021," 258,951.00 ",321000,Social Community Care Supplies & Services - Adult
5415702,ABLE CARE AND SUPPORT SERVICES LTD,Adult Social Care,Adults,Homecare Fees,,20/04/2021," 30,027.20 ",321000,Social Community Care Supplies & Services - Adult
5416830,QUEST MEDIA NETWORKS LTD,Operations and Neighbourhoods,Operations and Neighbourhoods,"Marketing, Publicity and Recruitment",,20/04/2021, 575.00 ,-999999,Unclassifiable
5417157,CARELINE HOMECARE LTD,Adult Social Care,Adults,Homecare Fees,,20/04/2021," 35,182.88 ",321000,Social Community Care Supplies & Services - Adult
5415640,STEPPING STONES CHILDRENS HOMES LTD,Childrens Services,Children's Services,Childrens Homes Outside Local Authority Fees,,20/04/2021," 20,514.42 ",321100,Social Community Care Supplies & Services - Children
5417148,GREATER MANCHESTER COMBINED AUTHORITY,(blank),(blank),Coroners Service Costs,,20/04/2021," 7,510.00 ",-999999,Unclassifiable
5415933,TAMESIDE SPORTS TRUST,Individual Schools Budget,Children's Services,Professional Child Services,,20/04/2021," 1,740.00 ",290000,Arts & Leisure Services
5415508,CREATIVE SUPPORT LTD,Adult Social Care,Adults,Independent Sector Care Fees,,20/04/2021," 84,528.09 ",321000,Social Community Care Supplies & Services - Adult
5414187,Advantage Healthcare Limited,Childrens Services,Children's Services,Homecare Fees,,21/04/2021," 1,088.45 ",321100,Social Community Care Supplies & Services - Children
5414188,Independent Together Limited,Childrens Services,Children's Services,Living With Formal Support,,21/04/2021," 3,520.71 ",321000,Social Community Care Supplies & Services - Adult
5414189,Independent Together Limited,Childrens Services,Children's Services,Living With Formal Support,,21/04/2021," 4,865.00 ",321000,Social Community Care Supplies & Services - Adult
5414190,Independent Together Limited,Childrens Services,Children's Services,Living With Formal Support,,21/04/2021," 2,635.00 ",321000,Social Community Care Supplies & Services - Adult
5416216,Hillgate Health Group Limited,Childrens Services,Children's Services,Living With Formal Support,,21/04/2021," 2,159.36 ",-999999,Unclassifiable
5417296,Rossendale Scaffolding & Equipment Hire Ltd t/a Heywood Scaffolding Services,(blank),(blank),External  Consultants,,21/04/2021," 6,518.66 ",100000,Building Construction Materials
5416084,Bloom Procurement Services Limited,(blank),(blank),External  Consultants,,21/04/2021," 9,248.75 ",150000,Consultancy
5414168,Oyster Partnership,Place,Growth,Agency Staff,,21/04/2021," 2,200.00 ",261313,Human Resources
5414196,Prestige Adolescent Care & Education Ltd,Childrens Services,Children's Services,Childrens Homes Outside Local Authority Fees,,21/04/2021," 15,278.66 ",321117,Social Community Care Supplies & Services - Children
5417403,Carrington West Ltd,Place,Growth,Professional Services,,21/04/2021, 819.00 ,-999999,Unclassifiable
5417402,Carrington West Ltd,Place,Growth,Professional Services,,21/04/2021, 538.20 ,-999999,Unclassifiable
5417324,BC Legal,Multiple Heads of Service,Multiple Strategic Directorates,Employers Liability Insurance Claims,,21/04/2021, 738.93 ,280000,Legal Services
5417315,CYGNET HEALTHCARE ( RELATIVETO) - LOWRY HOUSE,Contingency,Contingency,COVID-19 Infection Control Fund,,21/04/2021," 4,187.44 ",201700,Financial Services
5414289,Komplex Community Ltd,Childrens Services,Children's Services,Childrens Homes Outside Local Authority Fees,,21/04/2021," 12,000.00 ",-999999,Unclassifiable
5414287,Wellbeing Property Solutions Ltd,Childrens Services,Children's Services,Childrens Homes Outside Local Authority Fees,,21/04/2021, 700.00 ,261000,Human Resources
5414275,Positive Care Solutions Ltd,Childrens Services,Children's Services,Childrens Homes Outside Local Authority Fees,,21/04/2021," 9,799.98 ",261000,Human Resources
5414171,Amore Social Care Ltd,Childrens Services,Children's Services,Childrens Homes Outside Local Authority Fees,,21/04/2021," 7,955.00 ",310000,Healthcare
5414298,Nurtured Future Living Ltd,Childrens Services,Children's Services,Foster Carer Agency Fees,,21/04/2021," 10,285.74 ",322003,Social Community Care Supplies & Services - Children
5416158,LIVERPOOL CITY COUNCIL,Operations and Neighbourhoods,Operations and Neighbourhoods,Hired Transport,,21/04/2021," 2,843.50 ",400000,Non 3rd Party spend  
5414282,Tynetec a group brand of Legrand Electric Ltd,Adult Social Care,Adults,IT Equipment,,21/04/2021," 5,241.60 ",UNCLASS,Unclassifiable
5415876,SALFORD CITY COUNCIL,Hosted Services,Hosted Services,Professional Services,,21/04/2021," 9,315.00 ",-999999,Unclassifiable
5414229,CORE INTEGRATED SOLUTIONS LTD,(blank),(blank),Fibre Works,,21/04/2021," 5,321.85 ",390000,"Works - Construction, Repair & Maintenance"
5414233,CORE INTEGRATED SOLUTIONS LTD,(blank),(blank),Fibre Works,,21/04/2021," 2,658.46 ",390000,"Works - Construction, Repair & Maintenance"
5414254,CORE INTEGRATED SOLUTIONS LTD,(blank),(blank),Fibre Works,,21/04/2021," 2,824.42 ",390000,"Works - Construction, Repair & Maintenance"
5414240,CORE INTEGRATED SOLUTIONS LTD,(blank),(blank),Fibre Works,,21/04/2021," 2,392.11 ",390000,"Works - Construction, Repair & Maintenance"
5414249,CORE INTEGRATED SOLUTIONS LTD,(blank),(blank),Fibre Works,,21/04/2021," 2,104.98 ",390000,"Works - Construction, Repair & Maintenance"
5414261,CORE INTEGRATED SOLUTIONS LTD,(blank),(blank),Fibre Works,,21/04/2021," 2,011.34 ",390000,"Works - Construction, Repair & Maintenance"
5414259,CORE INTEGRATED SOLUTIONS LTD,(blank),(blank),Fibre Works,,21/04/2021," 2,180.57 ",390000,"Works - Construction, Repair & Maintenance"
5414236,CORE INTEGRATED SOLUTIONS LTD,(blank),(blank),Fibre Works,,21/04/2021," 2,997.49 ",390000,"Works - Construction, Repair & Maintenance"
5414239,CORE INTEGRATED SOLUTIONS LTD,(blank),(blank),Fibre Works,,21/04/2021," 1,564.65 ",390000,"Works - Construction, Repair & Maintenance"
5414232,CORE INTEGRATED SOLUTIONS LTD,(blank),(blank),Fibre Works,,21/04/2021," 5,017.91 ",390000,"Works - Construction, Repair & Maintenance"
5414238,CORE INTEGRATED SOLUTIONS LTD,(blank),(blank),Fibre Works,,21/04/2021," 2,139.71 ",390000,"Works - Construction, Repair & Maintenance"
5414237,CORE INTEGRATED SOLUTIONS LTD,(blank),(blank),Fibre Works,,21/04/2021," 2,119.03 ",390000,"Works - Construction, Repair & Maintenance"
5414252,CORE INTEGRATED SOLUTIONS LTD,(blank),(blank),Fibre Works,,21/04/2021," 2,180.57 ",390000,"Works - Construction, Repair & Maintenance"
5414243,CORE INTEGRATED SOLUTIONS LTD,(blank),(blank),Fibre Works,,21/04/2021," 2,259.03 ",390000,"Works - Construction, Repair & Maintenance"
5414241,CORE INTEGRATED SOLUTIONS LTD,(blank),(blank),Fibre Works,,21/04/2021," 1,468.62 ",390000,"Works - Construction, Repair & Maintenance"
5414244,CORE INTEGRATED SOLUTIONS LTD,(blank),(blank),Fibre Works,,21/04/2021," 1,400.00 ",390000,"Works - Construction, Repair & Maintenance"
5414230,CORE INTEGRATED SOLUTIONS LTD,(blank),(blank),Fibre Works,,21/04/2021," 32,792.06 ",390000,"Works - Construction, Repair & Maintenance"
5414250,CORE INTEGRATED SOLUTIONS LTD,(blank),(blank),Fibre Works,,21/04/2021," 5,682.46 ",390000,"Works - Construction, Repair & Maintenance"
5414248,CORE INTEGRATED SOLUTIONS LTD,(blank),(blank),Fibre Works,,21/04/2021," 5,507.29 ",390000,"Works - Construction, Repair & Maintenance"
5414235,CORE INTEGRATED SOLUTIONS LTD,(blank),(blank),Fibre Works,,21/04/2021," 2,788.26 ",390000,"Works - Construction, Repair & Maintenance"
5414242,CORE INTEGRATED SOLUTIONS LTD,(blank),(blank),Fibre Works,,21/04/2021," 2,527.98 ",390000,"Works - Construction, Repair & Maintenance"
5414228,CORE INTEGRATED SOLUTIONS LTD,(blank),(blank),Fibre Works,,21/04/2021," 1,844.49 ",390000,"Works - Construction, Repair & Maintenance"
5414246,CORE INTEGRATED SOLUTIONS LTD,(blank),(blank),Fibre Works,,21/04/2021," 1,914.42 ",390000,"Works - Construction, Repair & Maintenance"
5414245,CORE INTEGRATED SOLUTIONS LTD,(blank),(blank),Fibre Works,,21/04/2021," 5,600.00 ",390000,"Works - Construction, Repair & Maintenance"
5414247,CORE INTEGRATED SOLUTIONS LTD,(blank),(blank),Fibre Works,,21/04/2021," 5,225.71 ",390000,"Works - Construction, Repair & Maintenance"
5414227,CORE INTEGRATED SOLUTIONS LTD,(blank),(blank),Fibre Works,,21/04/2021," 160,000.00 ",390000,"Works - Construction, Repair & Maintenance"
5417223,CYGNET HEALTH CARE LTD,Education,Children's Services,Independent School Fees,,21/04/2021," 1,908.00 ",310000,Healthcare
5416448,Agilyx UK LTD,People and Workforce Development,Governance,Professional Consultancy Services,,21/04/2021," 1,868.33 ",150000,Consultancy
5417220,ABLE CARE AND SUPPORT SERVICES LTD,Adult Social Care,Adults,Homecare Fees,,21/04/2021," 13,814.44 ",321000,Social Community Care Supplies & Services - Adult
5416829,QUEST MEDIA NETWORKS LTD,Policy and Communications,Governance,"Marketing, Publicity and Recruitment",,21/04/2021," 1,500.00 ",-999999,Unclassifiable
5414304,COMPLETE BACKGROUND SCREENING LTD,People and Workforce Development,Governance,Professional Services,,21/04/2021," 1,731.00 ",-999999,Unclassifiable
5417279,Future Focused Care,Childrens Services,Children's Services,Childrens Homes Outside Local Authority Fees,,21/04/2021," 19,264.20 ",321100,Social Community Care Supplies & Services - Children
5414288,DARTINGTON HALL TRUST,Childrens Services,Children's Services,Professional Services,,21/04/2021," 10,782.00 ",150000,Consultancy
5414306,Redacted,Childrens Services,Children's Services,Childrens Homes Outside Local Authority Fees,Redacted Supplier,21/04/2021," 12,178.66 ",321100,Social Community Care Supplies & Services - Children
5414372,PHONAK UK LIMITED,Education,Children's Services,Educational Equipment,,21/04/2021, 536.11 ,321100,Social Community Care Supplies & Services - Children
5414369,PHONAK UK LIMITED,Education,Children's Services,Educational Equipment,,21/04/2021, 983.00 ,321100,Social Community Care Supplies & Services - Children
5414371,PHONAK UK LIMITED,Education,Children's Services,Educational Equipment,,21/04/2021," 1,369.00 ",321100,Social Community Care Supplies & Services - Children
5414317,Redacted,Multiple Heads of Service,Multiple Strategic Directorates,CIS Labour Debits,,21/04/2021," 3,000.00 ",390000,"Works - Construction, Repair & Maintenance"
5414317,Redacted,Operations and Neighbourhoods,Operations and Neighbourhoods,Engineers -External,,21/04/2021," 4,350.00 ",390000,"Works - Construction, Repair & Maintenance"
5414316,Redacted,Multiple Heads of Service,Multiple Strategic Directorates,CIS Labour Debits,,21/04/2021," 3,750.00 ",390000,"Works - Construction, Repair & Maintenance"
5414316,Redacted,(blank),(blank),Engineers -External,,21/04/2021," 4,850.00 ",390000,"Works - Construction, Repair & Maintenance"
5414214,ASKEWS  AND HOLTS LIBRARY SERVICES LTD,Operations and Neighbourhoods,Operations and Neighbourhoods,Purchase Books,,21/04/2021," 2,009.97 ",170000,Education
5413629,ValueLicensing EU BVBA,(blank),(blank),Computer Software,,22/04/2021," 1,700.00 ",270000,Information Communication Technology
5416264,Bloom Procurement Services Limited,(blank),(blank),Fees,,22/04/2021," 11,820.00 ",150000,Consultancy
5414331,Mighty Student Living,Childrens Services,Children's Services,Living Without Formal Support,,22/04/2021," 3,215.47 ",250000,Housing Management
5414345,Pennine Medical Supplies Ltd T/A Pennine Workwear,Education,Children's Services,Protective Clothing,,22/04/2021, 655.16 ,MEDICAL,Medical
5414417,Nicola J Ellis Clinical Psychology Ltd,People and Workforce Development,Governance,Training Course Costs,,22/04/2021," 2,700.00 ",-999999,Unclassifiable
5414348,Northern Trains Limited,(blank),(blank),Engineers -External,,22/04/2021," 14,556.40 ",361700,Public Transport
5414420,Brook,Population Health,Population Health,Professional Services,,22/04/2021," 2,004.80 ",-999999,Unclassifiable
5414349,Upshot Systems CIC,Operations and Neighbourhoods,Operations and Neighbourhoods,IT Equipment,,22/04/2021," 3,600.00 ",-999999,Unclassifiable
5414351,OFSTED,Childrens Services,Children's Services,Professional Services,,22/04/2021," 3,216.00 ",200000,Financial Services
5414421,OCLC (UK) LTD,Operations and Neighbourhoods,Operations and Neighbourhoods,Subscriptions,,22/04/2021," 2,873.70 ",200000,Financial Services
5414300,DOMAIN CARE NORTH WEST LTD,Adult Social Care,Adults,Homecare Fees,,22/04/2021," 1,771.08 ",321100,Social Community Care Supplies & Services - Children
3250809,G B OILS TA CARLTON FUELS,Transport,Director of Place,Diesel Fuel,,22/04/2021," 37,767.60 ",380000,Vehicle Management
3250809,AIR PRODUCTS PLC,Operations and Neighbourhoods,Operations and Neighbourhoods,General Equipment Repair & Maintenance,,22/04/2021," 1,356.84 ",370000,Utilities
3250809,AEBI SCHMIDT UK LTD,Transport,Director of Place,Debits Goods Received,,22/04/2021, 789.32 ,380000,Vehicle Management
3250809,BRENNTAG UK LIMITED,Transport,Director of Place,Fuel / Ad Blu,,22/04/2021, 972.26 ,130000,Cleaning & Janitorial
3250809,LEEDS COMMERCIAL LTD T/A LC VEHICLE HIRE,Operations and Neighbourhoods,Operations and Neighbourhoods,Additional Hire,,22/04/2021, 670.00 ,380000,Vehicle Management
3250809,MILTON PUMP ENGINEERS LIMITED,Operations and Neighbourhoods,Operations and Neighbourhoods,General Equipment Repair & Maintenance,,22/04/2021," 5,100.00 ",-999999,Unclassifiable
5414406,FOSTERING SOLUTIONS LTD,Childrens Services,Children's Services,Foster Carer Agency Fees,,22/04/2021," 3,565.31 ",321000,Social Community Care Supplies & Services - Adult
5414409,FOSTERING SOLUTIONS LTD,Childrens Services,Children's Services,Foster Carer Agency Fees,,22/04/2021," 3,609.33 ",321000,Social Community Care Supplies & Services - Adult
5414402,FOSTERING SOLUTIONS LTD,Childrens Services,Children's Services,Foster Carer Agency Fees,,22/04/2021," 3,609.33 ",321000,Social Community Care Supplies & Services - Adult
5414400,FOSTERING SOLUTIONS LTD,Childrens Services,Children's Services,Foster Carer Agency Fees,,22/04/2021," 3,528.73 ",321000,Social Community Care Supplies & Services - Adult
5414405,FOSTERING SOLUTIONS LTD,Childrens Services,Children's Services,Foster Carer Agency Fees,,22/04/2021," 3,528.73 ",321000,Social Community Care Supplies & Services - Adult
5417438,GREENSCAPE,Operations and Neighbourhoods,Operations and Neighbourhoods,General Materials,,22/04/2021," 2,520.00 ",390000,"Works - Construction, Repair & Maintenance"
5417284,CYCLESCHEME LTD,(blank),(blank),Debits,,22/04/2021," 2,925.00 ",-999999,Unclassifiable
5417282,CYCLESCHEME LTD,(blank),(blank),Debits,,22/04/2021," 6,166.67 ",-999999,Unclassifiable
5416590,Redacted,Education,Children's Services,Transport Of Pupils,Business Payment,22/04/2021," 2,484.00 ",360000,Public Transport
5414432,LIQUID 11 LTD,Hosted Services,Hosted Services,Nursing Home Long Stay Fees,,22/04/2021," 1,188.00 ",270000,Information Communication Technology
5414437,CORE INTEGRATED SOLUTIONS LTD,(blank),(blank),Fibre Works,,22/04/2021," 2,072.88 ",390000,"Works - Construction, Repair & Maintenance"
5414442,CORE INTEGRATED SOLUTIONS LTD,(blank),(blank),Fibre Works,,22/04/2021," 1,936.06 ",390000,"Works - Construction, Repair & Maintenance"
5414353,CORE INTEGRATED SOLUTIONS LTD,(blank),(blank),Fibre Works,,22/04/2021," 119,885.00 ",390000,"Works - Construction, Repair & Maintenance"
5414438,CORE INTEGRATED SOLUTIONS LTD,(blank),(blank),Fibre Works,,22/04/2021," 2,894.48 ",390000,"Works - Construction, Repair & Maintenance"
5414440,CORE INTEGRATED SOLUTIONS LTD,(blank),(blank),Fibre Works,,22/04/2021," 2,711.72 ",390000,"Works - Construction, Repair & Maintenance"
5414436,CORE INTEGRATED SOLUTIONS LTD,(blank),(blank),Fibre Works,,22/04/2021," 46,816.62 ",390000,"Works - Construction, Repair & Maintenance"
5416449,Agilyx UK LTD,People and Workforce Development,Governance,Professional Consultancy Services,,22/04/2021, 506.67 ,150000,Consultancy
5414443,TURNING POINT,Contingency,Contingency,COVID-19 Infection Control Fund,,22/04/2021," 5,053.74 ",321000,Social Community Care Supplies & Services - Adult
5414447,PETERS LIMITED (PETERS BOOKSELLING SERVICES),Operations and Neighbourhoods,Operations and Neighbourhoods,Purchase Books,,22/04/2021," 1,445.93 ",170000,Education
5417434,DHL Parcel UK Ltd (UK Mail),Exchequer,Governance,Printing And Stationery,,22/04/2021," 56,844.86 ",300000,Mail Services
5414419,Smartway Health and Social Care Limited,Adult Social Care,Adults,Homecare Fees,,22/04/2021," 5,732.32 ",321000,Social Community Care Supplies & Services - Adult
5414446,DOOR CARE & SECURITY,(blank),(blank),Building Works,,22/04/2021," 1,980.30 ",100000,Building Construction Materials
5415822,CREATIVE SUPPORT LTD,Adult Social Care,Adults,Independent Sector Care Fees,,22/04/2021," 45,468.00 ",321000,Social Community Care Supplies & Services - Adult
5414569,CREATIVE SUPPORT LTD,Adult Social Care,Adults,Homecare Fees,,22/04/2021, 501.85 ,321000,Social Community Care Supplies & Services - Adult
5414453,CAPSTONE FOSTER CARE,Childrens Services,Children's Services,Foster Carer Agency Fees,,22/04/2021," 2,221.11 ",321000,Social Community Care Supplies & Services - Adult
5414455,CAPSTONE FOSTER CARE,Childrens Services,Children's Services,Foster Carer Agency Fees,,22/04/2021," 2,221.11 ",321000,Social Community Care Supplies & Services - Adult
5415919,SOFTBOX LIMITED,People and Workforce Development,Governance,Computer Software,,22/04/2021," 3,241.00 ",270000,Information Communication Technology
5414423,P MCGUINNESS & CO LTD,Place,Growth,Engineers Works,,22/04/2021, 625.00 ,390000,"Works - Construction, Repair & Maintenance"
5414456,P MCGUINNESS & CO LTD,Place,Growth,Engineers Works,,22/04/2021, 715.00 ,390000,"Works - Construction, Repair & Maintenance"
5417344,JACKSON & TAYLOR LTD,Housing,Director of Place,Mandatory Adaptations Grant (DFG),,22/04/2021," 1,285.00 ",390000,"Works - Construction, Repair & Maintenance"
5414459,PHOENIX SOFTWARE LTD,Digital Tameside,Finance & IT,Computer Software,,22/04/2021," 261,023.45 ",270000,Information Communication Technology
5414457,PHOENIX SOFTWARE LTD,GMPF (FX),GMPF (FX),Computer Software,,22/04/2021, 795.00 ,270000,Information Communication Technology
5416286,GREENSCAPE,Contingency,Contingency,COVID-19 Infection Control Fund,,22/04/2021," 1,220.74 ",390000,"Works - Construction, Repair & Maintenance"
5417583,SANTANDER UK PLC,Finance,Finance & IT,National Giro,,22/04/2021," 2,932.90 ",200000,Financial Services
5416247,SANTANDER UK PLC,Finance,Finance & IT,National Giro,,22/04/2021," 2,346.05 ",200000,Financial Services
5417580,SANTANDER UK PLC,Finance,Finance & IT,National Giro,,22/04/2021," 3,371.72 ",200000,Financial Services
5417581,SANTANDER UK PLC,Finance,Finance & IT,National Giro,,22/04/2021," 4,702.07 ",200000,Financial Services
5416930,INSPIREDSPACES TAMESIDE (PROJECTCO2) LTD,(blank),(blank),Fees,,22/04/2021," 174,837.01 ",170000,Education
5416323,BARCLAYCARD COMMERCIAL,Childrens Services,Children's Services,Procurement Hub Holding Account,,22/04/2021," 19,952.35 ",200000,Financial Services
5416323,BARCLAYCARD COMMERCIAL,Individual Schools Budget,Children's Services,Procurement Hub Holding Account,,22/04/2021," 1,228.33 ",200000,Financial Services
5416323,BARCLAYCARD COMMERCIAL,Operations and Neighbourhoods,Operations and Neighbourhoods,Procurement Hub Holding Account,,22/04/2021," 1,526.51 ",200000,Financial Services
5416323,BARCLAYCARD COMMERCIAL,Hosted Services,Hosted Services,Procurement Hub Holding Account,,22/04/2021," 1,966.26 ",200000,Financial Services
5416323,BARCLAYCARD COMMERCIAL,Adult Social Care,Adults,Procurement Hub Holding Account,,22/04/2021, 569.85 ,200000,Financial Services
5416323,BARCLAYCARD COMMERCIAL,Digital Tameside,Finance & IT,Procurement Hub Holding Account,,22/04/2021, 819.37 ,200000,Financial Services
5416323,BARCLAYCARD COMMERCIAL,Policy and Communications,Governance,Procurement Hub Holding Account,,22/04/2021," 1,114.27 ",200000,Financial Services
5416295,MEDACS HEALTHCARE,Contingency,Contingency,COVID-19 Infection Control Fund,,22/04/2021," 49,236.98 ",150000,Consultancy
5417054,HMCTS (FOR PAYMENT BY ACCOUNT),Childrens Services,Children's Services,Court Fees,,22/04/2021," 20,356.00 ",-999999,Unclassifiable
5416282,CREATIVE SUPPORT LTD,Contingency,Contingency,COVID-19 Infection Control Fund,,22/04/2021," 38,500.26 ",321000,Social Community Care Supplies & Services - Adult
5416781,CAPITA - NNDR REFUNDS,(blank),(blank),COVID-19 Payments - RV greater than or equal to 51k,,22/04/2021," 18,000.00 ",400000,Non 3rd Party spend  
5416781,CAPITA - NNDR REFUNDS,(blank),(blank),COVID-19 Payments - RV less than or equal to 15k,,22/04/2021," 4,000.00 ",400000,Non 3rd Party spend  
5416781,CAPITA - NNDR REFUNDS,(blank),(blank),COVID-19 Restart Grant Non-essential Retail - RV less than or equal to 15k,,22/04/2021," 8,001.00 ",400000,Non 3rd Party spend  
5416781,CAPITA - NNDR REFUNDS,(blank),(blank),COVID-19 Restart Grant Hosp Accom Leisure Personal Gym - RV greater than 15k and less than 51k,,22/04/2021," 12,000.00 ",400000,Non 3rd Party spend  
5416781,CAPITA - NNDR REFUNDS,(blank),(blank),COVID-19 Restart Grant Hosp Accom Leisure Personal Gym - RV less than or equal to 15k,,22/04/2021," 208,000.00 ",400000,Non 3rd Party spend  
5416781,CAPITA - NNDR REFUNDS,(blank),(blank),COVID-19 Restart Grant Non-essential Retail - RV  greater than 15k and less than 51k,,22/04/2021," 12,000.00 ",400000,Non 3rd Party spend  
5416781,CAPITA - NNDR REFUNDS,Contingency,Contingency,COVID-19 Payments - RV greater than or equal to 51k,,22/04/2021," 25,499.42 ",400000,Non 3rd Party spend  
5416781,CAPITA - NNDR REFUNDS,Contingency,Contingency,COVID-19 Payments - RV less than or equal to 15k,,22/04/2021," 9,099.21 ",400000,Non 3rd Party spend  
5416190,CAPITA - NNDR REFUNDS,(blank),(blank),COVID-19 Payments - RV less than or equal to 15k,,22/04/2021," 16,000.00 ",400000,Non 3rd Party spend  
5416190,CAPITA - NNDR REFUNDS,(blank),(blank),COVID-19 Restart Grant Non-essential Retail - RV less than or equal to 15k,,22/04/2021," 5,334.00 ",400000,Non 3rd Party spend  
5416190,CAPITA - NNDR REFUNDS,(blank),(blank),COVID-19 Restart Grant Hosp Accom Leisure Personal Gym - RV less than or equal to 15k,,22/04/2021," 128,000.00 ",400000,Non 3rd Party spend  
5416190,CAPITA - NNDR REFUNDS,Contingency,Contingency,COVID-19 Payments - RV less than or equal to 15k,,22/04/2021," 20,818.78 ",400000,Non 3rd Party spend  
5417573,CAPITA - NNDR REFUNDS,(blank),(blank),COVID-19 Payments - RV greater than 15k and less than 51k,,22/04/2021," 6,000.00 ",400000,Non 3rd Party spend  
5417573,CAPITA - NNDR REFUNDS,(blank),(blank),COVID-19 Payments - RV greater than or equal to 51k,,22/04/2021," 18,000.00 ",400000,Non 3rd Party spend  
5417573,CAPITA - NNDR REFUNDS,(blank),(blank),COVID-19 Payments - RV less than or equal to 15k,,22/04/2021," 36,000.00 ",400000,Non 3rd Party spend  
5417573,CAPITA - NNDR REFUNDS,(blank),(blank),COVID-19 Restart Grant Non-essential Retail - RV less than or equal to 15k,,22/04/2021," 2,667.00 ",400000,Non 3rd Party spend  
5417573,CAPITA - NNDR REFUNDS,(blank),(blank),COVID-19 Restart Grant Hosp Accom Leisure Personal Gym - RV less than or equal to 15k,,22/04/2021," 16,000.00 ",400000,Non 3rd Party spend  
5417573,CAPITA - NNDR REFUNDS,Contingency,Contingency,COVID-19 Payments - RV greater than 15k and less than 51k,,22/04/2021," 8,500.14 ",400000,Non 3rd Party spend  
5417573,CAPITA - NNDR REFUNDS,Contingency,Contingency,COVID-19 Payments - RV greater than or equal to 51k,,22/04/2021," 25,499.42 ",400000,Non 3rd Party spend  
5417573,CAPITA - NNDR REFUNDS,Contingency,Contingency,COVID-19 Payments - RV less than or equal to 15k,,22/04/2021," 50,451.19 ",400000,Non 3rd Party spend  
5416176,CAPITA - NNDR REFUNDS,(blank),(blank),COVID-19 Restart Grant Non-essential Retail - RV less than or equal to 15k,,22/04/2021," 8,001.00 ",400000,Non 3rd Party spend  
5416176,CAPITA - NNDR REFUNDS,(blank),(blank),COVID-19 Restart Grant Hosp Accom Leisure Personal Gym - RV less than or equal to 15k,,22/04/2021," 32,000.00 ",400000,Non 3rd Party spend  
5416176,CAPITA - NNDR REFUNDS,(blank),(blank),COVID-19 Restart Grant Non-essential Retail - RV  greater than 15k and less than 51k,,22/04/2021," 28,000.00 ",400000,Non 3rd Party spend  
5416176,CAPITA - NNDR REFUNDS,Contingency,Contingency,COVID-19 Payments - RV less than or equal to 15k,,22/04/2021," 43,447.98 ",400000,Non 3rd Party spend  
5416186,CAPITA - NNDR REFUNDS,(blank),(blank),COVID-19 Restart Grant Non-essential Retail - RV less than or equal to 15k,,22/04/2021," 8,001.00 ",400000,Non 3rd Party spend  
5416186,CAPITA - NNDR REFUNDS,(blank),(blank),COVID-19 Restart Grant Hosp Accom Leisure Personal Gym - RV less than or equal to 15k,,22/04/2021," 32,000.00 ",400000,Non 3rd Party spend  
5416186,CAPITA - NNDR REFUNDS,(blank),(blank),COVID-19 Restart Grant Non-essential Retail - RV  greater than 15k and less than 51k,,22/04/2021," 28,000.00 ",400000,Non 3rd Party spend  
5416186,CAPITA - NNDR REFUNDS,Contingency,Contingency,COVID-19 Payments - RV less than or equal to 15k,,22/04/2021," 43,447.98 ",400000,Non 3rd Party spend  
5416787,CAPITA - NNDR REFUNDS,(blank),(blank),COVID-19 Restart Grant Non-essential Retail - RV less than or equal to 15k,,22/04/2021," 32,004.00 ",400000,Non 3rd Party spend  
5416787,CAPITA - NNDR REFUNDS,(blank),(blank),COVID-19 Restart Grant Hosp Accom Leisure Personal Gym - RV greater than 15k and less than 51k,,22/04/2021," 48,000.00 ",400000,Non 3rd Party spend  
5416787,CAPITA - NNDR REFUNDS,(blank),(blank),COVID-19 Restart Grant Hosp Accom Leisure Personal Gym - RV less than or equal to 15k,,22/04/2021," 216,000.00 ",400000,Non 3rd Party spend  
5416787,CAPITA - NNDR REFUNDS,(blank),(blank),COVID-19 Restart Grant Non-essential Retail - RV  greater than 15k and less than 51k,,22/04/2021," 28,000.00 ",400000,Non 3rd Party spend  
5416787,CAPITA - NNDR REFUNDS,Contingency,Contingency,COVID-19 Payments - RV less than or equal to 15k,,22/04/2021," 25,201.63 ",400000,Non 3rd Party spend  
5417181,CAPITA - NNDR REFUNDS,(blank),(blank),COVID-19 Payments - RV less than or equal to 15k,,22/04/2021," 12,000.00 ",400000,Non 3rd Party spend  
5417181,CAPITA - NNDR REFUNDS,(blank),(blank),COVID-19 Restart Grant Non-essential Retail - RV less than or equal to 15k,,22/04/2021," 8,001.00 ",400000,Non 3rd Party spend  
5417181,CAPITA - NNDR REFUNDS,(blank),(blank),COVID-19 Restart Grant Hosp Accom Leisure Personal Gym - RV greater than 15k and less than 51k,,22/04/2021," 12,000.00 ",400000,Non 3rd Party spend  
5417181,CAPITA - NNDR REFUNDS,(blank),(blank),COVID-19 Restart Grant Hosp Accom Leisure Personal Gym - RV less than or equal to 15k,,22/04/2021," 184,000.00 ",400000,Non 3rd Party spend  
5417181,CAPITA - NNDR REFUNDS,(blank),(blank),COVID-19 Restart Grant Hosp Accom Leisure Personal Gym - RV greater than or equal to 51k,,22/04/2021," 36,000.00 ",400000,Non 3rd Party spend  
5417181,CAPITA - NNDR REFUNDS,Contingency,Contingency,COVID-19 Payments - RV less than or equal to 15k,,22/04/2021," 19,103.63 ",400000,Non 3rd Party spend  
5416785,CAPITA - NNDR REFUNDS,(blank),(blank),COVID-19 Restart Grant Non-essential Retail - RV less than or equal to 15k,,22/04/2021," 48,006.00 ",400000,Non 3rd Party spend  
5416785,CAPITA - NNDR REFUNDS,(blank),(blank),COVID-19 Restart Grant Hosp Accom Leisure Personal Gym - RV greater than 15k and less than 51k,,22/04/2021," 84,000.00 ",400000,Non 3rd Party spend  
5416785,CAPITA - NNDR REFUNDS,(blank),(blank),COVID-19 Restart Grant Hosp Accom Leisure Personal Gym - RV less than or equal to 15k,,22/04/2021," 288,000.00 ",400000,Non 3rd Party spend  
